Workbook

Sheet 操作説明
A2: 農業集落排水汚泥の資源化に係る温室効果ガス排出削減量の算定プログラム ver.1.0
A4: 簡易操作説明
B6: 本プログラムは、「農業集落排水汚泥資源の活用」の検討の参考とするため、汚泥資源の活用方法別の温室効果ガス排出量において、焼却と比較して、肥料化や建設資材としての再利用により、どの程度脱炭素化が図れるのかを計算するものです。
B8: ◆算定プログラムの構成
B9: 本プログラムの構成は下表のとおりです。
B11: シート名 | F11: シート色 | G11: 簡易説明 | K11: 入力
B12: 操作説明 | F12: 灰色 | G12: 本シートです。 | K12: －
B13: 【入力】ユーザー入力シート | F13: 黄色 | G13: 温室効果ガス排出量の算定に必要な数値や情報を入力するシートです。基本情報の入力のみでも算定可能ですが、詳細情報を追加することで、より実態に近い算定結果にすることが可能です。 | K13: 必要
B14: 【出力】結果出力シート（概要） | F14: 赤色 | G14: 本プログラムによる算定結果について、概要をとりまとめたシートです。適宜、図面や写真を追加し、対外的な説明などにご活用ください。 | K14: 任意
B15: 【出力】結果出力シート（詳細） | F15: 赤色 | G15: 本プログラムによる算定結果について、個別の処理プロセスの排出量内訳を整理したシートです。適宜、図面や写真を追加し、対外的な説明などにご活用ください。 | K15: 任意
B16: 【出力・現況】GHG排出量算定シート | F16: 青色 | G16: 現況の処理形態における排出量の算定経緯を確認できるシートです。（計算式や係数が多く含まれるため、改変しないようお願いします） | K16: 不要
B17: 【出力・比較対象1】GHG排出量算定シート | F17: 青色 | G17: 比較対象の処理形態（1つ目）における排出量の算定経緯を確認できるシートです。（計算式や係数が多く含まれるため、改変しないようお願いします） | K17: 不要
B18: 【出力・比較対象2】GHG排出量算定シート | F18: 青色 | G18: 比較対象の処理形態（2つ目）における排出量の算定経緯を確認できるシートです。（計算式や係数が多く含まれるため、改変しないようお願いします） | K18: 不要
B20: ◆算定プログラムの構成
B21: 操作方法は以下のとおりですが、詳細については「農業集落排水汚泥の資源化に係る温室効果ガス排出削減量の算定プログラム操作マニュアル」を参照して下さい。
B23: 0 | C23: 本プログラムではマクロを使用しています。無効化されている場合は有効にしてください。
B25: 1 | C25: 本算定プログラムのシート「【入力】ユーザー入力シート」について、各項目に対して操作マニュアルに準拠してデータの入力または選択を行います。
D26: ・各入力項目については上から順に入力・選択を行うことでスムーズに算定プログラムの運用が行えるように作成しています。
D27: ・本プログラムにおいて、ユーザーが入力する情報は2種類あります。必須入力項目（黄色セル）は適切に計算を行う上で、必ず入力が必要です。任意入力・選択項目は算定結果をできるだけ実態に近い値にするために入力をお願いするものですが、不明な場合は未入力でも構いません。
E29: 「必須」入力・選択項目
E30: 任意入力・選択項目
E31: 入力・選択は不可（自動更新）
B33: 2 | C33: はじめに、"【入力】ユーザー入力シート"の基本情報（地区情報とQ1～Q5：6～46行目）を入力してください。
B35: 3 | C35: 算定対象地区について、より詳細な情報が入手できる場合には、"【入力】ユーザー入力シート"の詳細情報（Q6～Q12：52～93行目）についても、可能な範囲で入力してください。なお、詳細情報が入力されていなくてもプログラムでの温室効果ガス排出量の算定は可能です。
B37: 4 | C37: 入力後の算定結果は、"【出力】結果出力シート（概要）"および"【出力】結果出力シート（詳細）"に表示されています。必要に応じ、図や写真を挿入するなど、対外的な説明資料として加工いただくことも可能です。

Sheet 【入力】ユーザー入力シート
C1: ユーザー入力シート ver.1.0
F2: 入力凡例 | G2: 「必須」入力・選択項目
G3: 任意入力・選択項目
G4: 入力・選択は不可（自動更新）
C6: 基本情報の入力
D8: 農業集落排水処理地区名を入力してください。【手入力】
D9: 農業集落排水処理施設の名称を入力してください。【手入力】
D10: 農業集落排水処理施設の所在地を入力してください。【手入力】 | F10: 都道府県
F11: 市町村
D12: 農業集落排水処理地区の処理人口（計画・実績）を入力してください。【手入力】 | F12: 計画処理人口 | H12: 人
F13: 実績処理人口 | H13: 人
D14: 農業集落排水処理地区の計画1日平均汚水量と実績年間汚水量を入力してください。【手入力】 | F14: 計画1日平均汚水量 | H14: ㎥/日
F15: 実績年間汚水量 | H15: ㎥/年
D17: Q1 貴自治体の管内の電力会社を選択してください。【選択式】
G19: 現況の最終処理形態 | H19: 比較対象1の最終処理形態 | I19: 比較対象2の最終処理形態
D20: Q2-1 現在の最終的な処理形態を横の黄色いセル（G20）で選択してください。【選択式】 比較対象となる最終処理形態が灰色のセル（H20,I20）に表示されます。 | H20: =IFERROR(IF(OR(H27="農業集落排水施設",H29="農業集落排水施設"),VLOOKUP(G20,選択肢!$X$3:$Z$10,2,FALSE),VLOOKUP($G$20,選択肢!$S$3:$U$10,2,FALSE)),"") ->  | I20: =IFERROR(VLOOKUP($G$20,選択肢!$S$3:$U$10,3,FALSE),"") -> 
D21: Q2-2 比較対象となる最終処理形態をH20,I20に表示されたものから変更したい場合には、変更後の最終処理形態を黄緑色のセル（H21,I21)に入力してください【選択式】 | G21: =IF(G20=0,"",G20) -> 
D23: Q3 Q2で選択した汚泥の処理形態について、農業集落排水処理施設での一次処理（濃縮）以降の個別プロセスの「有」または「無」を選択してください。 また、「脱水」、「乾燥」、「焼却」のプロセスが「有」の場合、どの施設でその処理が行われているか選択してください。 【選択式】 ※個別プロセスの解説は操作マニュアルのp9～p10を参照ください | F23: 個別プロセス | G23: プロセスの有無 | H23: そのプロセスを行う場所
E24: a | F24: 農業集落排水施設での一次処理 | G24: 有
E25: b | F25: 濃縮後、別施設への運搬
E26: c | F26: し尿処理施設等での再一次処理
E27: d | F27: 脱水
E28: e | F28: 脱水後、別施設への運搬
E29: f | F29: 機械乾燥
E30: g | F30: 乾燥後、別施設への運搬
D32: Q4 農業集落排水施設から発生する年間の引き抜き汚泥量（濃縮後）を入力してください。なお、引き抜き汚泥量の含水率が97%以上であるかを確認してください。【手入力】 | F32: =IF(OR(G32="",AND(G32>#REF!,G32<#REF!)),"","【注意】引き抜き汚泥量の数値が誤っている可能性があります！⇒") ->  | H32: ㎥またはt/年
G33: ※引き抜き汚泥量の入力時の注意※ 入力値の引き抜き汚泥量の含水率は97%以上99.5%以下を想定しており、含水率（想定値）と実績処理人口を用いて自動計算した引き抜き汚泥量と、入力した引き抜き汚泥量とを比較して乖離が大きい場合には、F41セルに警告が出ます。修正しても警告が出る場合は、自動計算値を用いて算定しますので、空欄のままとしてください。
D34: Q5 Q3の設問で、し尿処理施設での処理プロセスを含む場合には、当該し尿処理施設が位置する都道府県と市町村名、し尿処理施設名称を選択してください。該当するし尿処理施設が選択肢に無い場合は空欄で構いません。【選択式】 | F34: 都道府県
F35: 地方公共団体名
F36: し尿処理施設名称
C40: 詳細情報の入力（わかる範囲で入力ください）
A43: a 農業集落排水処理施設での一次処理 | B43: ①-1 | D43: Q6 農業集落排水処理施設の一次処理における処理方式または処理施設の型式がわかれば選択ください。【選択式】 | F43: 処理方式または処理施設の型式
A45: a 農業集落排水処理施設での一次処理 | B45: ①-２ | D45: Q7 農業集落排水処理施設の一次処理後の引き抜き汚泥の含水率（脱水前）(%)がわかれば入力ください。【手入力】 | F45: 引き抜き汚泥の含水率(%)

Sheet 【出力】結果出力シート（概要）
A1: 結果出力シート ver.1.0
A2: 農業用集落排水施設処理方法別の温室効果ガス排出量の比較（概要）
B4: ◆地区の概要
B5: 地区名 | C5: =【入力】ユーザー入力シート!G8 -> 0 | H5: 写真や図面等の貼付欄
B6: 施設名 | C6: =【入力】ユーザー入力シート!G9 -> 0
B7: 所在地 | C7: =【入力】ユーザー入力シート!G10&【入力】ユーザー入力シート!G11 -> 
B8: 処理人口 | C8: 計画 | D8: =【入力】ユーザー入力シート!G12 -> 0 | E8: 実績 | F8: =【入力】ユーザー入力シート!G13 -> 0
B9: 処理汚水量 | C9: 計画1日平均汚水量 | D9: =【入力】ユーザー入力シート!G14 -> 0 | E9: 実績年間汚水量 | F9: =【入力】ユーザー入力シート!G15 -> 0
B14: ◆農業集落排水施設汚泥処理に係る温室効果ガス排出量の算定・比較結果 | O14: 一般家庭一戸あたり(2.59t-CO2/戸）に換算した温室効果ガス排出量合計(戸/年)
E16: CO2換算排出量合計(kg-CO2/年) | F16: 引抜汚泥量1㎥あたりの排出量合計(kg-CO2/㎥/年) | L16: (参考）
B17: 現況の処理方法 | C17: =【出力・現況】GHG排出量算定シート!G8 -> 0 | E17: =【出力・現況】GHG排出量算定シート!G4*1000 ->  | F17: =E17/IF(【入力】ユーザー入力シート!$G$32=0,【出力・現況】GHG排出量算定シート!$I$33,【入力】ユーザー入力シート!$G$32) ->  | L17: 現況の処理方法 | M17: =C17 -> 0 | O17: =E17/2590 -> 
B18: 比較する処理方法① | C18: =【出力・比較対象1】GHG排出量算定シート!G8 ->  | E18: =【出力・比較対象1】GHG排出量算定シート!G4*1000 ->  | F18: =E18/IF(【入力】ユーザー入力シート!$G$32=0,【出力・現況】GHG排出量算定シート!$I$33,【入力】ユーザー入力シート!$G$32) ->  | L18: 比較する処理方法① | M18: =C18 ->  | O18: =E18/2590 -> 
B19: 比較する処理方法② | C19: =【出力・比較対象2】GHG排出量算定シート!G8 ->  | E19: =【出力・比較対象2】GHG排出量算定シート!G4*1000 ->  | F19: =E19/IF(【入力】ユーザー入力シート!$G$32=0,【出力・現況】GHG排出量算定シート!$I$33,【入力】ユーザー入力シート!$G$32) ->  | L19: 比較する処理方法②
H24: =TODAY() -> 2025-06-04

Sheet 【出力】結果出力シート（詳細）
A1: 結果出力シート ver.1.0
A2: 農業用集落排水施設処理方法別の温室効果ガス排出量の比較（詳細）
C4: ◆地区の概要
C5: 地区名 | D5: =【入力】ユーザー入力シート!G8 -> 0
C6: 施設名 | D6: =【入力】ユーザー入力シート!G9 -> 0
C7: 所在地 | D7: =【入力】ユーザー入力シート!G10&【入力】ユーザー入力シート!G11 -> 
C11: ◆農業集落排水施設汚泥処理に係る温室効果ガス排出量の算定・比較結果
E13: 現況の処理方法 | F13: 比較する処理方法① | G13: 比較する処理方法②
E14: =【出力・現況】GHG排出量算定シート!G8 -> 0 | F14: =【出力・比較対象1】GHG排出量算定シート!G8 ->  | G14: =【出力・比較対象2】GHG排出量算定シート!G8 -> 
A15: a | B15: 農業集落排水施設での一次処理 | E15: =【出力・現況】GHG排出量算定シート!L8 ->  | F15: =【出力・比較対象1】GHG排出量算定シート!L8 ->  | G15: =【出力・比較対象2】GHG排出量算定シート!L8 -> 
A16: b | B16: 濃縮後、別施設への運搬 | E16: =【出力・現況】GHG排出量算定シート!L9 ->  | F16: =【出力・比較対象1】GHG排出量算定シート!L9 ->  | G16: =【出力・比較対象2】GHG排出量算定シート!L9 -> 
A17: c | B17: し尿処理施設等での再一次処理 | E17: =【出力・現況】GHG排出量算定シート!L10 ->  | F17: =【出力・比較対象1】GHG排出量算定シート!L10 ->  | G17: =【出力・比較対象2】GHG排出量算定シート!L10 -> 
A18: d | B18: 脱水・乾燥 | E18: =【出力・現況】GHG排出量算定シート!L11 ->  | F18: =【出力・比較対象1】GHG排出量算定シート!L11 ->  | G18: =【出力・比較対象2】GHG排出量算定シート!L11 -> 
A19: e | B19: 脱水後、別施設への運搬 | E19: =【出力・現況】GHG排出量算定シート!L12 ->  | F19: =【出力・比較対象1】GHG排出量算定シート!L12 ->  | G19: =【出力・比較対象2】GHG排出量算定シート!L12 -> 
A20: f | B20: 乾燥 | E20: ※ | F20: ※ | G20: ※
A21: g | B21: 乾燥後、別施設への運搬 | E21: =【出力・現況】GHG排出量算定シート!L14 ->  | F21: =【出力・比較対象1】GHG排出量算定シート!L14 ->  | G21: =【出力・比較対象2】GHG排出量算定シート!L14 -> 
A22: h | B22: 焼却 | E22: =【出力・現況】GHG排出量算定シート!L15 ->  | F22: =【出力・比較対象1】GHG排出量算定シート!L15 ->  | G22: =【出力・比較対象2】GHG排出量算定シート!L15 -> 
A23: i | B23: 炭化 | E23: =【出力・現況】GHG排出量算定シート!L16 ->  | F23: =【出力・比較対象1】GHG排出量算定シート!L16 ->  | G23: =【出力・比較対象2】GHG排出量算定シート!L16 -> 
A24: j | B24: 焼却後、埋立施設への運搬 | E24: =【出力・現況】GHG排出量算定シート!L17 ->  | F24: =【出力・比較対象1】GHG排出量算定シート!L17 ->  | G24: =【出力・比較対象2】GHG排出量算定シート!L17 -> 
A25: k | B25: 焼却後、セメント工場への運搬 | E25: =【出力・現況】GHG排出量算定シート!L18 ->  | F25: =【出力・比較対象1】GHG排出量算定シート!L18 ->  | G25: =【出力・比較対象2】GHG排出量算定シート!L18 -> 
A26: l | B26: 肥料化(小計） | E26: =E27+E28 ->  | F26: =F27+F28 ->  | G26: =G27+G28 -> 
A27: l | C27: 肥料化（コンポスト） | E27: =【出力・現況】GHG排出量算定シート!L19 ->  | F27: =【出力・比較対象1】GHG排出量算定シート!L19 ->  | G27: =【出力・比較対象2】GHG排出量算定シート!L19 -> 
A28: l | C28: 肥料化による化学肥料の製造量削減に伴うCO2排出量の削減 | E28: =【出力・現況】GHG排出量算定シート!O19 -> 0 | F28: =【出力・比較対象1】GHG排出量算定シート!O19 -> 0 | G28: =【出力・比較対象2】GHG排出量算定シート!O19 -> 0
A29: m | B29: 焼却灰の埋立 | E29: =【出力・現況】GHG排出量算定シート!L20 ->  | F29: =【出力・比較対象1】GHG排出量算定シート!L20 ->  | G29: =【出力・比較対象2】GHG排出量算定シート!L20 -> 
A30: n | B30: 汚泥の直接埋立 | E30: =【出力・現況】GHG排出量算定シート!L21 ->  | F30: =【出力・比較対象1】GHG排出量算定シート!L21 ->  | G30: =【出力・比較対象2】GHG排出量算定シート!L21 -> 
A31: o | B31: 建設資材化（セメント化）（小計） | E31: =E32+E33 ->  | F31: =F32+F33 ->  | G31: =G32+G33 -> 
A32: o | C32: 建設資材化（セメント化） | E32: =【出力・現況】GHG排出量算定シート!L22 ->  | F32: =【出力・比較対象1】GHG排出量算定シート!L22 ->  | G32: =【出力・比較対象2】GHG排出量算定シート!L22 -> 
A33: o | C33: 建設資材化（セメント化）による石灰石焼成由来のCO2排出量の削減 | E33: =【出力・現況】GHG排出量算定シート!O22 ->  | F33: =【出力・比較対象1】GHG排出量算定シート!O22 ->  | G33: =【出力・比較対象2】GHG排出量算定シート!O22 -> 
B34: 合計（農業集落排水施設での一次処理を除く） | E34: =SUM(E16:E25,E26,E29:E30,E31) ->  | F34: =SUM(F16:F25,F26,F29:F30,F31) ->  | G34: =SUM(G16:G25,G26,G29:G30,G31) -> 
B35: 合計（全てのプロセスを含む） | E35: =SUM(E34,E15) ->  | F35: =SUM(F34,F15) ->  | G35: =SUM(G34,G15) -> 
G36: 単位：CO2換算排出量(kg-CO2/年)
C37: ※脱水・乾燥プロセスは同じ計算式内で同時に算出していることから、乾燥プロセスの数値は、脱水の計算値に含まれています。
J39: =TODAY() -> 2025-06-04
E41: =EXACT(ROUND('【出力】結果出力シート（概要）'!E17,5),ROUND('【出力】結果出力シート（詳細）'!E35,5)) ->  | F41: =EXACT(ROUND('【出力】結果出力シート（概要）'!E18,5),ROUND('【出力】結果出力シート（詳細）'!F35,5)) ->  | G41: =EXACT(ROUND('【出力】結果出力シート（概要）'!E19,5),ROUND('【出力】結果出力シート（詳細）'!G35,5)) -> 

Sheet 【出力・現況】GHG排出量算定シート
D2: 温室効果ガス排出量算定シート（現況の処理形態）
G3: 合計（現況の最終処理形態）
D4: プロセス | G4: =IF(G73>0,G73,IF(G89>0,G89,IF(G99>0,G99))) ->  | H4: t-CO2/年 | L4: =SUM(L8:O22)/1000 ->  | M4: =EXACT(ROUND(G4,5),ROUND(L4,5)) -> 
I5: 電気事業者毎の基礎排出係数（R4）
A6: 基本情報の入力 | D6: Q1 | E6: 地方電力会社 | G6: =【入力】ユーザー入力シート!G17 -> 0 | I6: =VLOOKUP(G6,電力CO2排出量原単位!$A$7:$C$16,3,FALSE) ->  | J6: ㎏-CO2/kWh
L7: kg-CO2/年
D8: Q2 | E8: 最終処理形態 | G8: =【入力】ユーザー入力シート!G20 -> 0 | L8: =SUM(O30,AE27,AM27) -> 
D9: Q3 | E9: 個別プロセスの有無 | G9: 濃縮後、別施設への運搬 | H9: 濃縮後、別施設への運搬 | I9: =IF(【入力】ユーザー入力シート!G25="","無",【入力】ユーザー入力シート!G25) -> 無 | L9: =SUM(X36,AE36,AM36) -> 
G10: し尿処理施設での一次処理 | H10: 再度一次処理 | I10: =IF(【入力】ユーザー入力シート!G26="","無",【入力】ユーザー入力シート!G26) -> 無 | L10: =SUM(O39,AE39,AM39) -> 
G11: 脱水 | H11: 脱水 | I11: =IF(【入力】ユーザー入力シート!G27="","無",【入力】ユーザー入力シート!G27) -> 無 | J11: =【入力】ユーザー入力シート!H27 -> 0 | L11: =SUM(O42) -> 
G12: 脱水後、別施設への運搬 | H12: 脱水後、別施設への運搬 | I12: =IF(【入力】ユーザー入力シート!G28="","無",【入力】ユーザー入力シート!G28) -> 無 | L12: =SUM(X45,AE45,AM45) -> 
G13: 乾燥 | H13: 乾燥 | I13: =IF(【入力】ユーザー入力シート!G29="","無",【入力】ユーザー入力シート!G29) -> 無
G14: 乾燥後、別施設への運搬 | H14: 乾燥後、別施設への運搬 | I14: =IF(【入力】ユーザー入力シート!G30="","無",【入力】ユーザー入力シート!G30) -> 無 | L14: =SUM(X48,AE48,AM48) -> 
G15: 焼却 | H15: 焼却 | I15: =IF(【入力】ユーザー入力シート!#REF!="","無",【入力】ユーザー入力シート!#REF!) ->  | J15: =IF(【入力】ユーザー入力シート!#REF!="","焼却施設",【入力】ユーザー入力シート!#REF!) ->  | L15: =IF(OR(J15="焼却施設",J15="その他",J15=0),SUM(O54,AE54,AM54),SUM(O51,AE54,AM54)) -> 
G16: 炭化 | H16: 炭化 | I16: =IF(【入力】ユーザー入力シート!#REF!="","無",【入力】ユーザー入力シート!#REF!) ->  | L16: =SUM(O57) -> 
G17: 焼却後、埋立施設への運搬 | H17: 焼却後、埋立施設への運搬 | I17: =IF(【入力】ユーザー入力シート!#REF!="","無",【入力】ユーザー入力シート!#REF!) ->  | L17: =SUM(X60,AE60,AM60) -> 
G18: 焼却後、セメント工場への運搬 | H18: 焼却後、セメント工場への運搬 | I18: =IF(【入力】ユーザー入力シート!#REF!="","無",【入力】ユーザー入力シート!#REF!) ->  | L18: =SUM(O63) -> 
G19: コンポスト化 | H19: コンポスト化 | I19: =IF(【入力】ユーザー入力シート!#REF!="","無",【入力】ユーザー入力シート!#REF!) ->  | L19: =SUM(O67,AE67,AM67) ->  | M19: 化学肥料の製造量削減に伴うCO2排出量の削減 | O19: =O70 -> 0
G20: 焼却灰の埋立 | H20: 焼却灰の埋立 | I20: =IF(【入力】ユーザー入力シート!#REF!="","無",【入力】ユーザー入力シート!#REF!) ->  | L20: =SUM(O80) -> 
G21: 汚泥の直接埋立 | H21: 汚泥の直接埋立 | I21: =IF(【入力】ユーザー入力シート!#REF!="","無",【入力】ユーザー入力シート!#REF!) ->  | L21: =SUM(O83,AE86) -> 
G22: 建設資材化（セメント化） | H22: 建設資材化（セメント化） | I22: =IF(【入力】ユーザー入力シート!#REF!="","無",【入力】ユーザー入力シート!#REF!) ->  | L22: =SUM(O93) ->  | M22: セメント化による石灰石焼成由来のCO2排出量の削減 | O22: =O96 -> 
C24: 取扱量 | K24: CO2排出量の算定 | AA24: CH4排出量の算定 | AH24: N2O排出量の算定
A26: ①一次処理_農業集落排水処理施設 | D26: ①-0 | E26: 処理量 | G26: 実績処理人口 | AB26: 処理排出係数【CH4】 | AE26: 排出量【CH4】 | AJ26: 処理排出係数【N2O】 | AM26: 排出量【N2O】
G27: =【入力】ユーザー入力シート!G13 -> 0 | H27: 人 | AA27: × | AB27: =温対法排出原単位!C86 -> 0.59 | AC27: kg-CH4/人 | AD27: ⇒ | AE27: =AB27*G27*28 -> 0 | AF27: kg-CO2 | AI27: × | AJ27: =温対法排出原単位!C158 -> 0.023 | AK27: kg-N2O/人 | AL27: ⇒ | AM27: =AJ27*G27*265 -> 0 | AN27: kg-CO2
D29: ①-1 | E29: 生物処理 | G29: 処理方式 | L29: 生物処理排出係数【CO2】 | O29: 排出量【CO2】
G30: =IF(【入力】ユーザー入力シート!G43=0,"その他、または設置機器が不明",【入力】ユーザー入力シート!G43) -> その他、または設置機器が不明 | L30: =VLOOKUP(G30,一次処理電力使用量!B4:D10,3,FALSE)*I6 ->  | M30: kg-CO2/年・人 | N30: ⇒ | O30: =L30*G27 ->  | P30: kg-CO2/年
D32: ①-2 | E32: 汚泥の引き抜き | G32: 引き抜き汚泥の含水率(%) | I32: 引き抜き汚泥の体積
G33: =IF(【入力】ユーザー入力シート!G45>0,【入力】ユーザー入力シート!G45,VLOOKUP(G30,一次処理活動量!B4:D10,3,FALSE)) -> 98.25 | I33: =IF(【入力】ユーザー入力シート!G32=0,VLOOKUP(G30,一次処理活動量!B4:E10,4)*365/1000*G27/1000*100/(100-G33),【入力】ユーザー入力シート!G32) -> 0 | J33: ㎥/年
A35: ②-1 運搬（その1） | D35: ②-1 | E35: 濃縮後別施設への運搬 | G35: バキューム車/トラック（型式） | I35: 汚泥の体積 | L35: バキュームカー積載量 | O35: バキュームカー台数 | R35: 施設間距離（往復） | U35: 運搬排出係数【CO2】 | X35: 排出量【CO2】 | AB35: 運搬排出係数【CH4】 | AE35: 排出量【CH4】 | AJ35: 運搬排出係数【N2O】 | AM35: 排出量【N2O】
G36: =IF(【入力】ユーザー入力シート!#REF!="",トラックバキューム車!B6,【入力】ユーザー入力シート!#REF!) ->  | I36: =IF(I9="有",I33,0) -> 0 | J36: ㎥/年 | K36: ÷ | L36: =VLOOKUP(G36,トラックバキューム車!$B$4:$E$11,5,FALSE) ->  | M36: ㎥/台 | N36: ⇒ | O36: =IF(【入力】ユーザー入力シート!#REF!>0,【入力】ユーザー入力シート!#REF!,ROUNDUP(I36/L36,0)) ->  | P36: 台 | Q36: × | R36: =_xlfn.IFS(AND(I9="有",【入力】ユーザー入力シート!#REF!<>""),【入力】ユーザー入力シート!#REF!*2,AND(I9="有",【入力】ユーザー入力シート!#REF!=""),11.9*2,I9="無",0) ->  | S36: km | T36: × | U36: =VLOOKUP(G36,トラックバキューム車!$B$4:$D$11,3,FALSE) ->  | V36: kg-CO2/km | W36: ⇒ | X36: =O36*R36*U36 ->  | Y36: kg-CO2 | AA36: × | AB36: =VLOOKUP($G36,トラックバキューム車!$B$4:$H$11,7,FALSE) ->  | AC36: kg-CH4/km | AD36: ⇒ | AE36: =O36*R36*AB36*28 ->  | AF36: kg-CO2 | AI36: × | AJ36: =VLOOKUP($G36,トラックバキューム車!$B$4:$H$11,8,FALSE) ->  | AK36: kg-N2O/km | AL36: ⇒ | AM36: =O36*R36*AJ36*265 ->  | AN36: kg-CO2
A38: ③-1 二次処理-再度の一次処理 | D38: ③-1 | E38: 再度の一次処理 | I38: 引き抜き汚泥の体積 | L38: 排出係数【CO2】 | O38: 排出量 | AB38: 処理排出係数【CH4】 | AE38: 排出量【CH4】 | AJ38: 処理排出係数【N2O】 | AM38: 排出量【N2O】
I39: =IF(I10="有",I33,0) -> 0 | J39: ㎥/年 | K39: × | L39: =し尿処理施設推定式!AA10*I6 ->  | M39: kg-CO2/㎥ | N39: ⇒ | O39: =I39*L39 ->  | P39: kg-CO2 | AA39: × | AB39: =温対法排出原単位!C85 -> 0.038 | AC39: kg-CH4/㎥ | AD39: ⇒ | AE39: =AB39*I39*28 -> 0 | AF39: kg-CO2 | AI39: × | AJ39: =温対法排出原単位!C157 -> 0.00093 | AK39: kg-N2O/㎥ | AL39: ⇒ | AM39: =AJ39*I39*265 -> 0 | AN39: kg-CO2
A41: ③-2 二次処理-脱水 | D41: ③-2 | E41: 脱水・乾燥 | I41: 引き抜き汚泥の体積 | L41: 排出係数【CO2】 | O41: 排出量
I42: =I33 -> 0 | J42: ㎥/年 | K42: × | L42: =し尿処理施設推定式!AC10 ->  | M42: kg-CO2/㎥ | N42: ⇒ | O42: =I42*L42 ->  | P42: kg-CO2
A44: ②-2 運搬（その2） | D44: ②-2 | E44: 脱水後、別処理施設への運搬 | G44: バキューム車/トラック（型式） | I44: 汚泥の体積 | L44: バキュームカー積載量 | O44: バキュームカー台数 | R44: 施設間距離（往復） | U44: 運搬排出係数【CO2】 | X44: 排出量【CO2】 | AB44: 運搬排出係数【CH4】 | AE44: 排出量【CH4】 | AJ44: 運搬排出係数【N2O】 | AM44: 排出量【N2O】
G45: =IF(【入力】ユーザー入力シート!#REF!="",トラックバキューム車!B9,【入力】ユーザー入力シート!#REF!) ->  | I45: =IF(I12="有",I42*(100-G33)/100*100/15,0) -> 0 | J45: ㎥/年 | K45: ÷ | L45: =VLOOKUP(G45,トラックバキューム車!$B$4:$E$11,5,FALSE) ->  | M45: ㎥/台 | N45: ⇒ | O45: =ROUNDUP(I45/L45,0) ->  | P45: 台 | Q45: × | R45: =_xlfn.IFS(AND(I12="有",【入力】ユーザー入力シート!#REF!<>""),【入力】ユーザー入力シート!#REF!*2,AND(I12="有",【入力】ユーザー入力シート!#REF!=""),14.35*2,I12="無",0) ->  | S45: km | T45: × | U45: =VLOOKUP(G45,トラックバキューム車!$B$4:$D$11,3,FALSE) ->  | V45: kg-CO2/km | W45: ⇒ | X45: =O45*R45*U45 ->  | Y45: kg-CO2 | AA45: × | AB45: =VLOOKUP($G45,トラックバキューム車!$B$4:$H$11,7,FALSE) ->  | AC45: kg-CH4/km | AD45: ⇒ | AE45: =O45*R45*AB45*28 ->  | AF45: kg-CO2 | AI45: × | AJ45: =VLOOKUP($G45,トラックバキューム車!$B$4:$H$11,8,FALSE) ->  | AK45: kg-N2O/km | AL45: ⇒ | AM45: =O45*R45*AJ45*265 ->  | AN45: kg-CO2
A47: ②-3 運搬（その3） | D47: ②-3 | E47: 乾燥後、別処理施設への運搬 | G47: バキューム車/トラック（型式） | I47: 汚泥の体積 | L47: バキュームカー積載量 | O47: バキュームカー台数 | R47: 施設間距離（往復） | U47: 運搬排出係数【CO2】 | X47: 排出量【CO2】 | AB47: 運搬排出係数【CH4】 | AE47: 排出量【CH4】 | AJ47: 運搬排出係数【N2O】 | AM47: 排出量【N2O】
G48: =IF(【入力】ユーザー入力シート!#REF!="",トラックバキューム車!B10,【入力】ユーザー入力シート!#REF!) ->  | I48: =IF(I14="有",I42*(100-G33)/100*100/60,0) -> 0 | J48: ㎥/年 | K48: ÷ | L48: =VLOOKUP(G48,トラックバキューム車!$B$4:$E$11,5,FALSE) ->  | M48: ㎥/台 | N48: ⇒ | O48: =ROUNDUP(I48/L48,0) ->  | P48: 台 | Q48: × | R48: =_xlfn.IFS(AND(I14="有",【入力】ユーザー入力シート!#REF!<>""),【入力】ユーザー入力シート!#REF!*2,AND(I14="有",【入力】ユーザー入力シート!#REF!=""),40*2,I14="無",0) ->  | S48: km | T48: × | U48: =VLOOKUP(G48,トラックバキューム車!$B$4:$D$11,3,FALSE) ->  | V48: kg-CO2/km | W48: ⇒ | X48: =O48*R48*U48 ->  | Y48: kg-CO2 | AA48: × | AB48: =VLOOKUP($G48,トラックバキューム車!$B$4:$H$11,7,FALSE) ->  | AC48: kg-CH4/km | AD48: ⇒ | AE48: =O48*R48*AB48*28 ->  | AF48: kg-CO2 | AI48: × | AJ48: =VLOOKUP($G48,トラックバキューム車!$B$4:$H$11,8,FALSE) ->  | AK48: kg-N2O/km | AL48: ⇒ | AM48: =O48*R48*AJ48*265 ->  | AN48: kg-CO2
A50: ③-3 二次処理-焼却 | D50: ③-3 | E50: 焼却（し尿処理施設） | I50: 引き抜き汚泥の体積 | L50: 排出係数【CO2】 | O50: 排出量 | AA50: この青枠部分は焼却（ごみ処理場の欄で計算）
I51: =IF(AND(I15="有",J15="し尿処理施設"),I42,0) ->  | J51: ㎥/年 | K51: × | L51: =し尿処理施設推定式!AE10 ->  | M51: kg-CO2/㎥ | N51: ⇒ | O51: =I51*L51 ->  | P51: kg-CO2
A53: ③-3 二次処理-焼却 | D53: ③-3 | E53: 焼却（ごみ処理施設） | I53: 汚泥の重量 | L53: 焼却排出係数【CO2】 | O53: 排出量【CO2】 | AB53: 焼却排出係数【CH4】 | AE53: 排出量【CH4】 | AJ53: 焼却排出係数【N2O】 | AM53: 排出量【N2O】
I54: =IF(I15="無",0,IF(I13="有",I42*(100-G33)/100*100/60,IF(I11="有",I42*(100-G33)/100*100/15,I33))) ->  | J54: t/年 | K54: × | L54: =IF(AND(I15="有",J15<>"し尿処理施設"),485*0.0294*44/12+(63*I6),0) ->  | M54: kg-CO2/t | N54: ⇒ | O54: =IF(J15="し尿処理施設",0,I54*L54) ->  | P54: kg-CO2/年 | AA54: × | AB54: =焼却のCH4とN2O!H6 -> 0.02467112403 | AC54: kg-CH4/t | AD54: ⇒ | AE54: =I54*AB54*28 ->  | AF54: kg-CO2 | AI54: × | AJ54: =焼却のCH4とN2O!H12 -> 0.05868914729 | AK54: kg-N2O/t | AL54: ⇒ | AM54: =I54*AJ54*265 ->  | AN54: kg-CO2
A56: ③-4 二次処理-炭化 | D56: ③-4 | E56: 炭化 | I56: 汚泥の体積 | L56: 排出係数【CO2】 | O56: 排出量
I57: =IF(I16="無",0,IF(I13="有",I42*(100-G33)/100*100/60,IF(I11="有",I42*(100-G33)/100*100/15,I33))) ->  | J57: t/年 | K57: × | L57: =1225*0.0294*44/12+365*I6 ->  | M57: kg-CO2/t | N57: ⇒ | O57: =I57*L57 ->  | P57: kg-CO2
A59: ②-4 運搬（その4） | D59: ②-4 | E59: 焼却後、埋立施設への運搬 | G59: トラック（型式） | I59: 焼却灰の体積 | L59: バキュームカー積載量 | O59: バキュームカー台数 | R59: 施設間距離（往復） | U59: 運搬排出係数【CO2】 | X59: 排出量【CO2】 | AB59: 運搬排出係数【CH4】 | AE59: 排出量【CH4】 | AJ59: 運搬排出係数【N2O】 | AM59: 排出量【N2O】
G60: =IF(【入力】ユーザー入力シート!#REF!="",トラックバキューム車!B11,【入力】ユーザー入力シート!#REF!) ->  | I60: =IF(I17="無",0,I33*(100-G33)/100*(1-VLOOKUP(G30,一次処理活動量!$B$4:$F$10,5,FALSE))) ->  | J60: ㎥/年 | K60: ÷ | L60: =VLOOKUP(G60,トラックバキューム車!$B$4:$E$11,5,FALSE) ->  | M60: ㎥/台 | N60: ⇒ | O60: =ROUNDUP(I60/L60,0) ->  | P60: 台 | Q60: × | R60: =_xlfn.IFS(AND(I17="有",【入力】ユーザー入力シート!#REF!<>""),【入力】ユーザー入力シート!#REF!*2,AND(I17="有",【入力】ユーザー入力シート!#REF!=""),8.55*2,I17="無",0) ->  | S60: km | T60: × | U60: =VLOOKUP(G60,トラックバキューム車!$B$4:$D$11,3,FALSE) ->  | V60: kg-CO2/km | W60: ⇒ | X60: =O60*R60*U60 ->  | Y60: kg-CO2 | AA60: × | AB60: =VLOOKUP($G60,トラックバキューム車!$B$4:$H$11,7,FALSE) ->  | AC60: kg-CH4/km | AD60: ⇒ | AE60: =O60*R60*AB60*28 ->  | AF60: kg-CO2 | AI60: × | AJ60: =VLOOKUP($G60,トラックバキューム車!$B$4:$H$11,8,FALSE) ->  | AK60: kg-N2O/km | AL60: ⇒ | AM60: =O60*R60*AJ60*265 ->  | AN60: kg-CO2
A62: ②-5 運搬（その5） | D62: ②-5 | E62: 焼却後、セメント工場への運搬 | I62: 焼却灰の重量 | L62: 焼却排出係数【CO2】 | O62: 排出量【CO2】
I63: =IF(I18="無",0,I33*(100-G33)/100*(1-VLOOKUP(G30,一次処理活動量!$B$4:$F$10,5,FALSE))) ->  | J63: t/年 | K63: × | L63: 26 | M63: kg-CO2/t | N63: ⇒ | O63: =I63*L63 ->  | P63: kg-CO2/年
A66: ④-1 最終処理_農地還元 | D66: ④-1-1 | E66: コンポスト化 | I66: 汚泥の重量 | L66: コンポスト化排出係数【CO2】 | O66: 排出量 | AB66: コンポスト化排出係数【CH4】 | AE66: 排出量 | AJ66: コンポスト化排出係数【N2O】 | AM66: 排出量
I67: =IF(I19="無",0,IF(I13="有",I42*(100-G33)/100*100/60,IF(I11="有",I42*(100-G33)/100*100/15,I33))) ->  | J67: t/年 | K67: × | L67: =128*0.0187*44/12+93*I6 ->  | M67: kg-CO2/t | N67: ⇒ | O67: =I67*L67 ->  | P67: kg-CO2 | AA67: × | AB67: =0.00096 -> 0.00096 | AC67: kg-CH4/wet-kg | AD67: ⇒ | AE67: =I67*AB67*1000*28 ->  | AF67: kg-CO2 | AI67: × | AJ67: =0.00027 -> 0.00027 | AK67: kg-N2O/wet-kg | AL67: ⇒ | AM67: =I67*AJ67*1000*265 ->  | AN67: kg-CO2
D69: ④-1-2 | E69: 化学肥料の製造量削減に伴うCO2排出量の削減 | I69: 肥料の量（or体積） | L69: 化学肥料排出係数【CO2】 | O69: 排出量【CO2】
I70: =IFERROR(_xlfn.IFS(G8=選択肢!G3,I42*(100-G33)/100*100/15,OR(G8=選択肢!G4,G8=選択肢!G6,G8=選択肢!G7),I42*(100-G33)/100*100/60),0) -> 0 | J70: t/年 | K70: × | L70: =-IFERROR(_xlfn.IFS(G8=選択肢!G3,化学肥料!$R$5,G8=選択肢!G4,化学肥料!$R$6,OR(G8=選択肢!G7,G8=選択肢!G6),化学肥料!$R$7),0) -> 0 | M70: kg-CO2/kg | N70: ⇒ | O70: =L70*I70*1000 -> 0 | P70: kg-CO2/年
D72: 農地還元合計 | G72: 合計排出量【CO2+CH4＋N2O】 | O72: 合計排出量【CO2】 | AE72: 合計排出量【CH4】 | AM72: 合計排出量【N2O】
G73: =(O73+AE73+AM73)/1000 -> 0 | H73: t-CO2/年 | O73: =IF(COUNTIF(G8,"農地還元*")=1,O30+X36+O39+O42+X45+X48+O51+O54+O57+O67+O70,0) -> 0 | P73: kg-CO2/年 | AE73: =IF(COUNTIF(G8,"農地還元*")=1,AE27+AE36+AE39+AE48+AE45+AE54+AE67,0) -> 0 | AF73: kg-CO2 | AM73: =IF(COUNTIF(G8,"農地還元*")=1,AM27+AM36+AM39+AM48+AM45+AM54+AM67,0) -> 0 | AN73: kg-CO2
A79: ④-2 最終処理_埋立 | D79: ④-2-1 | E79: 焼却灰の埋立 | I79: 焼却灰の重量 | L79: 埋立処理排出係数【CO2】 | O79: 排出量【CO2】
I80: =IF(I20="無",0,I33*(100-G33)/100*(1-VLOOKUP(G30,一次処理活動量!$B$4:$F$10,5,FALSE))) ->  | J80: t/年 | K80: × | L80: =0.67*27^0.68+5.38*27^0.81 -> 83.95902313 | M80: kg-CO2/t | N80: ⇒ | O80: =I80*L80 ->  | P80: kg-CO2/年
D82: ④-2-2 | E82: 汚泥の直接埋立 | I82: 汚泥の重量 | L82: 埋立処理排出係数【CO2】 | O82: 排出量【CO2】
I83: =IF(I21="無",0,IF(I13="有",I42*(100-G33)/100*100/60,IF(I11="有",I42*(100-G33)/100*100/15,I33))) ->  | J83: t/年 | K83: × | L83: =0.67*27^0.68+5.38*27^0.81 -> 83.95902313 | M83: kg-CO2/t | N83: ⇒ | O83: =IF(I13="無",I83*100/15*L83/1000,I83*100/60*L83/1000) ->  | P83: kg-CO2/年
I85: 汚泥の乾重量 | AB85: 埋立排出係数【CH4】 | AE85: 排出量【CH4】
I86: =IF(I21="無",0,I33*(100-G33)/100) ->  | J86: kg-DS/年 | AA86: × | AB86: 0.0667 | AC86: kg-CH4/kg-DS | AD86: ⇒ | AE86: =AB86*I86*28*1000 ->  | AF86: kg-CO2
D88: 埋立合計 | G88: 合計排出量【CO2+CH4＋N2O】 | O88: 合計排出量【CO2】 | AE88: 合計排出量【CH4】 | AM88: 合計排出量【N2O】
G89: =(O89+AE89+AM89)/1000 ->  | H89: t-CO2/年 | O89: =IF(OR(I20="有",I21="有"),O30+X36+O39+O42+X45+X48+O51+O54+O57+X60+O80+O83,0) ->  | P89: kg-CO2/年 | AE89: =IF(OR(I20="有",I21="有"),AE27+AE36+AE39+AE45+AE54+AE60+AE48+AE86,0) ->  | AF89: kg-CO2 | AM89: =IF(OR(I20="有",I21="有"),AM27+AM48+AM36+AM39+AM45+AM54+AM60,0) ->  | AN89: kg-CO2
A92: ④-3 最終処理_建設資材化 | D92: ④-3-1 | E92: セメント化 | I92: 焼却灰の重量 | L92: セメント化排出係数【CO2】 | O92: 排出量【CO2】
I93: =IF(I22="無",0,I33*(100-G33)/100*(1-VLOOKUP(G30,一次処理活動量!$B$4:$F$10,5,FALSE))) ->  | J93: t/年 | K93: × | L93: =1/0.22*275 -> 1250 | M93: kg-CO2/t | N93: ⇒ | O93: =I93*L93 ->  | P93: kg-CO2/年
D95: ④-3-2 | E95: セメント化による石灰石焼成由来のCO2排出量の削減 | I95: 焼却灰の重量 | L95: セメント化排出係数【CO2】 | O95: 排出量【CO2】
I96: =IF(I22="無",0,I33*(100-G33)/100*(1-VLOOKUP(G30,一次処理活動量!$B$4:$F$10,5,FALSE))) ->  | J96: t/年 | K96: × | L96: =(-(7.4+12.5)/2/100*0.785-(3.5+3.8)/2/100*1.092)*1000 -> -117.9655 | M96: kg-CO2/t | N96: ⇒ | O96: =I96*L96 ->  | P96: kg-CO2/年
D98: 建設資材化合計 | G98: 合計排出量【CO2+CH4＋N2O】 | O98: 合計排出量【CO2】 | AE98: 合計排出量【CH4】 | AM98: 合計排出量【N2O】
G99: =(O99+AE99+AM99)/1000 ->  | H99: t-CO2/年 | O99: =IF(I22="有",O30+X36+O39+O42+X45+X48+O51+O54+O57+O63+O93+O96,0) ->  | P99: kg-CO2/年 | AE99: =IF(I22="有",AE27+AE36+AE39+AE45+AE54+AE60+AE48,0) ->  | AF99: kg-CO2 | AM99: =IF(I22="有",AM27+AM48+AM36+AM39+AM45+AM54+AM60,0) ->  | AN99: kg-CO2

Sheet 【出力・比較対象1】GHG排出量算定シート
D2: 温室効果ガス排出量算定シート（比較する処理方法①）
G3: 合計（比較する処理方法①）
D4: プロセス | G4: =IF(G73>0,G73,IF(G89>0,G89,IF(G99>0,G99))) ->  | H4: t-CO2/年 | L4: =SUM(L8:O22)/1000 ->  | M4: =EXACT(ROUND(G4,5),ROUND(L4,5)) -> 
I5: 電気事業者毎の基礎排出係数（R4）
A6: 基本情報の入力 | D6: Q1 | E6: 地方電力会社 | G6: =【入力】ユーザー入力シート!G17 -> 0 | I6: =VLOOKUP(G6,電力CO2排出量原単位!$A$7:$C$16,3,FALSE) ->  | J6: ㎏-CO2/kWh
L7: kg-CO2/年
D8: Q2 | E8: 最終処理形態 | G8: =IF(【入力】ユーザー入力シート!H21="",【入力】ユーザー入力シート!H20,【入力】ユーザー入力シート!H21) ->  | L8: =SUM(O30,AE27,AM27) -> 
D9: Q3 | E9: 個別プロセスの有無 | G9: 濃縮後、別施設への運搬 | H9: 濃縮後、別施設への運搬 | I9: =IF(COUNTIF(【入力】ユーザー入力シート!$G$20,"農地還元*")=1,INDEX(プロセスと比較対象!$F$7:$M$20,MATCH(G9,プロセスと比較対象!#REF!,0),MATCH($G$8,プロセスと比較対象!$F$6:$M$6,0)),INDEX(プロセスと比較対象!$F$23:$M$36,MATCH(G9,プロセスと比較対象!#REF!,0),MATCH($G$8,プロセスと比較対象!$F$22:$M$22,0))) ->  | L9: =SUM(X36,AE36,AM36) -> 
G10: し尿処理施設での一次処理 | H10: 再度一次処理 | I10: =IF(COUNTIF(【入力】ユーザー入力シート!$G$20,"農地還元*")=1,INDEX(プロセスと比較対象!$F$7:$M$20,MATCH(G10,プロセスと比較対象!#REF!,0),MATCH($G$8,プロセスと比較対象!$F$6:$M$6,0)),INDEX(プロセスと比較対象!$F$23:$M$36,MATCH(G10,プロセスと比較対象!#REF!,0),MATCH($G$8,プロセスと比較対象!$F$22:$M$22,0))) ->  | L10: =SUM(O39,AE39,AM39) -> 
G11: 脱水 | H11: 脱水 | I11: =IF(COUNTIF(【入力】ユーザー入力シート!$G$20,"農地還元*")=1,INDEX(プロセスと比較対象!$F$7:$M$20,MATCH(G11,プロセスと比較対象!#REF!,0),MATCH($G$8,プロセスと比較対象!$F$6:$M$6,0)),INDEX(プロセスと比較対象!$F$23:$M$36,MATCH(G11,プロセスと比較対象!#REF!,0),MATCH($G$8,プロセスと比較対象!$F$22:$M$22,0))) ->  | J11: =IF(COUNTIF(【入力】ユーザー入力シート!$G$20,"農地還元*")=1,INDEX(プロセスと比較対象!$F$38:$M$40,2,MATCH($G$8,プロセスと比較対象!$F$6:$M$6,0)),INDEX(プロセスと比較対象!$F$38:$M$40,3,MATCH($G$8,プロセスと比較対象!$F$6:$M$6,0))) ->  | L11: =SUM(O42) -> 
G12: 脱水後、別施設への運搬 | H12: 脱水後、別施設への運搬 | I12: =IF(COUNTIF(【入力】ユーザー入力シート!$G$20,"農地還元*")=1,INDEX(プロセスと比較対象!$F$7:$M$20,MATCH(G12,プロセスと比較対象!#REF!,0),MATCH($G$8,プロセスと比較対象!$F$6:$M$6,0)),INDEX(プロセスと比較対象!$F$23:$M$36,MATCH(G12,プロセスと比較対象!#REF!,0),MATCH($G$8,プロセスと比較対象!$F$22:$M$22,0))) ->  | L12: =SUM(X45,AE45,AM45) -> 
G13: 乾燥 | H13: 乾燥 | I13: =IF(COUNTIF(【入力】ユーザー入力シート!$G$20,"農地還元*")=1,INDEX(プロセスと比較対象!$F$7:$M$20,MATCH(G13,プロセスと比較対象!#REF!,0),MATCH($G$8,プロセスと比較対象!$F$6:$M$6,0)),INDEX(プロセスと比較対象!$F$23:$M$36,MATCH(G13,プロセスと比較対象!#REF!,0),MATCH($G$8,プロセスと比較対象!$F$22:$M$22,0))) -> 
G14: 乾燥後、別施設への運搬 | H14: 乾燥後、別施設への運搬 | I14: =IF(COUNTIF(【入力】ユーザー入力シート!$G$20,"農地還元*")=1,INDEX(プロセスと比較対象!$F$7:$M$20,MATCH(G14,プロセスと比較対象!#REF!,0),MATCH($G$8,プロセスと比較対象!$F$6:$M$6,0)),INDEX(プロセスと比較対象!$F$23:$M$36,MATCH(G14,プロセスと比較対象!#REF!,0),MATCH($G$8,プロセスと比較対象!$F$22:$M$22,0))) ->  | L14: =SUM(X48,AE48,AM48) -> 
G15: 焼却 | H15: 焼却 | I15: =IF(COUNTIF(【入力】ユーザー入力シート!$G$20,"農地還元*")=1,INDEX(プロセスと比較対象!$F$7:$M$20,MATCH(G15,プロセスと比較対象!#REF!,0),MATCH($G$8,プロセスと比較対象!$F$6:$M$6,0)),INDEX(プロセスと比較対象!$F$23:$M$36,MATCH(G15,プロセスと比較対象!#REF!,0),MATCH($G$8,プロセスと比較対象!$F$22:$M$22,0))) ->  | J15: =IF(【入力】ユーザー入力シート!#REF!="","焼却施設",【入力】ユーザー入力シート!#REF!) ->  | L15: =IF(OR(J15="焼却施設",J15="その他"),SUM(O54,AE54,AM54),SUM(O51,AE54,AM54)) -> 
G16: 炭化 | H16: 炭化 | I16: =IF(COUNTIF(【入力】ユーザー入力シート!$G$20,"農地還元*")=1,INDEX(プロセスと比較対象!$F$7:$M$20,MATCH(G16,プロセスと比較対象!#REF!,0),MATCH($G$8,プロセスと比較対象!$F$6:$M$6,0)),INDEX(プロセスと比較対象!$F$23:$M$36,MATCH(G16,プロセスと比較対象!#REF!,0),MATCH($G$8,プロセスと比較対象!$F$22:$M$22,0))) ->  | L16: =SUM(O57) -> 
G17: 焼却後、埋立施設への運搬 | H17: 焼却後、埋立施設への運搬 | I17: =IF(COUNTIF(【入力】ユーザー入力シート!$G$20,"農地還元*")=1,INDEX(プロセスと比較対象!$F$7:$M$20,MATCH(G17,プロセスと比較対象!#REF!,0),MATCH($G$8,プロセスと比較対象!$F$6:$M$6,0)),INDEX(プロセスと比較対象!$F$23:$M$36,MATCH(G17,プロセスと比較対象!#REF!,0),MATCH($G$8,プロセスと比較対象!$F$22:$M$22,0))) ->  | L17: =SUM(X60,AE60,AM60) -> 
G18: 焼却後、セメント工場への運搬 | H18: 焼却後、セメント工場への運搬 | I18: =IF(COUNTIF(【入力】ユーザー入力シート!$G$20,"農地還元*")=1,INDEX(プロセスと比較対象!$F$7:$M$20,MATCH(G18,プロセスと比較対象!#REF!,0),MATCH($G$8,プロセスと比較対象!$F$6:$M$6,0)),INDEX(プロセスと比較対象!$F$23:$M$36,MATCH(G18,プロセスと比較対象!#REF!,0),MATCH($G$8,プロセスと比較対象!$F$22:$M$22,0))) ->  | L18: =SUM(O63) -> 
G19: コンポスト化 | H19: コンポスト化 | I19: =IF(COUNTIF(【入力】ユーザー入力シート!$G$20,"農地還元*")=1,INDEX(プロセスと比較対象!$F$7:$M$20,MATCH(G19,プロセスと比較対象!#REF!,0),MATCH($G$8,プロセスと比較対象!$F$6:$M$6,0)),INDEX(プロセスと比較対象!$F$23:$M$36,MATCH(G19,プロセスと比較対象!#REF!,0),MATCH($G$8,プロセスと比較対象!$F$22:$M$22,0))) ->  | L19: =SUM(O67,AE67,AM67) ->  | M19: 化学肥料の製造量削減に伴うCO2排出量の削減 | O19: =O70 -> 0
G20: 焼却灰の埋立 | H20: 焼却灰の埋立 | I20: =IF(COUNTIF(【入力】ユーザー入力シート!$G$20,"農地還元*")=1,INDEX(プロセスと比較対象!$F$7:$M$20,MATCH(G20,プロセスと比較対象!#REF!,0),MATCH($G$8,プロセスと比較対象!$F$6:$M$6,0)),INDEX(プロセスと比較対象!$F$23:$M$36,MATCH(G20,プロセスと比較対象!#REF!,0),MATCH($G$8,プロセスと比較対象!$F$22:$M$22,0))) ->  | L20: =SUM(O80) -> 
G21: 汚泥の直接埋立 | H21: 汚泥の直接埋立 | I21: =IF(COUNTIF(【入力】ユーザー入力シート!$G$20,"農地還元*")=1,INDEX(プロセスと比較対象!$F$7:$M$20,MATCH(G21,プロセスと比較対象!#REF!,0),MATCH($G$8,プロセスと比較対象!$F$6:$M$6,0)),INDEX(プロセスと比較対象!$F$23:$M$36,MATCH(G21,プロセスと比較対象!#REF!,0),MATCH($G$8,プロセスと比較対象!$F$22:$M$22,0))) ->  | L21: =SUM(O83,AE86) -> 
G22: 建設資材化（セメント化） | H22: 建設資材化（セメント化） | I22: =IF(COUNTIF(【入力】ユーザー入力シート!$G$20,"農地還元*")=1,INDEX(プロセスと比較対象!$F$7:$M$20,MATCH(G22,プロセスと比較対象!#REF!,0),MATCH($G$8,プロセスと比較対象!$F$6:$M$6,0)),INDEX(プロセスと比較対象!$F$23:$M$36,MATCH(G22,プロセスと比較対象!#REF!,0),MATCH($G$8,プロセスと比較対象!$F$22:$M$22,0))) ->  | L22: =SUM(O93) ->  | M22: セメント化による石灰石焼成由来のCO2排出量の削減 | O22: =O96 -> 
C24: 取扱量 | K24: CO2排出量の算定 | AA24: CH4排出量の算定 | AH24: N2O排出量の算定
A26: ①一次処理_農業集落排水処理施設 | D26: ①-0 | E26: 処理量 | G26: 実績処理人口 | AB26: 処理排出係数【CH4】 | AE26: 排出量【CH4】 | AJ26: 処理排出係数【N2O】 | AM26: 排出量【N2O】
G27: =【入力】ユーザー入力シート!G13 -> 0 | H27: 人 | AA27: × | AB27: =温対法排出原単位!C86 -> 0.59 | AC27: kg-CH4/人 | AD27: ⇒ | AE27: =AB27*G27*28 -> 0 | AF27: kg-CO2 | AI27: × | AJ27: =温対法排出原単位!C158 -> 0.023 | AK27: kg-N2O/人 | AL27: ⇒ | AM27: =AJ27*G27*265 -> 0 | AN27: kg-CO2
D29: ①-1 | E29: 生物処理 | G29: 処理方式 | L29: 生物処理排出係数【CO2】 | O29: 排出量【CO2】
G30: =IF(【入力】ユーザー入力シート!G43=0,"その他、または設置機器が不明",【入力】ユーザー入力シート!G43) -> その他、または設置機器が不明 | L30: =VLOOKUP(G30,一次処理電力使用量!B4:D10,3,FALSE)*I6 ->  | M30: kg-CO2/年・人 | N30: ⇒ | O30: =L30*G27 ->  | P30: kg-CO2/年
D32: ①-2 | E32: 汚泥の引き抜き | G32: 引き抜き汚泥の含水率(%) | I32: 引き抜き汚泥の体積
G33: =IF(【入力】ユーザー入力シート!G45>0,【入力】ユーザー入力シート!G45,VLOOKUP(G30,一次処理活動量!B4:D10,3,FALSE)) -> 98.25 | I33: =IF(【入力】ユーザー入力シート!G32=0,VLOOKUP(G30,一次処理活動量!B4:E10,4)*365/1000*G27/1000*100/(100-G33),【入力】ユーザー入力シート!G32) -> 0 | J33: ㎥/年
A35: ②-1 運搬（その1） | D35: ②-1 | E35: 濃縮後別施設への運搬 | G35: バキューム車/トラック（型式） | I35: 汚泥の体積 | L35: バキュームカー積載量 | O35: バキュームカー台数 | R35: 施設間距離（往復） | U35: 運搬排出係数【CO2】 | X35: 排出量【CO2】 | AB35: 運搬排出係数【CH4】 | AE35: 排出量【CH4】 | AJ35: 運搬排出係数【N2O】 | AM35: 排出量【N2O】
G36: =IF(【入力】ユーザー入力シート!#REF!="",トラックバキューム車!B6,【入力】ユーザー入力シート!#REF!) ->  | I36: =IF(I9="有",I33,0) ->  | J36: ㎥/年 | K36: ÷ | L36: =VLOOKUP(G36,トラックバキューム車!$B$4:$E$11,5,FALSE) ->  | M36: ㎥/台 | N36: ⇒ | O36: =IF(【入力】ユーザー入力シート!#REF!>0,【入力】ユーザー入力シート!#REF!,ROUNDUP(I36/L36,0)) ->  | P36: 台 | Q36: × | R36: =_xlfn.IFS(AND(I9="有",【入力】ユーザー入力シート!#REF!<>""),【入力】ユーザー入力シート!#REF!*2,AND(I9="有",【入力】ユーザー入力シート!#REF!=""),11.9*2,I9="無",0) ->  | S36: km | T36: × | U36: =VLOOKUP(G36,トラックバキューム車!$B$4:$D$11,3,FALSE) ->  | V36: kg-CO2/km | W36: ⇒ | X36: =O36*R36*U36 ->  | Y36: kg-CO2 | AA36: × | AB36: =VLOOKUP($G36,トラックバキューム車!$B$4:$H$11,7,FALSE) ->  | AC36: kg-CH4/km | AD36: ⇒ | AE36: =O36*R36*AB36*28 ->  | AF36: kg-CO2 | AI36: × | AJ36: =VLOOKUP($G36,トラックバキューム車!$B$4:$H$11,8,FALSE) ->  | AK36: kg-N2O/km | AL36: ⇒ | AM36: =O36*R36*AJ36*265 ->  | AN36: kg-CO2
A38: ③-1 二次処理-再度の一次処理 | D38: ③-1 | E38: 再度の一次処理 | I38: 引き抜き汚泥の体積 | L38: 排出係数【CO2】 | O38: 排出量 | AB38: 処理排出係数【CH4】 | AE38: 排出量【CH4】 | AJ38: 処理排出係数【N2O】 | AM38: 排出量【N2O】
I39: =IF(I10="有",I33,0) ->  | J39: ㎥/年 | K39: × | L39: =し尿処理施設推定式!AA11*I6 ->  | M39: kg-CO2/㎥ | N39: ⇒ | O39: =I39*L39 ->  | P39: kg-CO2 | AA39: × | AB39: =温対法排出原単位!C85 -> 0.038 | AC39: kg-CH4/㎥ | AD39: ⇒ | AE39: =AB39*I39*28 ->  | AF39: kg-CO2 | AI39: × | AJ39: =温対法排出原単位!C157 -> 0.00093 | AK39: kg-N2O/㎥ | AL39: ⇒ | AM39: =AJ39*I39*265 ->  | AN39: kg-CO2
A41: ③-2 二次処理-脱水 | D41: ③-2 | E41: 脱水・乾燥 | I41: 引き抜き汚泥の体積 | L41: 排出係数【CO2】 | O41: 排出量
I42: =I33 -> 0 | J42: ㎥/年 | K42: × | L42: =し尿処理施設推定式!AC11 ->  | M42: kg-CO2/㎥ | N42: ⇒ | O42: =I42*L42 ->  | P42: kg-CO2
A44: ②-2 運搬（その2） | D44: ②-2 | E44: 脱水後、別処理施設への運搬 | G44: バキューム車/トラック（型式） | I44: 汚泥の体積 | L44: バキュームカー積載量 | O44: バキュームカー台数 | R44: 施設間距離（往復） | U44: 運搬排出係数【CO2】 | X44: 排出量【CO2】 | AB44: 運搬排出係数【CH4】 | AE44: 排出量【CH4】 | AJ44: 運搬排出係数【N2O】 | AM44: 排出量【N2O】
G45: =IF(【入力】ユーザー入力シート!#REF!="",トラックバキューム車!B9,【入力】ユーザー入力シート!#REF!) ->  | I45: =IF(I12="有",I42*(100-G33)/100*100/15,0) ->  | J45: ㎥/年 | K45: ÷ | L45: =VLOOKUP(G45,トラックバキューム車!$B$4:$E$11,5,FALSE) ->  | M45: ㎥/台 | N45: ⇒ | O45: =ROUNDUP(I45/L45,0) ->  | P45: 台 | Q45: × | R45: =_xlfn.IFS(AND(I12="有",【入力】ユーザー入力シート!#REF!<>""),【入力】ユーザー入力シート!#REF!*2,AND(I12="有",【入力】ユーザー入力シート!#REF!=""),14.35*2,I12="無",0) ->  | S45: km | T45: × | U45: =VLOOKUP(G45,トラックバキューム車!$B$4:$D$11,3,FALSE) ->  | V45: kg-CO2/km | W45: ⇒ | X45: =O45*R45*U45 ->  | Y45: kg-CO2 | AA45: × | AB45: =VLOOKUP($G45,トラックバキューム車!$B$4:$H$11,7,FALSE) ->  | AC45: kg-CH4/km | AD45: ⇒ | AE45: =O45*R45*AB45*28 ->  | AF45: kg-CO2 | AI45: × | AJ45: =VLOOKUP($G45,トラックバキューム車!$B$4:$H$11,8,FALSE) ->  | AK45: kg-N2O/km | AL45: ⇒ | AM45: =O45*R45*AJ45*265 ->  | AN45: kg-CO2
A47: ②-3 運搬（その3） | D47: ②-3 | E47: 乾燥後、別処理施設への運搬 | G47: バキューム車/トラック（型式） | I47: 汚泥の体積 | L47: バキュームカー積載量 | O47: バキュームカー台数 | R47: 施設間距離（往復） | U47: 運搬排出係数【CO2】 | X47: 排出量【CO2】 | AB47: 運搬排出係数【CH4】 | AE47: 排出量【CH4】 | AJ47: 運搬排出係数【N2O】 | AM47: 排出量【N2O】
G48: =IF(【入力】ユーザー入力シート!#REF!="",トラックバキューム車!B10,【入力】ユーザー入力シート!#REF!) ->  | I48: =IF(I14="有",I42*(100-G33)/100*100/60,0) ->  | J48: ㎥/年 | K48: ÷ | L48: =VLOOKUP(G48,トラックバキューム車!$B$4:$E$11,5,FALSE) ->  | M48: ㎥/台 | N48: ⇒ | O48: =ROUNDUP(I48/L48,0) ->  | P48: 台 | Q48: × | R48: =_xlfn.IFS(AND(I14="有",【入力】ユーザー入力シート!#REF!<>""),【入力】ユーザー入力シート!#REF!*2,AND(I14="有",【入力】ユーザー入力シート!#REF!=""),40*2,I14="無",0) ->  | S48: km | T48: × | U48: =VLOOKUP(G48,トラックバキューム車!$B$4:$D$11,3,FALSE) ->  | V48: kg-CO2/km | W48: ⇒ | X48: =O48*R48*U48 ->  | Y48: kg-CO2 | AA48: × | AB48: =VLOOKUP($G48,トラックバキューム車!$B$4:$H$11,7,FALSE) ->  | AC48: kg-CH4/km | AD48: ⇒ | AE48: =O48*R48*AB48*28 ->  | AF48: kg-CO2 | AI48: × | AJ48: =VLOOKUP($G48,トラックバキューム車!$B$4:$H$11,8,FALSE) ->  | AK48: kg-N2O/km | AL48: ⇒ | AM48: =O48*R48*AJ48*265 ->  | AN48: kg-CO2
A50: ③-3 二次処理-焼却 | D50: ③-3 | E50: 焼却（し尿処理施設） | I50: 引き抜き汚泥の体積 | L50: 排出係数【CO2】 | O50: 排出量 | AA50: この青枠部分は焼却（ごみ処理場の欄で計算）
I51: =IF(AND(I15="有",J15="し尿処理施設"),I42,0) ->  | J51: ㎥/年 | K51: × | L51: =し尿処理施設推定式!AE11 ->  | M51: kg-CO2/㎥ | N51: ⇒ | O51: =I51*L51 ->  | P51: kg-CO2
A53: ③-3 二次処理-焼却 | D53: ③-3 | E53: 焼却（ごみ処理施設） | I53: 汚泥の重量 | L53: 焼却排出係数【CO2】 | O53: 排出量【CO2】 | AB53: 焼却排出係数【CH4】 | AE53: 排出量【CH4】 | AJ53: 焼却排出係数【N2O】 | AM53: 排出量【N2O】
I54: =IF(I15="無",0,IF(I13="有",I42*(100-G33)/100*100/60,IF(I11="有",I42*(100-G33)/100*100/15,I33))) ->  | J54: t/年 | K54: × | L54: =IF(AND(I15="有",J15<>"し尿処理施設"),485*0.0294*44/12+(63*I6),0) ->  | M54: kg-CO2/t | N54: ⇒ | O54: =IF(J15="し尿処理施設",0,I54*L54) ->  | P54: kg-CO2/年 | AA54: × | AB54: =焼却のCH4とN2O!H6 -> 0.02467112403 | AC54: kg-CH4/t | AD54: ⇒ | AE54: =I54*AB54*28 ->  | AF54: kg-CO2 | AI54: × | AJ54: =焼却のCH4とN2O!H12 -> 0.05868914729 | AK54: kg-N2O/t | AL54: ⇒ | AM54: =I54*AJ54*265 ->  | AN54: kg-CO2
A56: ③-4 二次処理-炭化 | D56: ③-4 | E56: 炭化 | I56: 引き抜き汚泥の体積 | L56: 排出係数【CO2】 | O56: 排出量
I57: =IF(I16="無",0,IF(I13="有",I42*(100-G33)/100*100/60,IF(I11="有",I42*(100-G33)/100*100/15,I33))) ->  | J57: ㎥/年 | K57: × | L57: =1225*0.0294*44/12+365*I6 ->  | M57: kg-CO2/㎥ | N57: ⇒ | O57: =I57*L57 ->  | P57: kg-CO2
A59: ②-4 運搬（その4） | D59: ②-4 | E59: 焼却後、埋立施設への運搬 | G59: トラック（型式） | I59: 焼却灰の体積 | L59: バキュームカー積載量 | O59: バキュームカー台数 | R59: 施設間距離（往復） | U59: 運搬排出係数【CO2】 | X59: 排出量【CO2】 | AB59: 運搬排出係数【CH4】 | AE59: 排出量【CH4】 | AJ59: 運搬排出係数【N2O】 | AM59: 排出量【N2O】
G60: =IF(【入力】ユーザー入力シート!#REF!="",トラックバキューム車!B11,【入力】ユーザー入力シート!#REF!) ->  | I60: =IF(I17="無",0,I33*(100-G33)/100*(1-VLOOKUP(G30,一次処理活動量!$B$4:$F$10,5,FALSE))) ->  | J60: ㎥/年 | K60: ÷ | L60: =VLOOKUP(G60,トラックバキューム車!$B$4:$E$11,5,FALSE) ->  | M60: ㎥/台 | N60: ⇒ | O60: =ROUNDUP(I60/L60,0) ->  | P60: 台 | Q60: × | R60: =_xlfn.IFS(AND(I17="有",【入力】ユーザー入力シート!#REF!<>""),【入力】ユーザー入力シート!#REF!*2,AND(I17="有",【入力】ユーザー入力シート!#REF!=""),8.55*2,I17="無",0) ->  | S60: km | T60: × | U60: =VLOOKUP(G60,トラックバキューム車!$B$4:$D$11,3,FALSE) ->  | V60: kg-CO2/km | W60: ⇒ | X60: =O60*R60*U60 ->  | Y60: kg-CO2 | AA60: × | AB60: =VLOOKUP($G60,トラックバキューム車!$B$4:$H$11,7,FALSE) ->  | AC60: kg-CH4/km | AD60: ⇒ | AE60: =O60*R60*AB60*28 ->  | AF60: kg-CO2 | AI60: × | AJ60: =VLOOKUP($G60,トラックバキューム車!$B$4:$H$11,8,FALSE) ->  | AK60: kg-N2O/km | AL60: ⇒ | AM60: =O60*R60*AJ60*265 ->  | AN60: kg-CO2
A62: ②-5 運搬（その5） | D62: ②-5 | E62: 焼却後、セメント工場への運搬 | I62: 焼却灰の重量 | L62: 焼却排出係数【CO2】 | O62: 排出量【CO2】
I63: =IF(I18="無",0,I33*(100-G33)/100*(1-VLOOKUP(G30,一次処理活動量!$B$4:$F$10,5,FALSE))) ->  | J63: t/年 | K63: × | L63: 26 | M63: kg-CO2/t | N63: ⇒ | O63: =I63*L63 ->  | P63: kg-CO2/年
A66: ④-1 最終処理_農地還元 | D66: ④-1-1 | E66: コンポスト化 | I66: 汚泥の重量 | L66: コンポスト化排出係数【CO2】 | O66: 排出量 | AB66: コンポスト化排出係数【CH4】 | AE66: 排出量 | AJ66: コンポスト化排出係数【N2O】 | AM66: 排出量
I67: =IF(I19="無",0,IF(I13="有",I42*(100-G33)/100*100/60,IF(I11="有",I42*(100-G33)/100*100/15,I33))) ->  | J67: t/年 | K67: × | L67: =128*0.0187*44/12+93*I6 ->  | M67: kg-CO2/t | N67: ⇒ | O67: =I67*L67 ->  | P67: kg-CO2 | AA67: × | AB67: =0.00096 -> 0.00096 | AC67: kg-CH4/wet-kg | AD67: ⇒ | AE67: =I67*AB67*1000*28 ->  | AF67: kg-CO2 | AI67: × | AJ67: =0.00027 -> 0.00027 | AK67: kg-N2O/wet-kg | AL67: ⇒ | AM67: =I67*AJ67*1000*265 ->  | AN67: kg-CO2
D69: ④-1-2 | E69: 化学肥料の製造量削減に伴うCO2排出量の削減 | I69: 肥料の量（or体積） | L69: 化学肥料排出係数【CO2】 | O69: 排出量【CO2】
I70: =IFERROR(_xlfn.IFS(G8=選択肢!G3,I42*(100-G33)/100*100/15,OR(G8=選択肢!G4,G8=選択肢!G6,G8=選択肢!G7),I42*(100-G33)/100*100/60),0) -> 0 | J70: t/年 | K70: × | L70: =-IFERROR(_xlfn.IFS(G8=選択肢!G3,化学肥料!$R$5,G8=選択肢!G4,化学肥料!$R$6,OR(G8=選択肢!G7,G8=選択肢!G6),化学肥料!$R$7),0) -> 0 | M70: kg-CO2/kg | N70: ⇒ | O70: =L70*I70*1000 -> 0 | P70: kg-CO2/年
D72: 農地還元合計 | G72: 合計排出量【CO2+CH4＋N2O】 | O72: 合計排出量【CO2】 | AE72: 合計排出量【CH4】 | AM72: 合計排出量【N2O】
G73: =(O73+AE73+AM73)/1000 -> 0 | H73: t-CO2/年 | O73: =IF(COUNTIF(G8,"農地還元*")=1,O30+X36+O39+O42+X45+X48+O51+O54+O57+O67+O70,0) -> 0 | P73: kg-CO2/年 | AE73: =IF(COUNTIF(G8,"農地還元*")=1,AE27+AE36+AE39+AE48+AE45+AE54+AE67,0) -> 0 | AF73: kg-CO2 | AM73: =IF(COUNTIF(G8,"農地還元*")=1,AM27+AM36+AM39+AM48+AM45+AM54+AM67,0) -> 0 | AN73: kg-CO2
A79: ④-2 最終処理_埋立 | D79: ④-2-1 | E79: 焼却灰の埋立 | I79: 焼却灰の重量 | L79: 埋立処理排出係数【CO2】 | O79: 排出量【CO2】
I80: =IF(I20="無",0,I33*(100-G33)/100*(1-VLOOKUP(G30,一次処理活動量!$B$4:$F$10,5,FALSE))) ->  | J80: t/年 | K80: × | L80: =0.67*27^0.68+5.38*27^0.81 -> 83.95902313 | M80: kg-CO2/t | N80: ⇒ | O80: =I80*L80 ->  | P80: kg-CO2/年
D82: ④-2-2 | E82: 汚泥の直接埋立 | I82: 汚泥の重量 | L82: 埋立処理排出係数【CO2】 | O82: 排出量【CO2】
I83: =IF(I21="無",0,IF(I13="有",I42*(100-G33)/100*100/60,IF(I11="有",I42*(100-G33)/100*100/15,I33))) ->  | J83: t/年 | K83: × | L83: =0.67*27^0.68+5.38*27^0.81 -> 83.95902313 | M83: kg-CO2/t | N83: ⇒ | O83: =IF(I13="無",I83*100/15*L83/1000,I83*100/60*L83/1000) ->  | P83: kg-CO2/年
I85: 汚泥の乾重量 | AB85: 埋立排出係数【CH4】 | AE85: 排出量【CH4】
I86: =IF(I21="無",0,I33*(100-G33)/100) ->  | J86: kg-DS/年 | AA86: × | AB86: 0.0667 | AC86: kg-CH4/kg-DS | AD86: ⇒ | AE86: =AB86*I86*28*1000 ->  | AF86: kg-CO2
D88: 埋立合計 | G88: 合計排出量【CO2+CH4＋N2O】 | O88: 合計排出量【CO2】 | AE88: 合計排出量【CH4】 | AM88: 合計排出量【N2O】
G89: =(O89+AE89+AM89)/1000 ->  | H89: t-CO2/年 | O89: =IF(OR(I20="有",I21="有"),O30+X36+O39+O42+X45+X48+O51+O54+O57+X60+O80+O83,0) ->  | P89: kg-CO2/年 | AE89: =IF(OR(I20="有",I21="有"),AE27+AE36+AE39+AE45+AE54+AE60+AE48+AE86,0) ->  | AF89: kg-CO2 | AM89: =IF(OR(I20="有",I21="有"),AM27+AM48+AM36+AM39+AM45+AM54+AM60,0) ->  | AN89: kg-CO2
A92: ④-3 最終処理_建設資材化 | D92: ④-3-1 | E92: セメント化 | I92: 焼却灰の重量 | L92: セメント化排出係数【CO2】 | O92: 排出量【CO2】
I93: =IF(I22="無",0,I33*(100-G33)/100*(1-VLOOKUP(G30,一次処理活動量!$B$4:$F$10,5,FALSE))) ->  | J93: t/年 | K93: × | L93: =1/0.22*275 -> 1250 | M93: kg-CO2/t | N93: ⇒ | O93: =I93*L93 ->  | P93: kg-CO2/年
D95: ④-3-2 | E95: セメント化による石灰石焼成由来のCO2排出量の削減 | I95: 焼却灰の重量 | L95: セメント化排出係数【CO2】 | O95: 排出量【CO2】
I96: =IF(I22="無",0,I33*(100-G33)/100*(1-VLOOKUP(G30,一次処理活動量!$B$4:$F$10,5,FALSE))) ->  | J96: t/年 | K96: × | L96: =(-(7.4+12.5)/2/100*0.785-(3.5+3.8)/2/100*1.092)*1000 -> -117.9655 | M96: kg-CO2/t | N96: ⇒ | O96: =I96*L96 ->  | P96: kg-CO2/年
D98: 建設資材化合計 | G98: 合計排出量【CO2+CH4＋N2O】 | O98: 合計排出量【CO2】 | AE98: 合計排出量【CH4】 | AM98: 合計排出量【N2O】
G99: =(O99+AE99+AM99)/1000 ->  | H99: t-CO2/年 | O99: =IF(I22="有",O30+X36+O39+O42+X45+X48+O51+O54+O57+O63+O93+O96,0) ->  | P99: kg-CO2/年 | AE99: =IF(I22="有",AE27+AE36+AE39+AE45+AE54+AE60+AE48,0) ->  | AF99: kg-CO2 | AM99: =IF(I22="有",AM27+AM48+AM36+AM39+AM45+AM54+AM60,0) ->  | AN99: kg-CO2

Sheet 【出力・比較対象2】GHG排出量算定シート
D2: 温室効果ガス排出量算定シート（比較する処理方法②）
G3: 合計（比較する処理方法②）
D4: プロセス | G4: =IF(G73>0,G73,IF(G89>0,G89,IF(G99>0,G99))) ->  | H4: t-CO2/年 | L4: =SUM(L8:O22)/1000 ->  | M4: =EXACT(ROUND(G4,5),ROUND(L4,5)) -> 
I5: 電気事業者毎の基礎排出係数（R4）
A6: 基本情報の入力 | D6: Q1 | E6: 地方電力会社 | G6: =【入力】ユーザー入力シート!G17 -> 0 | I6: =VLOOKUP(G6,電力CO2排出量原単位!$A$7:$C$16,3,FALSE) ->  | J6: ㎏-CO2/kWh
L7: kg-CO2/年
D8: Q2 | E8: 最終処理形態 | G8: =IF(【入力】ユーザー入力シート!I21="",【入力】ユーザー入力シート!I20,【入力】ユーザー入力シート!I21) ->  | L8: =SUM(O30,AE27,AM27) -> 
D9: Q3 | E9: 個別プロセスの有無 | G9: 濃縮後、別施設への運搬 | H9: 濃縮後、別施設への運搬 | I9: =IF(COUNTIF(【入力】ユーザー入力シート!$G$20,"農地還元*")=1,INDEX(プロセスと比較対象!$F$7:$M$20,MATCH(G9,プロセスと比較対象!#REF!,0),MATCH($G$8,プロセスと比較対象!$F$6:$M$6,0)),INDEX(プロセスと比較対象!$F$23:$M$36,MATCH(G9,プロセスと比較対象!#REF!,0),MATCH($G$8,プロセスと比較対象!$F$22:$M$22,0))) ->  | L9: =SUM(X36,AE36,AM36) -> 
G10: し尿処理施設での一次処理 | H10: 再度一次処理 | I10: =IF(COUNTIF(【入力】ユーザー入力シート!$G$20,"農地還元*")=1,INDEX(プロセスと比較対象!$F$7:$M$20,MATCH(G10,プロセスと比較対象!#REF!,0),MATCH($G$8,プロセスと比較対象!$F$6:$M$6,0)),INDEX(プロセスと比較対象!$F$23:$M$36,MATCH(G10,プロセスと比較対象!#REF!,0),MATCH($G$8,プロセスと比較対象!$F$22:$M$22,0))) ->  | L10: =SUM(O39,AE39,AM39) -> 
G11: 脱水 | H11: 脱水 | I11: =IF(COUNTIF(【入力】ユーザー入力シート!$G$20,"農地還元*")=1,INDEX(プロセスと比較対象!$F$7:$M$20,MATCH(G11,プロセスと比較対象!#REF!,0),MATCH($G$8,プロセスと比較対象!$F$6:$M$6,0)),INDEX(プロセスと比較対象!$F$23:$M$36,MATCH(G11,プロセスと比較対象!#REF!,0),MATCH($G$8,プロセスと比較対象!$F$22:$M$22,0))) ->  | J11: =IF(COUNTIF(【入力】ユーザー入力シート!$G$20,"農地還元*")=1,INDEX(プロセスと比較対象!$F$38:$M$40,2,MATCH($G$8,プロセスと比較対象!$F$6:$M$6,0)),INDEX(プロセスと比較対象!$F$38:$M$40,3,MATCH($G$8,プロセスと比較対象!$F$6:$M$6,0))) ->  | L11: =SUM(O42) -> 
G12: 脱水後、別施設への運搬 | H12: 脱水後、別施設への運搬 | I12: =IF(COUNTIF(【入力】ユーザー入力シート!$G$20,"農地還元*")=1,INDEX(プロセスと比較対象!$F$7:$M$20,MATCH(G12,プロセスと比較対象!#REF!,0),MATCH($G$8,プロセスと比較対象!$F$6:$M$6,0)),INDEX(プロセスと比較対象!$F$23:$M$36,MATCH(G12,プロセスと比較対象!#REF!,0),MATCH($G$8,プロセスと比較対象!$F$22:$M$22,0))) ->  | L12: =SUM(X45,AE45,AM45) -> 
G13: 乾燥 | H13: 乾燥 | I13: =IF(COUNTIF(【入力】ユーザー入力シート!$G$20,"農地還元*")=1,INDEX(プロセスと比較対象!$F$7:$M$20,MATCH(G13,プロセスと比較対象!#REF!,0),MATCH($G$8,プロセスと比較対象!$F$6:$M$6,0)),INDEX(プロセスと比較対象!$F$23:$M$36,MATCH(G13,プロセスと比較対象!#REF!,0),MATCH($G$8,プロセスと比較対象!$F$22:$M$22,0))) -> 
G14: 乾燥後、別施設への運搬 | H14: 乾燥後、別施設への運搬 | I14: =IF(COUNTIF(【入力】ユーザー入力シート!$G$20,"農地還元*")=1,INDEX(プロセスと比較対象!$F$7:$M$20,MATCH(G14,プロセスと比較対象!#REF!,0),MATCH($G$8,プロセスと比較対象!$F$6:$M$6,0)),INDEX(プロセスと比較対象!$F$23:$M$36,MATCH(G14,プロセスと比較対象!#REF!,0),MATCH($G$8,プロセスと比較対象!$F$22:$M$22,0))) ->  | L14: =SUM(X48,AE48,AM48) -> 
G15: 焼却 | H15: 焼却 | I15: =IF(COUNTIF(【入力】ユーザー入力シート!$G$20,"農地還元*")=1,INDEX(プロセスと比較対象!$F$7:$M$20,MATCH(G15,プロセスと比較対象!#REF!,0),MATCH($G$8,プロセスと比較対象!$F$6:$M$6,0)),INDEX(プロセスと比較対象!$F$23:$M$36,MATCH(G15,プロセスと比較対象!#REF!,0),MATCH($G$8,プロセスと比較対象!$F$22:$M$22,0))) ->  | J15: =IF(【入力】ユーザー入力シート!#REF!="","焼却施設",【入力】ユーザー入力シート!#REF!) ->  | L15: =IF(OR(J15="焼却施設",J15="その他"),SUM(O54,AE54,AM54),SUM(O51,AE54,AM54)) -> 
G16: 炭化 | H16: 炭化 | I16: =IF(COUNTIF(【入力】ユーザー入力シート!$G$20,"農地還元*")=1,INDEX(プロセスと比較対象!$F$7:$M$20,MATCH(G16,プロセスと比較対象!#REF!,0),MATCH($G$8,プロセスと比較対象!$F$6:$M$6,0)),INDEX(プロセスと比較対象!$F$23:$M$36,MATCH(G16,プロセスと比較対象!#REF!,0),MATCH($G$8,プロセスと比較対象!$F$22:$M$22,0))) ->  | L16: =SUM(O57) -> 
G17: 焼却後、埋立施設への運搬 | H17: 焼却後、埋立施設への運搬 | I17: =IF(COUNTIF(【入力】ユーザー入力シート!$G$20,"農地還元*")=1,INDEX(プロセスと比較対象!$F$7:$M$20,MATCH(G17,プロセスと比較対象!#REF!,0),MATCH($G$8,プロセスと比較対象!$F$6:$M$6,0)),INDEX(プロセスと比較対象!$F$23:$M$36,MATCH(G17,プロセスと比較対象!#REF!,0),MATCH($G$8,プロセスと比較対象!$F$22:$M$22,0))) ->  | L17: =SUM(X60,AE60,AM60) -> 
G18: 焼却後、セメント工場への運搬 | H18: 焼却後、セメント工場への運搬 | I18: =IF(COUNTIF(【入力】ユーザー入力シート!$G$20,"農地還元*")=1,INDEX(プロセスと比較対象!$F$7:$M$20,MATCH(G18,プロセスと比較対象!#REF!,0),MATCH($G$8,プロセスと比較対象!$F$6:$M$6,0)),INDEX(プロセスと比較対象!$F$23:$M$36,MATCH(G18,プロセスと比較対象!#REF!,0),MATCH($G$8,プロセスと比較対象!$F$22:$M$22,0))) ->  | L18: =SUM(O63) -> 
G19: コンポスト化 | H19: コンポスト化 | I19: =IF(COUNTIF(【入力】ユーザー入力シート!$G$20,"農地還元*")=1,INDEX(プロセスと比較対象!$F$7:$M$20,MATCH(G19,プロセスと比較対象!#REF!,0),MATCH($G$8,プロセスと比較対象!$F$6:$M$6,0)),INDEX(プロセスと比較対象!$F$23:$M$36,MATCH(G19,プロセスと比較対象!#REF!,0),MATCH($G$8,プロセスと比較対象!$F$22:$M$22,0))) ->  | L19: =SUM(O67,AE67,AM67) ->  | M19: 化学肥料の製造量削減に伴うCO2排出量の削減 | O19: =O70 -> 0
G20: 焼却灰の埋立 | H20: 焼却灰の埋立 | I20: =IF(COUNTIF(【入力】ユーザー入力シート!$G$20,"農地還元*")=1,INDEX(プロセスと比較対象!$F$7:$M$20,MATCH(G20,プロセスと比較対象!#REF!,0),MATCH($G$8,プロセスと比較対象!$F$6:$M$6,0)),INDEX(プロセスと比較対象!$F$23:$M$36,MATCH(G20,プロセスと比較対象!#REF!,0),MATCH($G$8,プロセスと比較対象!$F$22:$M$22,0))) ->  | L20: =SUM(O80) -> 
G21: 汚泥の直接埋立 | H21: 汚泥の直接埋立 | I21: =IF(COUNTIF(【入力】ユーザー入力シート!$G$20,"農地還元*")=1,INDEX(プロセスと比較対象!$F$7:$M$20,MATCH(G21,プロセスと比較対象!#REF!,0),MATCH($G$8,プロセスと比較対象!$F$6:$M$6,0)),INDEX(プロセスと比較対象!$F$23:$M$36,MATCH(G21,プロセスと比較対象!#REF!,0),MATCH($G$8,プロセスと比較対象!$F$22:$M$22,0))) ->  | L21: =SUM(O83,AE86) -> 
G22: 建設資材化（セメント化） | H22: 建設資材化（セメント化） | I22: =IF(COUNTIF(【入力】ユーザー入力シート!$G$20,"農地還元*")=1,INDEX(プロセスと比較対象!$F$7:$M$20,MATCH(G22,プロセスと比較対象!#REF!,0),MATCH($G$8,プロセスと比較対象!$F$6:$M$6,0)),INDEX(プロセスと比較対象!$F$23:$M$36,MATCH(G22,プロセスと比較対象!#REF!,0),MATCH($G$8,プロセスと比較対象!$F$22:$M$22,0))) ->  | L22: =SUM(O93) ->  | M22: セメント化による石灰石焼成由来のCO2排出量の削減 | O22: =O96 -> 
C24: 取扱量 | K24: CO2排出量の算定 | AA24: CH4排出量の算定 | AH24: N2O排出量の算定
A26: ①一次処理_農業集落排水処理施設 | D26: ①-0 | E26: 処理量 | G26: 実績処理人口 | AB26: 処理排出係数【CH4】 | AE26: 排出量【CH4】 | AJ26: 処理排出係数【N2O】 | AM26: 排出量【N2O】
G27: =【入力】ユーザー入力シート!G13 -> 0 | H27: 人 | AA27: × | AB27: =温対法排出原単位!C86 -> 0.59 | AC27: kg-CH4/人 | AD27: ⇒ | AE27: =AB27*G27*28 -> 0 | AF27: kg-CO2 | AI27: × | AJ27: =温対法排出原単位!C158 -> 0.023 | AK27: kg-N2O/人 | AL27: ⇒ | AM27: =AJ27*G27*265 -> 0 | AN27: kg-CO2
D29: ①-1 | E29: 生物処理 | G29: 処理方式 | L29: 生物処理排出係数【CO2】 | O29: 排出量【CO2】
G30: =IF(【入力】ユーザー入力シート!G43=0,"その他、または設置機器が不明",【入力】ユーザー入力シート!G43) -> その他、または設置機器が不明 | L30: =VLOOKUP(G30,一次処理電力使用量!B4:D10,3,FALSE)*I6 ->  | M30: kg-CO2/年・人 | N30: ⇒ | O30: =L30*G27 ->  | P30: kg-CO2/年
D32: ①-2 | E32: 汚泥の引き抜き | G32: 引き抜き汚泥の含水率(%) | I32: 引き抜き汚泥の体積
G33: =IF(【入力】ユーザー入力シート!G45>0,【入力】ユーザー入力シート!G45,VLOOKUP(G30,一次処理活動量!B4:D10,3,FALSE)) -> 98.25 | I33: =IF(【入力】ユーザー入力シート!G32=0,VLOOKUP(G30,一次処理活動量!B4:E10,4)*365/1000*G27/1000*100/(100-G33),【入力】ユーザー入力シート!G32) -> 0 | J33: ㎥/年
A35: ②-1 運搬（その1） | D35: ②-1 | E35: 濃縮後別施設への運搬 | G35: バキューム車/トラック（型式） | I35: 汚泥の体積 | L35: バキュームカー積載量 | O35: バキュームカー台数 | R35: 施設間距離（往復） | U35: 運搬排出係数【CO2】 | X35: 排出量【CO2】 | AB35: 運搬排出係数【CH4】 | AE35: 排出量【CH4】 | AJ35: 運搬排出係数【N2O】 | AM35: 排出量【N2O】
G36: =IF(【入力】ユーザー入力シート!#REF!="",トラックバキューム車!B6,【入力】ユーザー入力シート!#REF!) ->  | I36: =IF(I9="有",I33,0) ->  | J36: ㎥/年 | K36: ÷ | L36: =VLOOKUP(G36,トラックバキューム車!$B$4:$E$11,5,FALSE) ->  | M36: ㎥/台 | N36: ⇒ | O36: =IF(【入力】ユーザー入力シート!#REF!>0,【入力】ユーザー入力シート!#REF!,ROUNDUP(I36/L36,0)) ->  | P36: 台 | Q36: × | R36: =_xlfn.IFS(AND(I9="有",【入力】ユーザー入力シート!#REF!<>""),【入力】ユーザー入力シート!#REF!*2,AND(I9="有",【入力】ユーザー入力シート!#REF!=""),11.9*2,I9="無",0) ->  | S36: km | T36: × | U36: =VLOOKUP(G36,トラックバキューム車!$B$4:$D$11,3,FALSE) ->  | V36: kg-CO2/km | W36: ⇒ | X36: =O36*R36*U36 ->  | Y36: kg-CO2 | AA36: × | AB36: =VLOOKUP($G36,トラックバキューム車!$B$4:$H$11,7,FALSE) ->  | AC36: kg-CH4/km | AD36: ⇒ | AE36: =O36*R36*AB36*28 ->  | AF36: kg-CO2 | AI36: × | AJ36: =VLOOKUP($G36,トラックバキューム車!$B$4:$H$11,8,FALSE) ->  | AK36: kg-N2O/km | AL36: ⇒ | AM36: =O36*R36*AJ36*265 ->  | AN36: kg-CO2
A38: ③-1 二次処理-再度の一次処理 | D38: ③-1 | E38: 再度の一次処理 | I38: 引き抜き汚泥の体積 | L38: 排出係数【CO2】 | O38: 排出量 | AB38: 処理排出係数【CH4】 | AE38: 排出量【CH4】 | AJ38: 処理排出係数【N2O】 | AM38: 排出量【N2O】
I39: =IF(I10="有",I33,0) ->  | J39: ㎥/年 | K39: × | L39: =し尿処理施設推定式!AA12*I6 ->  | M39: kg-CO2/㎥ | N39: ⇒ | O39: =I39*L39 ->  | P39: kg-CO2 | AA39: × | AB39: =温対法排出原単位!C85 -> 0.038 | AC39: kg-CH4/㎥ | AD39: ⇒ | AE39: =AB39*I39*28 ->  | AF39: kg-CO2 | AI39: × | AJ39: =温対法排出原単位!C157 -> 0.00093 | AK39: kg-N2O/㎥ | AL39: ⇒ | AM39: =AJ39*I39*265 ->  | AN39: kg-CO2
A41: ③-2 二次処理-脱水 | D41: ③-2 | E41: 脱水・乾燥 | I41: 引き抜き汚泥の体積 | L41: 排出係数【CO2】 | O41: 排出量
I42: =I33 -> 0 | J42: ㎥/年 | K42: × | L42: =し尿処理施設推定式!AC12 ->  | M42: kg-CO2/㎥ | N42: ⇒ | O42: =I42*L42 ->  | P42: kg-CO2
A44: ②-2 運搬（その2） | D44: ②-2 | E44: 脱水後、別処理施設への運搬 | G44: バキューム車/トラック（型式） | I44: 汚泥の体積 | L44: バキュームカー積載量 | O44: バキュームカー台数 | R44: 施設間距離（往復） | U44: 運搬排出係数【CO2】 | X44: 排出量【CO2】 | AB44: 運搬排出係数【CH4】 | AE44: 排出量【CH4】 | AJ44: 運搬排出係数【N2O】 | AM44: 排出量【N2O】
G45: =IF(【入力】ユーザー入力シート!#REF!="",トラックバキューム車!B9,【入力】ユーザー入力シート!#REF!) ->  | I45: =IF(I12="有",I42*(100-G33)/100*100/15,0) ->  | J45: ㎥/年 | K45: ÷ | L45: =VLOOKUP(G45,トラックバキューム車!$B$4:$E$11,5,FALSE) ->  | M45: ㎥/台 | N45: ⇒ | O45: =ROUNDUP(I45/L45,0) ->  | P45: 台 | Q45: × | R45: =_xlfn.IFS(AND(I12="有",【入力】ユーザー入力シート!#REF!<>""),【入力】ユーザー入力シート!#REF!*2,AND(I12="有",【入力】ユーザー入力シート!#REF!=""),14.35*2,I12="無",0) ->  | S45: km | T45: × | U45: =VLOOKUP(G45,トラックバキューム車!$B$4:$D$11,3,FALSE) ->  | V45: kg-CO2/km | W45: ⇒ | X45: =O45*R45*U45 ->  | Y45: kg-CO2 | AA45: × | AB45: =VLOOKUP($G45,トラックバキューム車!$B$4:$H$11,7,FALSE) ->  | AC45: kg-CH4/km | AD45: ⇒ | AE45: =O45*R45*AB45*28 ->  | AF45: kg-CO2 | AI45: × | AJ45: =VLOOKUP($G45,トラックバキューム車!$B$4:$H$11,8,FALSE) ->  | AK45: kg-N2O/km | AL45: ⇒ | AM45: =O45*R45*AJ45*265 ->  | AN45: kg-CO2
A47: ②-3 運搬（その3） | D47: ②-3 | E47: 乾燥後、別処理施設への運搬 | G47: バキューム車/トラック（型式） | I47: 汚泥の体積 | L47: バキュームカー積載量 | O47: バキュームカー台数 | R47: 施設間距離（往復） | U47: 運搬排出係数【CO2】 | X47: 排出量【CO2】 | AB47: 運搬排出係数【CH4】 | AE47: 排出量【CH4】 | AJ47: 運搬排出係数【N2O】 | AM47: 排出量【N2O】
G48: =IF(【入力】ユーザー入力シート!#REF!="",トラックバキューム車!B10,【入力】ユーザー入力シート!#REF!) ->  | I48: =IF(I14="有",I42*(100-G33)/100*100/60,0) ->  | J48: ㎥/年 | K48: ÷ | L48: =VLOOKUP(G48,トラックバキューム車!$B$4:$E$11,5,FALSE) ->  | M48: ㎥/台 | N48: ⇒ | O48: =ROUNDUP(I48/L48,0) ->  | P48: 台 | Q48: × | R48: =_xlfn.IFS(AND(I14="有",【入力】ユーザー入力シート!#REF!<>""),【入力】ユーザー入力シート!#REF!*2,AND(I14="有",【入力】ユーザー入力シート!#REF!=""),40*2,I14="無",0) ->  | S48: km | T48: × | U48: =VLOOKUP(G48,トラックバキューム車!$B$4:$D$11,3,FALSE) ->  | V48: kg-CO2/km | W48: ⇒ | X48: =O48*R48*U48 ->  | Y48: kg-CO2 | AA48: × | AB48: =VLOOKUP($G48,トラックバキューム車!$B$4:$H$11,7,FALSE) ->  | AC48: kg-CH4/km | AD48: ⇒ | AE48: =O48*R48*AB48*28 ->  | AF48: kg-CO2 | AI48: × | AJ48: =VLOOKUP($G48,トラックバキューム車!$B$4:$H$11,8,FALSE) ->  | AK48: kg-N2O/km | AL48: ⇒ | AM48: =O48*R48*AJ48*265 ->  | AN48: kg-CO2
A50: ③-3 二次処理-焼却 | D50: ③-3 | E50: 焼却（し尿処理施設） | I50: 引き抜き汚泥の体積 | L50: 排出係数【CO2】 | O50: 排出量 | AA50: この青枠部分は焼却（ごみ処理場の欄で計算）
I51: =IF(AND(I15="有",J15="し尿処理施設"),I42,0) ->  | J51: ㎥/年 | K51: × | L51: =し尿処理施設推定式!AE12 ->  | M51: kg-CO2/㎥ | N51: ⇒ | O51: =I51*L51 ->  | P51: kg-CO2
A53: ③-3 二次処理-焼却 | D53: ③-3 | E53: 焼却（ごみ処理施設） | I53: 汚泥の重量 | L53: 焼却排出係数【CO2】 | O53: 排出量【CO2】 | AB53: 焼却排出係数【CH4】 | AE53: 排出量【CH4】 | AJ53: 焼却排出係数【N2O】 | AM53: 排出量【N2O】
I54: =IF(I15="無",0,IF(I13="有",I42*(100-G33)/100*100/60,IF(I11="有",I42*(100-G33)/100*100/15,I33))) ->  | J54: t/年 | K54: × | L54: =IF(AND(I15="有",J15<>"し尿処理施設"),485*0.0294*44/12+(63*I6),0) ->  | M54: kg-CO2/t | N54: ⇒ | O54: =IF(J15="し尿処理施設",0,I54*L54) ->  | P54: kg-CO2/年 | AA54: × | AB54: =焼却のCH4とN2O!H6 -> 0.02467112403 | AC54: kg-CH4/t | AD54: ⇒ | AE54: =I54*AB54*28 ->  | AF54: kg-CO2 | AI54: × | AJ54: =焼却のCH4とN2O!H12 -> 0.05868914729 | AK54: kg-N2O/t | AL54: ⇒ | AM54: =I54*AJ54*265 ->  | AN54: kg-CO2
A56: ③-4 二次処理-炭化 | D56: ③-4 | E56: 炭化 | I56: 引き抜き汚泥の体積 | L56: 排出係数【CO2】 | O56: 排出量
I57: =IF(I16="無",0,IF(I13="有",I42*(100-G33)/100*100/60,IF(I11="有",I42*(100-G33)/100*100/15,I33))) ->  | J57: ㎥/年 | K57: × | L57: =1225*0.0294*44/12+365*I6 ->  | M57: kg-CO2/㎥ | N57: ⇒ | O57: =I57*L57 ->  | P57: kg-CO2
A59: ②-4 運搬（その4） | D59: ②-4 | E59: 焼却後、埋立施設への運搬 | G59: トラック（型式） | I59: 焼却灰の体積 | L59: バキュームカー積載量 | O59: バキュームカー台数 | R59: 施設間距離（往復） | U59: 運搬排出係数【CO2】 | X59: 排出量【CO2】 | AB59: 運搬排出係数【CH4】 | AE59: 排出量【CH4】 | AJ59: 運搬排出係数【N2O】 | AM59: 排出量【N2O】
G60: =IF(【入力】ユーザー入力シート!#REF!="",トラックバキューム車!B11,【入力】ユーザー入力シート!#REF!) ->  | I60: =IF(I17="無",0,I33*(100-G33)/100*(1-VLOOKUP(G30,一次処理活動量!$B$4:$F$10,5,FALSE))) ->  | J60: ㎥/年 | K60: ÷ | L60: =VLOOKUP(G60,トラックバキューム車!$B$4:$E$11,5,FALSE) ->  | M60: ㎥/台 | N60: ⇒ | O60: =ROUNDUP(I60/L60,0) ->  | P60: 台 | Q60: × | R60: =_xlfn.IFS(AND(I17="有",【入力】ユーザー入力シート!#REF!<>""),【入力】ユーザー入力シート!#REF!*2,AND(I17="有",【入力】ユーザー入力シート!#REF!=""),8.55*2,I17="無",0) ->  | S60: km | T60: × | U60: =VLOOKUP(G60,トラックバキューム車!$B$4:$D$11,3,FALSE) ->  | V60: kg-CO2/km | W60: ⇒ | X60: =O60*R60*U60 ->  | Y60: kg-CO2 | AA60: × | AB60: =VLOOKUP($G60,トラックバキューム車!$B$4:$H$11,7,FALSE) ->  | AC60: kg-CH4/km | AD60: ⇒ | AE60: =O60*R60*AB60*28 ->  | AF60: kg-CO2 | AI60: × | AJ60: =VLOOKUP($G60,トラックバキューム車!$B$4:$H$11,8,FALSE) ->  | AK60: kg-N2O/km | AL60: ⇒ | AM60: =O60*R60*AJ60*265 ->  | AN60: kg-CO2
A62: ②-5 運搬（その5） | D62: ②-5 | E62: 焼却後、セメント工場への運搬 | I62: 焼却灰の重量 | L62: 焼却排出係数【CO2】 | O62: 排出量【CO2】
I63: =IF(I18="無",0,I33*(100-G33)/100*(1-VLOOKUP(G30,一次処理活動量!$B$4:$F$10,5,FALSE))) ->  | J63: t/年 | K63: × | L63: 26 | M63: kg-CO2/t | N63: ⇒ | O63: =I63*L63 ->  | P63: kg-CO2/年
A66: ④-1 最終処理_農地還元 | D66: ④-1-1 | E66: コンポスト化 | I66: 汚泥の重量 | L66: コンポスト化排出係数【CO2】 | O66: 排出量 | AB66: コンポスト化排出係数【CH4】 | AE66: 排出量 | AJ66: コンポスト化排出係数【N2O】 | AM66: 排出量
I67: =IF(I19="無",0,IF(I13="有",I42*(100-G33)/100*100/60,IF(I11="有",I42*(100-G33)/100*100/15,I33))) ->  | J67: t/年 | K67: × | L67: =128*0.0187*44/12+93*I6 ->  | M67: kg-CO2/t | N67: ⇒ | O67: =I67*L67 ->  | P67: kg-CO2 | AA67: × | AB67: =0.00096 -> 0.00096 | AC67: kg-CH4/wet-kg | AD67: ⇒ | AE67: =I67*AB67*1000*28 ->  | AF67: kg-CO2 | AI67: × | AJ67: =0.00027 -> 0.00027 | AK67: kg-N2O/wet-kg | AL67: ⇒ | AM67: =I67*AJ67*1000*265 ->  | AN67: kg-CO2
D69: ④-1-2 | E69: 化学肥料の製造量削減に伴うCO2排出量の削減 | I69: 肥料の量（or体積） | L69: 化学肥料排出係数【CO2】 | O69: 排出量【CO2】
I70: =IFERROR(_xlfn.IFS(G8=選択肢!G3,I42*(100-G33)/100*100/15,OR(G8=選択肢!G4,G8=選択肢!G6,G8=選択肢!G7),I42*(100-G33)/100*100/60),0) -> 0 | J70: t/年 | K70: × | L70: =-IFERROR(_xlfn.IFS(G8=選択肢!G3,化学肥料!$R$5,G8=選択肢!G4,化学肥料!$R$6,OR(G8=選択肢!G7,G8=選択肢!G6),化学肥料!$R$7),0) -> 0 | M70: kg-CO2/kg | N70: ⇒ | O70: =L70*I70*1000 -> 0 | P70: kg-CO2/年
D72: 農地還元合計 | G72: 合計排出量【CO2+CH4＋N2O】 | O72: 合計排出量【CO2】 | AE72: 合計排出量【CH4】 | AM72: 合計排出量【N2O】
G73: =(O73+AE73+AM73)/1000 -> 0 | H73: t-CO2/年 | O73: =IF(COUNTIF(G8,"農地還元*")=1,O30+X36+O39+O42+X45+X48+O51+O54+O57+O67+O70,0) -> 0 | P73: kg-CO2/年 | AE73: =IF(COUNTIF(G8,"農地還元*")=1,AE27+AE36+AE39+AE48+AE45+AE54+AE67,0) -> 0 | AF73: kg-CO2 | AM73: =IF(COUNTIF(G8,"農地還元*")=1,AM27+AM36+AM39+AM48+AM45+AM54+AM67,0) -> 0 | AN73: kg-CO2
A79: ④-2 最終処理_埋立 | D79: ④-2-1 | E79: 焼却灰の埋立 | I79: 焼却灰の重量 | L79: 埋立処理排出係数【CO2】 | O79: 排出量【CO2】
I80: =IF(I20="無",0,I33*(100-G33)/100*(1-VLOOKUP(G30,一次処理活動量!$B$4:$F$10,5,FALSE))) ->  | J80: t/年 | K80: × | L80: =0.67*27^0.68+5.38*27^0.81 -> 83.95902313 | M80: kg-CO2/t | N80: ⇒ | O80: =I80*L80 ->  | P80: kg-CO2/年
D82: ④-2-2 | E82: 汚泥の直接埋立 | I82: 汚泥の重量 | L82: 埋立処理排出係数【CO2】 | O82: 排出量【CO2】
I83: =IF(I21="無",0,IF(I13="有",I42*(100-G33)/100*100/60,IF(I11="有",I42*(100-G33)/100*100/15,I33))) ->  | J83: t/年 | K83: × | L83: =0.67*27^0.68+5.38*27^0.81 -> 83.95902313 | M83: kg-CO2/t | N83: ⇒ | O83: =IF(I13="無",I83*100/15*L83/1000,I83*100/60*L83/1000) ->  | P83: kg-CO2/年
I85: 汚泥の乾重量 | AB85: 埋立排出係数【CH4】 | AE85: 排出量【CH4】
I86: =IF(I21="無",0,I33*(100-G33)/100) ->  | J86: kg-DS/年 | AA86: × | AB86: 0.0667 | AC86: kg-CH4/kg-DS | AD86: ⇒ | AE86: =AB86*I86*28*1000 ->  | AF86: kg-CO2
D88: 埋立合計 | G88: 合計排出量【CO2+CH4＋N2O】 | O88: 合計排出量【CO2】 | AE88: 合計排出量【CH4】 | AM88: 合計排出量【N2O】
G89: =(O89+AE89+AM89)/1000 ->  | H89: t-CO2/年 | O89: =IF(OR(I20="有",I21="有"),O30+X36+O39+O42+X45+X48+O51+O54+O57+X60+O80+O83,0) ->  | P89: kg-CO2/年 | AE89: =IF(OR(I20="有",I21="有"),AE27+AE36+AE39+AE45+AE54+AE60+AE48+AE86,0) ->  | AF89: kg-CO2 | AM89: =IF(OR(I20="有",I21="有"),AM27+AM48+AM36+AM39+AM45+AM54+AM60,0) ->  | AN89: kg-CO2
A92: ④-3 最終処理_建設資材化 | D92: ④-3-1 | E92: セメント化 | I92: 焼却灰の重量 | L92: セメント化排出係数【CO2】 | O92: 排出量【CO2】
I93: =IF(I22="無",0,I33*(100-G33)/100*(1-VLOOKUP(G30,一次処理活動量!$B$4:$F$10,5,FALSE))) ->  | J93: t/年 | K93: × | L93: =1/0.22*275 -> 1250 | M93: kg-CO2/t | N93: ⇒ | O93: =I93*L93 ->  | P93: kg-CO2/年
D95: ④-3-2 | E95: セメント化による石灰石焼成由来のCO2排出量の削減 | I95: 焼却灰の重量 | L95: セメント化排出係数【CO2】 | O95: 排出量【CO2】
I96: =IF(I22="無",0,I33*(100-G33)/100*(1-VLOOKUP(G30,一次処理活動量!$B$4:$F$10,5,FALSE))) ->  | J96: t/年 | K96: × | L96: =(-(7.4+12.5)/2/100*0.785-(3.5+3.8)/2/100*1.092)*1000 -> -117.9655 | M96: kg-CO2/t | N96: ⇒ | O96: =I96*L96 ->  | P96: kg-CO2/年
D98: 建設資材化合計 | G98: 合計排出量【CO2+CH4＋N2O】 | O98: 合計排出量【CO2】 | AE98: 合計排出量【CH4】 | AM98: 合計排出量【N2O】
G99: =(O99+AE99+AM99)/1000 ->  | H99: t-CO2/年 | O99: =IF(I22="有",O30+X36+O39+O42+X45+X48+O51+O54+O57+O63+O93+O96,0) ->  | P99: kg-CO2/年 | AE99: =IF(I22="有",AE27+AE36+AE39+AE45+AE54+AE48,0) ->  | AF99: kg-CO2 | AM99: =IF(I22="有",AM27+AM48+AM36+AM39+AM45+AM54,0) ->  | AN99: kg-CO2

Sheet プロセスと比較対象 (hidden)
P2: ユーザーが入力する項目 | S2: ※ユーザーが入力する項目の０は無と同義
C3: 現在の処理方法 | F3: 比較対象の処理方法 | P3: ユーザーの入力値によって可変
P4: ユーザーの入力に関わらず固定
A6: 現状が農地還元の場合 | D6: 現状 | F6: 農地還元（脱水汚泥） | G6: 農地還元（機械乾燥汚泥） | H6: 農地還元（炭化汚泥） | I6: 農地還元（コンポスト化汚泥）（農業集落排水施設でコンポスト化） | J6: 農地還元（コンポスト化汚泥）（農業集落排水施設以外でコンポスト化） | K6: 埋立（直接埋立：焼却なし） | L6: 埋立（焼却あり） | M6: 建設資材化
C7: 濃縮後、別施設への運搬 | D7: =【入力】ユーザー入力シート!G25 -> 0 | F7: =IF($D7=0,"無",$D7) -> 無 | G7: =IF($D7=0,"無",$D7) -> 無 | H7: 無 | I7: 無 | J7: 有 | K7: =IF($D7=0,"無",$D7) -> 無 | L7: 有 | M7: 有
C8: 再度一次処理 | D8: =【入力】ユーザー入力シート!G26 -> 0 | F8: 無 | G8: 無 | H8: 無 | I8: 無 | J8: 有 | K8: =IF($D8=0,"無",$D8) -> 無 | L8: 有 | M8: 有
C9: 脱水 | D9: =【入力】ユーザー入力シート!G27 -> 0 | F9: 有 | G9: 有 | H9: 有 | I9: 有 | J9: 有 | K9: 有 | L9: 有 | M9: 有
C10: 脱水後、別施設への運搬 | D10: =【入力】ユーザー入力シート!G28 -> 0 | F10: 無 | G10: =IF($D10=0,"無",$D10) -> 無 | H10: 無 | I10: 無 | J10: 無 | K10: 無 | L10: 無 | M10: 無
C11: 乾燥 | D11: =【入力】ユーザー入力シート!G29 -> 0 | F11: 無 | G11: 有 | H11: 有 | I11: 無 | J11: =IF($D11=0,"無",$D11) -> 無 | K11: 無 | L11: 無 | M11: 無
C12: 乾燥後、別施設への運搬 | D12: =【入力】ユーザー入力シート!G30 -> 0 | F12: 無 | G12: 無 | H12: =IF($D12=0,"無",$D12) -> 無 | I12: 無 | J12: 無 | K12: 無 | L12: 無 | M12: 無
C13: 焼却 | D13: =【入力】ユーザー入力シート!#REF! ->  | F13: 無 | G13: 無 | H13: 無 | I13: 無 | J13: 無 | K13: 無 | L13: 有 | M13: 有
C14: 炭化 | D14: =【入力】ユーザー入力シート!#REF! ->  | F14: 無 | G14: 無 | H14: 有 | I14: 無 | J14: 無 | K14: 無 | L14: 無 | M14: 無
C15: 焼却後、埋立施設への運搬 | D15: =【入力】ユーザー入力シート!#REF! ->  | F15: 無 | G15: 無 | H15: 無 | I15: 無 | J15: 無 | K15: 無 | L15: 有 | M15: 無
C16: 焼却後、セメント工場への運搬 | D16: =【入力】ユーザー入力シート!#REF! ->  | F16: 無 | G16: 無 | H16: 無 | I16: 無 | J16: 無 | K16: 無 | L16: 無 | M16: 有
C17: コンポスト化 | D17: =【入力】ユーザー入力シート!#REF! ->  | F17: 無 | G17: 無 | H17: 無 | I17: 有 | J17: 有 | K17: 無 | L17: 無 | M17: 無
C18: 焼却灰の埋立 | D18: =【入力】ユーザー入力シート!#REF! ->  | F18: 無 | G18: 無 | H18: 無 | I18: 無 | J18: 無 | K18: 無 | L18: 有 | M18: 無
C19: 汚泥の直接埋立 | D19: =【入力】ユーザー入力シート!#REF! ->  | F19: 無 | G19: 無 | H19: 無 | I19: 無 | J19: 無 | K19: 有 | L19: 無 | M19: 無
C20: 建設資材化（セメント化） | D20: =【入力】ユーザー入力シート!#REF! ->  | F20: 無 | G20: 無 | H20: 無 | I20: 無 | J20: 無 | K20: 無 | L20: 無 | M20: 有
A22: 現状が農地還元以外の場合 | D22: 現状 | F22: 農地還元（脱水汚泥） | G22: 農地還元（機械乾燥汚泥） | H22: 農地還元（炭化汚泥） | I22: 農地還元（コンポスト化汚泥）（農業集落排水施設でコンポスト化） | J22: 農地還元（コンポスト化汚泥）（農業集落排水施設以外でコンポスト化） | K22: 埋立（直接埋立：焼却なし） | L22: 埋立（焼却あり） | M22: 建設資材化
C23: 濃縮後、別施設への運搬 | D23: =【入力】ユーザー入力シート!G25 -> 0 | F23: =IF($D23=0,"無",$D23) -> 無 | G23: 無 | H23: 無 | I23: 無 | J23: =IF($D23=0,"無",$D23) -> 無 | K23: =IF($D23=0,"無",$D23) -> 無 | L23: =IF($D23=0,"無",$D23) -> 無 | M23: =IF($D23=0,"無",$D23) -> 無
C24: 再度一次処理 | D24: =【入力】ユーザー入力シート!G26 -> 0 | F24: 無 | G24: 無 | H24: 無 | I24: 無 | J24: =IF($D24=0,"無",$D24) -> 無 | K24: =IF($D24=0,"無",$D24) -> 無 | L24: 無 | M24: 無
C25: 脱水 | D25: =【入力】ユーザー入力シート!G27 -> 0 | F25: 有 | G25: 有 | H25: 有 | I25: 有 | J25: 有 | K25: 有 | L25: 有 | M25: 有
C26: 脱水後、別施設への運搬 | D26: =【入力】ユーザー入力シート!G28 -> 0 | F26: 無 | G26: =IF($D26=0,"無",$D26) -> 無 | H26: 無 | I26: 無 | J26: 無 | K26: 無 | L26: 無 | M26: 無
C27: 乾燥 | D27: =【入力】ユーザー入力シート!G29 -> 0 | F27: 無 | G27: 有 | H27: 有 | I27: 無 | J27: 無 | K27: 無 | L27: 無 | M27: 無
C28: 乾燥後、別施設への運搬 | D28: =【入力】ユーザー入力シート!G30 -> 0 | F28: 無 | G28: 無 | H28: =IF($D28=0,"無",$D28) -> 無 | I28: 無 | J28: 無 | K28: 無 | L28: 無 | M28: 無
C29: 焼却 | D29: =【入力】ユーザー入力シート!#REF! ->  | F29: 無 | G29: 無 | H29: 無 | I29: 無 | J29: 無 | K29: 無 | L29: 有 | M29: 有
C30: 炭化 | D30: =【入力】ユーザー入力シート!#REF! ->  | F30: 無 | G30: 無 | H30: 有 | I30: 無 | J30: 無 | K30: 無 | L30: 無 | M30: 無
C31: 焼却後、埋立施設への運搬 | D31: =【入力】ユーザー入力シート!#REF! ->  | F31: 無 | G31: 無 | H31: 無 | I31: 無 | J31: 無 | K31: 無 | L31: 有 | M31: 無
C32: 焼却後、セメント工場への運搬 | D32: =【入力】ユーザー入力シート!#REF! ->  | F32: 無 | G32: 無 | H32: 無 | I32: 無 | J32: 無 | K32: 無 | L32: 無 | M32: 有
C33: コンポスト化 | D33: =【入力】ユーザー入力シート!#REF! ->  | F33: 無 | G33: 無 | H33: 無 | I33: 有 | J33: 有 | K33: 無 | L33: 無 | M33: 無
C34: 焼却灰の埋立 | D34: =【入力】ユーザー入力シート!#REF! ->  | F34: 無 | G34: 無 | H34: 無 | I34: 無 | J34: 無 | K34: 無 | L34: 有 | M34: 無
C35: 汚泥の直接埋立 | D35: =【入力】ユーザー入力シート!#REF! ->  | F35: 無 | G35: 無 | H35: 無 | I35: 無 | J35: 無 | K35: 有 | L35: 無 | M35: 無
C36: 建設資材化（セメント化） | D36: =【入力】ユーザー入力シート!#REF! ->  | F36: 無 | G36: 無 | H36: 無 | I36: 無 | J36: 無 | K36: 無 | L36: 無 | M36: 有
F38: 農地還元（脱水汚泥） | G38: 農地還元（機械乾燥汚泥） | H38: 農地還元（炭化汚泥） | I38: 農地還元（コンポスト化汚泥）（農業集落排水施設でコンポスト化） | J38: 農地還元（コンポスト化汚泥）（農業集落排水施設以外でコンポスト化） | K38: 埋立（直接埋立：焼却なし） | L38: 埋立（焼却あり） | M38: 建設資材化
A39: 現状が農地還元の場合 | C39: 脱水 | D39: =【入力】ユーザー入力シート!H$27 -> 0 | F39: =IF($D39=0,"し尿処理施設",$D39) -> し尿処理施設 | G39: =IF($D39=0,"し尿処理施設",$D39) -> し尿処理施設 | H39: =IF($D39=0,"し尿処理施設",$D39) -> し尿処理施設 | I39: 農業集落排水施設 | J39: し尿処理施設 | K39: し尿処理施設 | L39: し尿処理施設 | M39: し尿処理施設
A40: 現状が農地還元以外の場合 | C40: 脱水 | D40: =【入力】ユーザー入力シート!H$27 -> 0 | F40: =IF($D40=0,"し尿処理施設",$D40) -> し尿処理施設 | G40: し尿処理施設 | H40: し尿処理施設 | I40: 農業集落排水施設 | J40: し尿処理施設 | K40: し尿処理施設 | L40: し尿処理施設 | M40: し尿処理施設

Sheet 電力CO2排出量原単位 (hidden)
A1: 地球温暖化対策の推進に関する法律施行令第三条第一項第一号ハ
A2: ■事務事業編の「温室効果ガス総排出量」の算定における電気の排出係数
A4: また、本係数は年度ごとに変化するため、更新する必要がある。（現在は令和4年の数値が引用されるため、上書きすると最新数値で計算可能）
A5: 【１】排出係数 | C5: （単位：㎏-CO2/kWh）
A6: 電気事業者名 | C6: 令和4年
A7: 北海道電力（株） | C7: 0.533
A8: 東北電力（株） | C8: 0.477
A9: 東京電力エナジーパートナー（株） | C9: 0.457
A10: 中部電力ミライズ（株）（旧：中部電力（株）） | C10: 0.433
A11: 北陸電力（株） | C11: 0.487
A12: 関西電力（株） | C12: 0.36
A13: 中国電力（株） | C13: 0.537
A14: 四国電力（株） | C14: 0.37
A15: 九州電力（株） | C15: 0.407
A16: 沖縄電力（株） | C16: 0.71

Sheet 温対法排出原単位 (hidden)
B2: ■これから算出する温室効果ガス総排出量については全て以下の値を使用してください。
B3: ■これから平成22年度より前の温室効果ガス総排出量を算定する場合においても、以下の値を使用してください。
C4: 排出係数 | E4: 政令の発熱量 | G4: 活動量 | H4: 参考
C5: 数値 | D5: 単位 | E5: 数値 | F5: 単位
A6: 一号 二酸化炭素（CO2）
A7: イ：燃料の燃焼に伴う排出 | G7: 総排出量算定期間に本来の用途に従って使用された当該燃料の量
B8: 一般炭 | C8: 0.0247 | D8: （ｋｇ－C/MJ） | E8: 25.7 | F8: （MJ/ｋｇ） | H8: =C8*E8*44/12 -> 2.327563333 | I8: (kg-CO2／kg)に相当
B9: ガソリン | C9: 0.0183 | D9: （ｋｇ－C/MJ） | E9: 34.6 | F9: （ＭＪ／ｌ） | H9: =C9*E9*44/12 -> 2.32166 | I9: (kg-CO2／l)に相当
B10: ジェット燃料油 | C10: 0.0183 | D10: （ｋｇ－C/MJ） | E10: 36.7 | F10: （ＭＪ／ｌ） | H10: 2.46257 | I10: (kg-CO2／l)に相当
B11: 灯油 | C11: 0.0185 | D11: （ｋｇ－C/MJ） | E11: 36.7 | F11: （ＭＪ／ｌ） | H11: 2.489483333 | I11: (kg-CO2／l)に相当
B12: 軽油 | C12: 0.0187 | D12: （ｋｇ－C/MJ） | E12: 37.7 | F12: （ＭＪ／ｌ） | H12: 2.584963333 | I12: (kg-CO2／l)に相当
B13: Ａ重油 | C13: 0.0189 | D13: （ｋｇ－C/MJ） | E13: 39.1 | F13: （ＭＪ／ｌ） | H13: 2.70963 | I13: (kg-CO2／l)に相当
B14: Ｂ重油又はＣ重油 | C14: 0.0195 | D14: （ｋｇ－C/MJ） | E14: 41.9 | F14: （ＭＪ／ｌ） | H14: 2.99585 | I14: (kg-CO2／l)に相当
B15: 液化石油ガス（ＬＰＧ） | C15: 0.0161 | D15: （ｋｇ－C/MJ） | E15: 50.8 | F15: （MJ/ｋｇ） | H15: 2.998893333 | I15: (kg-CO2／kg)に相当
B16: 液化天然ガス（ＬＮＧ） | C16: 0.0135 | D16: （ｋｇ－C/MJ） | E16: 54.6 | F16: （MJ/ｋｇ） | H16: 2.7027 | I16: (kg-CO2／kg)に相当
B17: 都市ガス | C17: 0.0136 | D17: （ｋｇ－C/MJ） | E17: 44.8 | F17: （ＭＪ／Nm3） | H17: 2.234026667 | I17: (kg-CO2／Nm3)に相当
B18: （参考）都市ガス | C18: 0.0136 | D18: （ｋｇ－C/MJ） | E18: 43.3 | F18: （ＭＪ／Nm3） | H18: 2.159226667 | I18: (kg-CO2／m3 )に相当
A19: ロ：他人から供給された電気の使用に伴う排出 | C19: 事業者別に毎年公表（※別表1） | G19: 総排出量算定期間において使用された他人から供給された電気の量
A20: ハ：他人から供給された熱の使用に伴う排出 | C20: 0.057 | D20: （ｋｇ－CO2/MJ） | G20: 総排出量算定期間において使用された他人から供給された熱の量
A21: ニ：一般廃棄物の焼却に伴う排出
B22: （１）廃プラスチック類（合成繊維の廃棄物に限る。） | C22: 624 | D22: （ｋｇ－C/ｔ） | H22: =C22*44/12 -> 2288 | I22: (kg-CO2／t)に相当
B23: （２）廃プラスチック類（合成繊維の廃棄物を除く。） | C23: 754 | D23: （ｋｇ－C/ｔ） | H23: =C23*44/12 -> 2764.666667 | I23: (kg-CO2／t)に相当
B24: （３）廃棄物を原材料とする固形燃料（古紙又は廃プラスチック類を主たる原材料とするもの及び動物性の廃棄物又は植物性の廃棄物のみを原材料とするものを除く。） | C24: 211 | D24: （ｋｇ－C/ｔ） | H24: =C24*44/12 -> 773.6666667 | I24: (kg-CO2／t)に相当
A25: ホ：産業廃棄物の焼却に伴う排出
B26: （１）廃油 | C26: 796 | D26: （ｋｇ－C/ｔ） | G26: 総排出量算定期間に焼却された産業廃棄物のうちの廃油の量（湿重量ベース） | H26: =C26*44/12 -> 2918.666667 | I26: (kg-CO2／t)に相当
B27: （２）廃プラスチック | C27: 697 | D27: （ｋｇ－C/ｔ） | G27: 総排出量算定期間に焼却された産業廃棄物のうちの廃プラスチック類の量（湿重量ベース） | H27: =C27*44/12 -> 2555.666667 | I27: (kg-CO2／t)に相当
A28: ヘ：その他
A29: 二号 メタン（CH4）
A30: イ：ボイラーにおける燃料の使用に伴う排出 | I30: (kg-CO2／t)に相当
B31: 木材 | C31: 0.074 | D31: （ｋｇ－ＣＨ４／ＧＪ） | E31: 0.0144 | F31: （ＧＪ／ｋｇ） | G31: 総排出量算定期間において本来の用途に従ってボイラーにおいて使用された当該燃料の量 | H31: =C31*E31 -> 0.0010656 | I31: (kg-CH4／kg)に相当
B32: 木炭 | C32: 0.074 | D32: （ｋｇ－ＣＨ４／ＧＪ） | E32: 0.0305 | F32: （ＧＪ／ｋｇ） | H32: =C32*E32 -> 0.002257 | I32: (kg-CH4／kg)に相当
A33: ロ：ガス機関又はガソリン機関（航空機、自動車又は船舶に用いられるものを除く。）における燃料の使用に伴う排出
B34: 液化石油ガス（ＬＰＧ） | C34: 0.054 | D34: （ｋｇ－ＣＨ４／ＧＪ） | E34: 0.0508 | F34: （ＧＪ／ｋｇ） | G34: 総排出量算定期間において本来の用途に従ってガス機関又はガソリン機関（航空機、自動車又は船舶に用いられるものを除 く。）において使用された当該燃料の量 | H34: =C34*E34 -> 0.0027432 | I34: (kg-CH4／ kg)に相当
B35: 都市ガス | C35: 0.054 | D35: （ｋｇ－ＣＨ４／ＧＪ） | E35: 0.0448 | F35: （ＧＪ／N㎥ ） | H35: =C35*E35 -> 0.0024192 | I35: (kg-CH4／ N ㎥ )に相当
B36: （参考）都市ガス | C36: 0.054 | D36: （ｋｇ－ＣＨ４／ＧＪ） | E36: 0.0433 | F36: （ＧＪ／㎥ ） | H36: =C36*E36 -> 0.0023382 | I36: (kg-CH4／㎥ )に相当
A37: ハ：家庭用機器（こんろ、湯沸器、ストーブその他の一般消費者が通常生活の用に供する機械器具をいう。）における燃料の使用に伴う排出
B38: 灯油 | C38: 0.0095 | D38: （ｋｇ－ＣＨ４／ＧＪ） | E38: 0.0367 | F38: （ＧＪ／ｌ） | G38: 総排出量算定期間において本来の用途に従って家庭用機器（こんろ、湯沸器、ストーブその他の一般消費者が通常生活の用に供 する機械器具をいう。）において使用された当該燃料の量 | H38: =C38*E38 -> 0.00034865 | I38: (kg-CH4／ｌ )に相当
B39: 液化石油ガス（ＬＰＧ） | C39: 0.0045 | D39: （ｋｇ－ＣＨ４／ＧＪ） | E39: 0.0508 | F39: （ＧＪ／ｋｇ） | H39: =C39*E39 -> 0.0002286 | I39: (kg-CH4／kg)に相当
B40: 都市ガス | C40: 0.0045 | D40: （ｋｇ－ＣＨ４／ＧＪ） | E40: 0.0448 | F40: （ＧＪ／N㎥ ） | H40: =C40*E40 -> 0.0002016 | I40: (kg-CH4／ N m3 )に相当
B41: （参考）都市ガス | C41: 0.0045 | D41: （ｋｇ－ＣＨ４／ＧＪ） | E41: 0.0433 | F41: （ＧＪ／㎥ ） | H41: =C41*E41 -> 0.00019485 | I41: (kg-CH4／m3 )に相当
A42: ニ：自動車の走行に伴う排出
B43: （１）ガソリン・ＬＰＧ／乗用車 | C43: 1e-05 | D43: （ｋｇ－ＣＨ4／ｋｍ） | G43: 総排出量算定期間における当該車両１台当たりの走行量
B44: （２）ガソリン／バス | C44: 3.5e-05 | D44: （ｋｇ－ＣＨ4／ｋｍ）
B45: （３）ガソリン／軽乗用車 | C45: 1e-05 | D45: （ｋｇ－ＣＨ4／ｋｍ）
B46: （４）ガソリン／普通貨物車 | C46: 3.5e-05 | D46: （ｋｇ－ＣＨ4／ｋｍ）
B47: （５）ガソリン／小型貨物車 | C47: 1.5e-05 | D47: （ｋｇ－ＣＨ4／ｋｍ）
B48: （６）ガソリン／軽貨物車 | C48: 1.1e-05 | D48: （ｋｇ－ＣＨ4／ｋｍ）
B49: （７）ガソリン／特殊用途車 | C49: 3.5e-05 | D49: （ｋｇ－ＣＨ4／ｋｍ）
A50: 二号 メタン（CH4）（つづき）
B51: （８）ディーゼル／乗用車 | C51: 2e-06 | D51: （ｋｇ－ＣＨ4／ｋｍ）
B52: （９）ディーゼル／バス | C52: 1.7e-05 | D52: （ｋｇ－ＣＨ4／ｋｍ）
B53: （１０）ディーゼル／普通貨物車 | C53: 1.5e-05 | D53: （ｋｇ－ＣＨ4／ｋｍ）
B54: （１１）ディーゼル／小型貨物車 | C54: 7.6e-06 | D54: （ｋｇ－ＣＨ4／ｋｍ）
B55: （１２）ディーゼル／特種用途車 | C55: 1.3e-05 | D55: （ｋｇ－ＣＨ4／ｋｍ）
A56: ホ：船舶の航行に伴う排出
B57: （１）軽油 | C57: 0.25 | D57: （ｋｇ－ＣＨ4／ｋｌ） | G57: 総排出量算定期間における船舶の当該燃料の消費量
B58: （２）Ａ重油 | C58: 0.26 | D58: （ｋｇ－ＣＨ4／ｋｌ）
B59: （３）Ｂ重油又はＣ重油 | C59: 0.28 | D59: （ｋｇ－ＣＨ4／ｋｌ）
A60: ヘ：家畜の飼養に伴う排出（消化管内発酵）
B61: （１）牛 | C61: 82 | D61: （ｋｇ－CH4／頭・年） | G61: 総排出量算定期間において飼養された家畜の平均的な頭・羽数
B62: （２）馬 | C62: 18 | D62: （ｋｇ－CH4／頭・年）
B63: （３）めん羊 | C63: 4.1 | D63: （ｋｇ－CH4／頭・年）
B64: （４）山羊 | C64: 4.1 | D64: （ｋｇ－CH4／頭・年）
B65: （５）豚 | C65: 1.1 | D65: （ｋｇ－CH4／頭・年）
A66: ト：家畜のふん尿処理等に伴う排出
B67: （１）牛 | C67: 24 | D67: （ｋｇ－CH4／頭・年） | G67: 総排出量算定期間において飼養された家畜の平均的な頭・羽数
B68: （２）馬 | C68: 2.1 | D68: （ｋｇ－CH4／頭・年）
B69: （３）めん羊 | C69: 0.28 | D69: （ｋｇ－CH4／頭・年）
B70: （４）山羊 | C70: 0.18 | D70: （ｋｇ－CH4／頭・年）
B71: （５）豚 | C71: 1.5 | D71: （ｋｇ－CH4／頭・年）
B72: （６）鶏 | C72: 0.011 | D72: （ｋｇ－CH4／羽・年）
A73: チ：水田からの排出 | C73: 0.016 | D73: （ｋｇ－CH4／m2）
A74: リ：放牧地における牛のふん尿からの排出 | C74: 1.3 | D74: （ｋｇ－CH4／頭・年） | G74: 総排出量算定期間において放牧された牛の平均的な頭数
A75: ヌ：農業活動に伴う殻・わらの焼却による排出
B76: （１）殻 | C76: 0.0021 | D76: （ｋｇ－CH4／kg） | G76: 総排出量算定期間において焼却された当該植物性の殻・わらの量
B77: （２）わら | C77: 0.0021 | D77: （ｋｇ－CH4／kg）
A78: ル：埋立処分に伴う排出
B79: （１）食物くず | C79: 145 | D79: （ｋｇ－CH4／ｔ） | G79: 総排出量算定期間に焼却された産業廃棄物のうちの紙くず又は木くずの量（湿重量ベース）
B80: （２）紙くず | C80: 136 | D80: （ｋｇ－CH4／ｔ） | G80: 総排出量算定期間に焼却された産業廃棄物のうちの廃油の量（湿重量ベース）
B81: （３）繊維くず | C81: 150 | D81: （ｋｇ－CH4／ｔ） | G81: 総排出量算定期間に焼却された産業廃棄物のうちの廃プラスチック類の量（湿重量ベース）
B82: （４）木くず | C82: 151 | D82: （ｋｇ－CH4／ｔ） | G82: 総排出量算定期間に焼却された産業廃棄物のうちの下水汚泥の量（湿重量ベース）
A83: ヲ：下水又はし尿の処理に伴う排出
B84: （１）終末処理場 | C84: 0.00088 | D84: （ｋｇ－CH4／ｍ3 ） | G84: 総排出量当該処理施設において算定期間に処理された下水又はし尿の量
B85: （２）し尿処理施設 | C85: 0.038 | D85: （ｋｇ－CH4／ｍ3 ）
A86: ワ：浄化槽によるし尿及び雑排水の処理に伴う排出 | C86: 0.59 | D86: （ｋｇ－CH4／人） | G86: 総排出量算定期間における浄化槽の処理対象人員
A87: カ：一般廃棄物の焼却に伴う排出
B88: （１）連続燃焼式焼却施設 | C88: 0.00095 | D88: （ｋｇ－CH4／ｔ） | G88: 総排出量算定期間に当該施設にて焼却された一般廃棄物の量（湿重量ベース）
B89: （２）准連続燃焼式焼却施設 | C89: 0.077 | D89: （ｋｇ－CH4／ｔ）
B90: （３）バッチ燃焼式焼却施設 | C90: 0.076 | D90: （ｋｇ－CH4／ｔ）
A91: ヨ：産業廃棄物の焼却に伴う排出
B92: （１）廃油 | C92: 0.00056 | D92: （ｋｇ－CH4／ｔ） | G92: 総排出量算定期間に焼却された産業廃棄物のうちの紙くず又は木くずの量（湿重量ベース）
B93: （２）汚泥 | C93: 0.0097 | D93: （ｋｇ－CH4／ｔ） | G93: 総排出量算定期間に焼却された産業廃棄物のうちの廃油の量（湿重量ベース）
A94: タ：その他
A95: 三号 一酸化二窒素（N2O）
A96: イ：ボイラーにおける燃料の使用に伴う排出
B97: 一般炭 | C97: 0.00058 | D97: （ｋｇ－Ｎ2Ｏ／ＧＪ） | E97: 0.0257 | F97: （ＧＪ／ｋｇ） | G97: 総排出量算定期間において本来の用途に従ってボイラーにおいて使用された当該燃料の量 | H97: =C97*E97 -> 1.4906e-05 | I97: (kg-N2O／ｋｇ)に相当
B98: 木材 | C98: 0.00058 | D98: （ｋｇ－Ｎ2Ｏ／ＧＪ） | E98: 0.0144 （ＧＪ／ｋｇ） | F98: （ＧＪ／ｋｇ） | H98: =0.00058*0.0144 -> 8.352e-06 | I98: (kg-N2O／ｋｇ)に相当
B99: 木炭 | C99: 0.00058 | D99: （ｋｇ－Ｎ2Ｏ／ＧＪ） | E99: 0.0305 （ＧＪ／ｋｇ） | F99: （ＧＪ／ｋｇ） | H99: =0.00058*0.0305 -> 1.769e-05 | I99: (kg-N2O／ｋｇ)に相当
B100: Ｂ重油又はＣ重油 | C100: 1.7e-05 | D100: （ｋｇ－Ｎ2Ｏ／ＧＪ） | E100: 0.0419 | F100: （ＧＪ／ｌ） | H100: =C100*E100 -> 7.123e-07 | I100: (kg-N2O／ｌ)に相当
A101: ロ：ディーゼル機関（自動車、鉄道車両又は船舶に用いられるものを除く。）における燃料の使用に伴う排出
B102: 灯油 | C102: 0.0017 | D102: （ｋｇ－Ｎ2Ｏ／ＧＪ） | E102: 0.0367 | F102: （ＧＪ／ｌ） | G102: 総排出量算定期間において本来の用途に従ってディーゼル機関（自動車、鉄道車両又は船舶に用いられるものを除く。）におい て使用された当該燃料の量 | H102: =C102*E102 -> 6.239e-05 | I102: (kg-N2O／ｌ)に相当
B103: 軽油 | C103: 0.0017 | D103: （ｋｇ－Ｎ2Ｏ／ＧＪ） | E103: 0.0377 | F103: （ＧＪ／ｌ） | H103: 6.409e-05 | I103: (kg-N2O／ｌ)に相当
B104: Ａ重油 | C104: 0.0017 | D104: （ｋｇ－Ｎ2Ｏ／ＧＪ） | E104: 0.0391 | F104: （ＧＪ／ｌ） | H104: 6.647e-05 | I104: (kg-N2O／ｌ)に相当
B105: Ｂ重油又はＣ重油 | C105: 0.0017 | D105: （ｋｇ－Ｎ2Ｏ／ＧＪ） | E105: 0.0419 | F105: （ＧＪ／ｌ） | H105: 7.123e-05 | I105: (kg-N2O／ｌ)に相当
B106: 液化石油ガス（ＬＰＧ） | C106: 0.0017 | D106: （ｋｇ－Ｎ2Ｏ／ＧＪ） | E106: 0.0508 | F106: （ＧＪ／ｋｇ） | H106: 8.636e-05 | I106: (kg-N2O／kg)に相当
B107: 都市ガス | C107: 0.0017 | D107: （ｋｇ－Ｎ2Ｏ／ＧＪ） | E107: 0.0448 | F107: （ＧＪ／Nｍ3 ） | H107: 7.616e-05 | I107: (kg-N2O／kg)に相当
B108: （参考）都市ガス | C108: 0.0017 | D108: （ｋｇ－Ｎ2Ｏ／ＧＪ） | E108: 0.0433 | F108: （ＧＪ／ｍ3 ） | H108: 7.361e-05 | I108: (kg-N2O／kg)に相当
A109: ハ：ガス機関又はガソリン機関（航空機、自動車又は船舶に用いられるものを除く。）における燃料の使用に伴う排出
B110: 液化石油ガス（ＬＰＧ） | C110: 0.00062 | D110: （ｋｇ－Ｎ2Ｏ／ＧＪ） | E110: 0.0508 | F110: （ＧＪ／ｋｇ） | G110: 総排出量算定期間において本来の用途に従ってガス機関又はガソリン機関（航空機、自動車又は船舶に用いられるものを除 く。）において使用された当該燃料の量 | H110: =C110*E110 -> 3.1496e-05 | I110: (kg-N2O／ｋｇ)に相当
B111: 都市ガス | C111: 0.00062 | D111: （ｋｇ－Ｎ2Ｏ／ＧＪ） | E111: 0.0448 | F111: （ＧＪ／Nｍ3 ） | H111: =C111*E111 -> 2.7776e-05 | I111: (kg-N2O ／ N ｍ3)に相当
B112: （参考）都市ガス | C112: 0.00062 | D112: （ｋｇ－Ｎ2Ｏ／ＧＪ） | E112: 0.0433 | F112: （ＧＪ／ｍ3 ） | H112: =C112*E112 -> 2.6846e-05 | I112: (kg-N2O ／ｍ3 )に相当
A113: ニ：家庭用機器（こんろ、湯沸器、ストーブその他の一般消費者が通常生活の用に供する機械器具をいう。）における燃料の使用に伴う排出
B114: 灯油 | C114: 0.00057 | D114: （ｋｇ－Ｎ2Ｏ／ＧＪ） | E114: 0.0367 | F114: （ＧＪ／ｌ） | G114: 総排出量算定期間において本来の用途に従って家庭用機器（こんろ、湯沸器、ストーブその他の一般消費者が通常生活の用に供 する機械器具をいう。）において使用された当該燃料の量 | H114: =C114*E114 -> 2.0919e-05 | I114: (kg-N2O／ｌ)に相当
B115: 液化石油ガス（ＬＰＧ） | C115: 9e-05 | D115: （ｋｇ－Ｎ2Ｏ／ＧＪ） | E115: 0.0508 | F115: （ＧＪ／ｋｇ） | H115: =C115*E115 -> 4.572e-06 | I115: (kg-N2O／ｋｇ)に相当
B116: 都市ガス | C116: 9e-05 | D116: （ｋｇ－Ｎ2Ｏ／ＧＪ） | E116: 0.0448 | F116: （ＧＪ／ｍ3 ） | H116: =C116*E116 -> 4.032e-06 | I116: (kg-N2O ／ｍ3 )に相当
B117: （参考）都市ガス | C117: 9e-05 | D117: （ｋｇ－Ｎ2Ｏ／ＧＪ） | E117: 0.0433 | F117: （ＧＪ／ｍ3 ） | H117: =C117*E117 -> 3.897e-06 | I117: (kg-N2O ／ｍ3 )に相当
A118: ホ：自動車の走行に伴う排出
B119: （１）ガソリン・ＬＰＧ／乗用車 | C119: 2.9e-05 | D119: （ｋｇ－Ｎ2Ｏ／ｋｍ） | G119: 総排出量算定期間における当該車両１台当たりの走行量
B120: （２）ガソリン／バス | C120: 4.1e-05 | D120: （ｋｇ－Ｎ2Ｏ／ｋｍ）
B121: （３）ガソリン／軽乗用車 | C121: 2.2e-05 | D121: （ｋｇ－Ｎ2Ｏ／ｋｍ）
B122: （４）ガソリン／普通貨物車 | C122: 3.9e-05 | D122: （ｋｇ－Ｎ2Ｏ／ｋｍ）
B123: （５）ガソリン／小型貨物車 | C123: 2.6e-05 | D123: （ｋｇ－Ｎ2Ｏ／ｋｍ）
B124: （６）ガソリン／軽貨物車 | C124: 2.2e-05 | D124: （ｋｇ－Ｎ2Ｏ／ｋｍ）
B125: （７）ガソリン／特殊用途車 | C125: 3.5e-05 | D125: （ｋｇ－Ｎ2Ｏ／ｋｍ）
B126: （８）ディーゼル／乗用車 | C126: 7e-06 | D126: （ｋｇ－Ｎ2Ｏ／ｋｍ）
B127: （９）ディーゼル／バス | C127: 2.5e-05 | D127: （ｋｇ－Ｎ2Ｏ／ｋｍ）
B128: （１０）ディーゼル／普通貨物車 | C128: 1.4e-05 | D128: （ｋｇ－Ｎ2Ｏ／ｋｍ）
B129: （１１）ディーゼル／小型貨物車 | C129: 9e-06 | D129: （ｋｇ－Ｎ2Ｏ／ｋｍ）
B130: （１２）ディーゼル／特種用途車 | C130: 2.5e-05 | D130: （ｋｇ－Ｎ2Ｏ／ｋｍ）
A131: ヘ：船舶の航行に伴う排出
B132: （１）軽油 | C132: 0.073 | D132: （ｋｇ－Ｎ2Ｏ／ｋｌ） | G132: 総排出量算定期間における船舶の当該燃料の消費量
B133: （２）Ａ重油 | C133: 0.074 | D133: （ｋｇ－Ｎ2Ｏ／ｋｌ）
B134: （３）Ｂ重油又はＣ重油 | C134: 0.079 | D134: （ｋｇ－Ｎ2Ｏ／ｋｌ）
A135: ト：麻酔剤（笑気ガス）の使用に伴う排出 | C135: － | G135: 総排出量算定期間において麻酔剤として使用された一酸化二窒素の量
A136: チ：家畜のふん尿処理等に伴う排出
B137: （１）牛 | C137: 1.61 | D137: （ｋｇ－Ｎ2Ｏ／頭・年） | G137: 総排出量算定期間において飼養された家畜の平均的な頭・羽数
B138: （２）豚 | C138: 0.56 | D138: （ｋｇ－Ｎ2Ｏ／頭・年）
B139: （３）鶏 | C139: 0.0293 | D139: （ｋｇ－Ｎ2Ｏ／羽・年）
A140: リ：耕地に使用された化学肥料からの排出
B141: （１）畑 | C141: 9.74 | D141: （ｋｇ－Ｎ2Ｏ／ｔ－Ｎ） | G141: 総排出量算定期間において耕地で使用された化学肥料に含まれる窒素の量
B142: （２）水田 | C142: 4.87 | D142: （ｋｇ－Ｎ2Ｏ／ｔ－Ｎ）
A143: 三号 一酸化二窒素（N2O）（つづき）
A144: ヌ：農作物の栽培に使用された肥料からの排出
B145: （１）野菜 | C145: 9.74 | D145: （ｋｇ－Ｎ2Ｏ／ｔ－Ｎ） | G145: 総排出量算定期間において当該農作物の栽培のために使用された肥料（化学肥料を除く。）に含まれる窒素の量
B146: （２）水稲 | C146: 4.87 | D146: （ｋｇ－Ｎ2Ｏ／ｔ－Ｎ）
B147: （３）果樹 | C147: 9.74 | D147: （ｋｇ－Ｎ2Ｏ／ｔ－Ｎ）
B148: （４）茶樹 | C148: 45.6 | D148: （ｋｇ－Ｎ2Ｏ／ｔ－Ｎ）
B149: （５）ばれいしょ | C149: 9.74 | D149: （ｋｇ－Ｎ2Ｏ／ｔ－Ｎ）
B150: （６）飼料作物 | C150: 9.74 | D150: （ｋｇ－Ｎ2Ｏ／ｔ－Ｎ）
A151: ル：放牧地における牛のふん尿からの排出 | C151: 0.18 | D151: （ｋｇ－Ｎ2Ｏ／頭・年） | G151: 総排出量算定期間において放牧された牛の平均的な頭数
A152: ヲ：農業活動に伴う殻・わらの焼却による排出
B153: （１）殻 | C153: 5.7e-05 | D153: （ｋｇ－Ｎ2Ｏ／ｔ－Ｎ） | G153: 総排出量算定期間において焼却された当該植物性の殻・わらの量
B154: （２）わら | C154: 5.7e-05 | D154: （ｋｇ－Ｎ2Ｏ／ｔ－Ｎ）
A155: ワ：下水又はし尿の処理に伴う排出
B156: （１）終末処理場 | C156: 0.00016 | D156: （ｋｇ－Ｎ2Ｏ／ｍ3 ） | G156: 総排出量当該処理施設において算定期間に処理された下水又はし尿の量
B157: （２）し尿処理施設 | C157: 0.00093 | D157: （ｋｇ－Ｎ2Ｏ／ｍ3 ）
A158: カ：浄化槽によるし尿及び雑排水の処理に伴う排出 | C158: 0.023 | D158: （ｋｇ－Ｎ2Ｏ／人） | G158: 総排出量算定期間における浄化槽の処理対象人員
A159: ヨ：一般廃棄物の焼却に伴う排出
B160: （１）連続燃焼式焼却施設 | C160: 0.0567 | D160: （ｋｇ－Ｎ2Ｏ／ｔ） | G160: 総排出量算定期間に当該施設にて焼却された一般廃棄物の量（湿重量ベース）
B161: （２）准連続燃焼式焼却施設 | C161: 0.0539 | D161: （ｋｇ－Ｎ2Ｏ／ｔ）
B162: （３）バッチ燃焼式焼却施設 | C162: 0.0724 | D162: （ｋｇ－Ｎ2Ｏ／ｔ）
A163: タ：産業廃棄物の焼却に伴う排出
B164: （１）紙くず又は木くず | C164: 0.01 | D164: （ｋｇ－Ｎ2Ｏ／ｔ） | G164: 総排出量算定期間に焼却された産業廃棄物のうちの紙くず又は木くずの量（湿重量ベース）
B165: （２）廃油 | C165: 0.0098 | D165: （ｋｇ－Ｎ2Ｏ／ｔ） | G165: 総排出量算定期間に焼却された産業廃棄物のうちの廃油の量（湿重量ベース）
B166: （３）廃プラスチック類 | C166: 0.17 | D166: （ｋｇ－Ｎ2Ｏ／ｔ） | G166: 総排出量算定期間に焼却された産業廃棄物のうちの廃プラスチック類の量（湿重量ベース）
B167: （４）下水汚泥 | C167: 1.09 | D167: （ｋｇ－Ｎ2Ｏ／ｔ） | G167: 総排出量算定期間に焼却された産業廃棄物のうちの下水汚泥の量（湿重量ベース）
B168: （５）汚泥（下水汚泥を除く） | C168: 0.45 | D168: （ｋｇ－Ｎ2Ｏ／ｔ） | G168: 総排出量算定期間に焼却された産業廃棄物のうちの汚泥の量（湿重量ベース）
A169: レ：その他
A170: 四号 ハイドロフルオロカーボン類（HFCs）
A171: イ：自動車用エアコンディショナー使用時の排出 | C171: 0.01 | D171: （ｋｇＨＦＣ／台・年） | G171: 総排出量算定期間において使用に供された自動車用エアコンディショナーの台数（当該物質が封入されたもの）
A172: ロ：自動車用エアコンディショナー廃棄時の排出 | C172: － | G172: 総排出量算定期間において廃棄された自動車用エアコンディショナーに封入された当該物質の量から回収・適正処理された量を控除した量
A173: ハ：噴霧器、消火器の使用又は廃棄に伴う排出
B174: （１）噴霧器 | C174: － | G174: 総排出量算定期間において噴霧器の使用又は廃棄に伴い排出された当該物質の量
B175: （２）消火剤 | C175: － | G175: 総排出量算定期間において消火剤の使用又は廃棄に伴い排出された当該物質の量
A176: ニ：その他
A177: 五号 パーフルオロカーボン類（PFCs）
A178: イ：その他
A179: 六号 六ふっ化硫黄（SF6）
A180: イ：六ふっ化硫黄が封入された電気機械器具の使用時の排出 | C180: 0.001 | D180: (ｋｇＳＦ6／ｋｇＳＦ6・年) | G180: 総排出量算定期間において使用に供された電気機械器具に封入された六ふっ化硫黄の量
A181: ロ：六ふっ化硫黄が封入された電気機械器具の点検時の排出 | C181: － | G181: 総排出量算定期間において電気機械器具の点検に伴い排出された六ふっ化硫黄の量
A182: ハ：六ふっ化硫黄が封入された電気機械器具の廃棄時の排出 | C182: － | G182: 総排出量算定期間において廃棄された電気機械器具に封入されていた六ふっ化硫黄の量から回収・適正処理された量を控除した量
A183: ニ：その他

Sheet 一次処理電力使用量 (hidden)
A1: R4年度業務における地域整備課提供資料
B3: 汚水処理方式 | C3: 電力使用量（kWh/日） | D3: 電力使用量（kWh/年/人）
B4: JARUS-Ⅰ型 | C4: 392.05 | D4: =C4*365/700 -> 204.4260714
B5: JARUS-Ⅲ型 | C5: 337.25 | D5: =C5*365/700 -> 175.8517857
B6: JARUS-Ⅺ型 | C6: 309.68 | D6: =C6*365/700 -> 161.476
B7: JARUS-ⅩⅣ型 | C7: 274.55 | D7: =C7*365/700 -> 143.1582143
B8: 生物膜法 | C8: - | D8: =(D4+D5)/2 -> 190.1389286
B9: 浮遊生物法 | C9: - | D9: =(D6+D7)/2 -> 152.3171071
B10: その他、または設置機器が不明 | C10: 328.4 | D10: =C10*365/700 -> 171.2371429
B11: ※処理人数は700人規模を想定しているが、処理人数が増えるとばっ気ブロワの台数が増えると考えられる。
B12: ※本検討では各型の電力使用量に計画処理人数を乗じて700人で割ることとする。

Sheet 一次処理活動量 (hidden)
A1: 農業集落排水汚泥利用マニュアル
D2: 単位：％
B3: 型式 | C3: 処理方法 | D3: 濃縮後含水率 | E3: 1000人規模の施設の場合の汚泥の乾物重量 | F3: 強熱減量
B4: JARUS-Ⅰ型 | C4: 生物膜法 | D4: 98 | E4: 13.5 | F4: 0.675
B5: JARUS-Ⅲ型 | C5: 生物膜法 | D5: 98 | E5: 13.5 | F5: 0.675
B6: JARUS-Ⅺ型 | C6: 浮遊生物法 | D6: 98.5 | E6: 21.6 | F6: 0.768
B7: JARUS-ⅩⅣ型 | C7: 浮遊生物法 | D7: 98.5 | E7: 21.6 | F7: 0.768
B8: 生物膜法 | C8: 生物膜法 | D8: 98 | E8: 13.5 | F8: 0.675
B9: 浮遊生物法 | C9: 浮遊生物法 | D9: 98.5 | E9: 21.6 | F9: 0.768
B10: その他、または設置機器が不明 | C10: 中間 | D10: =98.25 -> 98.25 | E10: =(E5+E6)/2 -> 17.55 | F10: =(F5+F6)/2 -> 0.7215

Sheet し尿処理施設推定式 (hidden)
D1: 汚水処理方式 | E1: 嫌気 | F1: 好気 | G1: 好希釈 | H1: 好一段 | I1: 好二段 | J1: 標脱 | K1: 湿式酸化 | L1: 高負荷 | M1: 膜分離 | N1: 焼却 | O1: 下水投入 | P1: 浄化槽専用 | Q1: 一次処理 | R1: その他
D2: 推定式係数 | E2: a1 | F2: a2 | G2: a3 | H2: a4 | I2: a5 | J2: a6 | K2: a7 | L2: a8 | M2: a9 | N2: a10 | O2: a11 | P2: a12 | Q2: a13 | R2: a14 | W2: 切片 | X2: X（年間処理量,kL） | Y2: 累乗
C3: 電力使用量の推定式 | D3: 係数 | E3: -447.252 | F3: 338.64 | G3: -204.697 | H3: 411.483 | I3: 303.091 | J3: 731.958 | K3: 1650.135 | L3: 692.79 | M3: 423.42 | N3: -86.245 | O3: -487.889 | P3: -174.249 | Q3: -712.781 | R3: -165.344 | W3: 1731.757 | Y3: 0.626
D5: 汚泥処理方式 | S5: 焼却 | T5: 脱水 | U5: 乾燥 | V5: 焼却
D6: 推定式係数 | S6: w10 | T6: e1 | U6: e2 | V6: e3 | W6: 切片 | X6: X（年間処理量,kL） | Y6: 累乗
C7: 燃料使用によるCO2排出量推定式 | D7: 係数 | S7: 2.3086 | T7: -1.034 | U7: 0.9524 | V7: 0.8132 | W7: 1.2506 | Y7: 0.5291
B9: 施設名 | C9: 汚水処理方式 | E9: 嫌気 | F9: 好気 | G9: 好希釈 | H9: 好一段 | I9: 好二段 | J9: 標脱 | K9: 湿式酸化 | L9: 高負荷 | M9: 膜分離 | N9: 焼却 | O9: 下水投入 | P9: 浄化槽専用 | Q9: 一次処理 | R9: その他 | S9: 焼却 | T9: 脱水 | U9: 乾燥 | V9: 焼却 | X9: X（年間処理量,kL） | Z9: 電力使用量(KWh） | AA9: 年間処理量あたりの電力使用量（KWh/㎥） | AB9: 焼却以外の燃料使用量に伴うGHG（kg－CO2） | AC9: 焼却以外の年間処理量あたりの燃料使用に伴うGHG（kg-CO2/㎥） | AD9: 焼却の燃料使用量に伴うGHG（kg－CO2） | AE9: 焼却の年間処理量あたりの燃料使用に伴うGHG（kg-CO2/㎥）
A10: 現状 | B10: =【入力】ユーザー入力シート!G$36 -> 0 | C10: =IF(B10=0,"該当無し",VLOOKUP($B10,し尿処理施設一覧!$E$7:$AI$881,18,FALSE)) -> 該当無し | E10: =IF(【入力】ユーザー入力シート!#REF!="有",1,COUNTIF($C10,"*"&E$1&"*"))*E$3 ->  | F10: =IF(【入力】ユーザー入力シート!#REF!="有",1,COUNTIF($C10,"*"&F$1&"*"))*F$3 ->  | G10: =IF(【入力】ユーザー入力シート!#REF!="有",1,COUNTIF($C10,"*"&G$1&"*"))*G$3 ->  | H10: =IF(【入力】ユーザー入力シート!#REF!="有",1,COUNTIF($C10,"*"&H$1&"*"))*H$3 ->  | I10: =IF(【入力】ユーザー入力シート!#REF!="有",1,COUNTIF($C10,"*"&I$1&"*"))*I$3 ->  | J10: =IF(OR(【入力】ユーザー入力シート!#REF!="有",C10="該当無し"),1,COUNTIF($C10,"*"&J$1&"*"))*J$3 ->  | K10: =IF(【入力】ユーザー入力シート!#REF!="有",1,COUNTIF($C10,"*"&K$1&"*"))*K$3 ->  | L10: =IF(【入力】ユーザー入力シート!#REF!="有",1,COUNTIF($C10,"*"&L$1&"*"))*L$3 ->  | M10: =IF(【入力】ユーザー入力シート!#REF!="有",1,COUNTIF($C10,"*"&M$1&"*"))*M$3 ->  | N10: =IF(【入力】ユーザー入力シート!#REF!="有",1,COUNTIF($C10,"*"&N$1&"*"))*N$3 ->  | O10: =IF(【入力】ユーザー入力シート!#REF!="有",1,COUNTIF($C10,"*"&O$1&"*"))*O$3 ->  | P10: =IF(【入力】ユーザー入力シート!#REF!="有",1,COUNTIF($C10,"*"&P$1&"*"))*P$3 ->  | Q10: =IF(【入力】ユーザー入力シート!#REF!="有",1,COUNTIF($C10,"*"&Q$1&"*"))*Q$3 ->  | R10: =IF(【入力】ユーザー入力シート!#REF!="有",1,COUNTIF($C10,"*"&R$1&"*"))*R$3 ->  | S10: =IF(【入力】ユーザー入力シート!#REF!="有",1,COUNTIF($C10,"*"&S$5&"*"))*S$7 ->  | T10: =IF(【入力】ユーザー入力シート!$G27="有",T$7,0) -> 0 | U10: =IF(【入力】ユーザー入力シート!$G29="有",U$7,0) -> 0 | V10: =IF(AND(【入力】ユーザー入力シート!#REF!="有",【入力】ユーザー入力シート!#REF!<>"焼却施設"),V$7,0) ->  | X10: =IF(【出力・現況】GHG排出量算定シート!J$11<>"し尿処理施設",年間処理量の推定値!$G$9,IF(AND(B10=0,【入力】ユーザー入力シート!#REF!=0),し尿処理施設一覧!J$884,IF(【入力】ユーザー入力シート!#REF!=0,VLOOKUP($B10,し尿処理施設一覧!$E$7:$AI$881,6,FALSE),【入力】ユーザー入力シート!#REF!))) -> 0 | Z10: =SUM(E10:R10,$W$3)*$X10^$Y$3 ->  | AA10: =Z10/X10 ->  | AB10: =SUM(S10:U10,$W$7)*$X10^$Y$7*1000 ->  | AC10: =IF(【出力・現況】GHG排出量算定シート!J$11<>"し尿処理施設",AB10/X10/3,AB10/X10) ->  | AD10: =V10*($X10^$Y$7)*1000 ->  | AE10: =AD10/X10 -> 
A11: 比較対象1 | B11: =【入力】ユーザー入力シート!G$36 -> 0 | C11: =IF(B11=0,"該当無し",VLOOKUP($B11,し尿処理施設一覧!$E$7:$AI$881,18,FALSE)) -> 該当無し | E11: =IF(【入力】ユーザー入力シート!#REF!="有",1,COUNTIF($C11,"*"&E$1&"*"))*E$3 ->  | F11: =IF(【入力】ユーザー入力シート!#REF!="有",1,COUNTIF($C11,"*"&F$1&"*"))*F$3 ->  | G11: =IF(【入力】ユーザー入力シート!#REF!="有",1,COUNTIF($C11,"*"&G$1&"*"))*G$3 ->  | H11: =IF(【入力】ユーザー入力シート!#REF!="有",1,COUNTIF($C11,"*"&H$1&"*"))*H$3 ->  | I11: =IF(【入力】ユーザー入力シート!#REF!="有",1,COUNTIF($C11,"*"&I$1&"*"))*I$3 ->  | J11: =IF(OR(【入力】ユーザー入力シート!#REF!="有",C11="該当無し"),1,COUNTIF($C11,"*"&J$1&"*"))*J$3 ->  | K11: =IF(【入力】ユーザー入力シート!#REF!="有",1,COUNTIF($C11,"*"&K$1&"*"))*K$3 ->  | L11: =IF(【入力】ユーザー入力シート!#REF!="有",1,COUNTIF($C11,"*"&L$1&"*"))*L$3 ->  | M11: =IF(【入力】ユーザー入力シート!#REF!="有",1,COUNTIF($C11,"*"&M$1&"*"))*M$3 ->  | N11: =IF(【入力】ユーザー入力シート!#REF!="有",1,COUNTIF($C11,"*"&N$1&"*"))*N$3 ->  | O11: =IF(【入力】ユーザー入力シート!#REF!="有",1,COUNTIF($C11,"*"&O$1&"*"))*O$3 ->  | P11: =IF(【入力】ユーザー入力シート!#REF!="有",1,COUNTIF($C11,"*"&P$1&"*"))*P$3 ->  | Q11: =IF(【入力】ユーザー入力シート!#REF!="有",1,COUNTIF($C11,"*"&Q$1&"*"))*Q$3 ->  | R11: =IF(【入力】ユーザー入力シート!#REF!="有",1,COUNTIF($C11,"*"&R$1&"*"))*R$3 ->  | S11: =IF(【入力】ユーザー入力シート!#REF!="有",1,COUNTIF($C11,"*"&S$5&"*"))*S$7 ->  | T11: =IF(【出力・比較対象1】GHG排出量算定シート!I$11="有",T$7,0) ->  | U11: =IF(【出力・比較対象1】GHG排出量算定シート!I$13="有",U$7,0) ->  | V11: =IF(AND(【出力・比較対象1】GHG排出量算定シート!I$15="有",【出力・比較対象1】GHG排出量算定シート!J$15<>"焼却施設"),V$7,0) ->  | X11: =IF(【出力・比較対象1】GHG排出量算定シート!J$11<>"し尿処理施設",年間処理量の推定値!$G$9,IF(AND(B11=0,【入力】ユーザー入力シート!#REF!=0),し尿処理施設一覧!J$884,IF(【入力】ユーザー入力シート!#REF!=0,VLOOKUP($B11,し尿処理施設一覧!$E$7:$AI$881,6,FALSE),【入力】ユーザー入力シート!#REF!))) ->  | Z11: =SUM(E11:R11,$W$3)*$X11^$Y$3 ->  | AA11: =Z11/X11 ->  | AB11: =SUM(S11:U11,$W$7)*$X11^$Y$7*1000 ->  | AC11: =IF(【出力・比較対象1】GHG排出量算定シート!J$11<>"し尿処理施設",AB11/X11/3,AB11/X11) ->  | AD11: =V11*($X11^$Y$7)*1000 ->  | AE11: =AD11/X11 -> 
A12: 比較対象2 | B12: =【入力】ユーザー入力シート!G$36 -> 0 | C12: =IF(B12=0,"該当無し",VLOOKUP($B12,し尿処理施設一覧!$E$7:$AI$881,18,FALSE)) -> 該当無し | E12: =IF(【入力】ユーザー入力シート!#REF!="有",1,COUNTIF($C12,"*"&E$1&"*"))*E$3 ->  | F12: =IF(【入力】ユーザー入力シート!#REF!="有",1,COUNTIF($C12,"*"&F$1&"*"))*F$3 ->  | G12: =IF(【入力】ユーザー入力シート!#REF!="有",1,COUNTIF($C12,"*"&G$1&"*"))*G$3 ->  | H12: =IF(【入力】ユーザー入力シート!#REF!="有",1,COUNTIF($C12,"*"&H$1&"*"))*H$3 ->  | I12: =IF(【入力】ユーザー入力シート!#REF!="有",1,COUNTIF($C12,"*"&I$1&"*"))*I$3 ->  | J12: =IF(OR(【入力】ユーザー入力シート!#REF!="有",C12="該当無し"),1,COUNTIF($C12,"*"&J$1&"*"))*J$3 ->  | K12: =IF(【入力】ユーザー入力シート!#REF!="有",1,COUNTIF($C12,"*"&K$1&"*"))*K$3 ->  | L12: =IF(【入力】ユーザー入力シート!#REF!="有",1,COUNTIF($C12,"*"&L$1&"*"))*L$3 ->  | M12: =IF(【入力】ユーザー入力シート!#REF!="有",1,COUNTIF($C12,"*"&M$1&"*"))*M$3 ->  | N12: =IF(【入力】ユーザー入力シート!#REF!="有",1,COUNTIF($C12,"*"&N$1&"*"))*N$3 ->  | O12: =IF(【入力】ユーザー入力シート!#REF!="有",1,COUNTIF($C12,"*"&O$1&"*"))*O$3 ->  | P12: =IF(【入力】ユーザー入力シート!#REF!="有",1,COUNTIF($C12,"*"&P$1&"*"))*P$3 ->  | Q12: =IF(【入力】ユーザー入力シート!#REF!="有",1,COUNTIF($C12,"*"&Q$1&"*"))*Q$3 ->  | R12: =IF(【入力】ユーザー入力シート!#REF!="有",1,COUNTIF($C12,"*"&R$1&"*"))*R$3 ->  | S12: =IF(【入力】ユーザー入力シート!#REF!="有",1,COUNTIF($C12,"*"&S$5&"*"))*S$7 ->  | T12: =IF(【出力・比較対象2】GHG排出量算定シート!I$11="有",T$7,0) ->  | U12: =IF(【出力・比較対象2】GHG排出量算定シート!I$13="有",U$7,0) ->  | V12: =IF(AND(【出力・比較対象2】GHG排出量算定シート!I$15="有",【出力・比較対象2】GHG排出量算定シート!J$15<>"焼却施設"),V$7,0) ->  | X12: =IF(【出力・比較対象2】GHG排出量算定シート!J$11<>"し尿処理施設",年間処理量の推定値!$G$9,IF(AND(B12=0,【入力】ユーザー入力シート!#REF!=0),し尿処理施設一覧!J$884,IF(【入力】ユーザー入力シート!#REF!=0,VLOOKUP($B12,し尿処理施設一覧!$E$7:$AI$881,6,FALSE),【入力】ユーザー入力シート!#REF!))) ->  | Z12: =SUM(E12:R12,$W$3)*$X12^$Y$3 ->  | AA12: =Z12/X12 ->  | AB12: =SUM(S12:U12,$W$7)*$X12^$Y$7*1000 ->  | AC12: =IF(【出力・比較対象2】GHG排出量算定シート!J$11<>"し尿処理施設",AB12/X12/3,AB12/X12) ->  | AD12: =V12*($X12^$Y$7)*1000 ->  | AE12: =AD12/X12 -> 

Sheet 年間処理量の推定値 (hidden)
B2: 農業集落排水施設で脱水や乾燥工程が行われた場合においてもし尿処理施設の推定式を用いるため、何らかの仮定に基づきし尿処理施設の年間処理量を用いる必要がある。ここでは農業集落排水施設の実績処理人口分がし尿処理施設で処理されたと仮定した場合の年間処理量を使用することで年間処理量を算定する。
B7: 農業集落排水施設の実績値処理人口 | C7: 一般的なし尿処理施設のし尿の割合 | D7: 一般的なし尿処理施設の浄化槽汚泥の割合 | E7: し尿発生量原単位（L/人/日） | F7: 浄化槽汚泥発生量原単位（L/人/日） | G7: し尿処理施設に来ると仮定した場合の汚泥量の推定値（㎥/年）
C8: 0.33 | D8: 0.67 | E8: 2.83 | F8: 1.7
B9: =【入力】ユーザー入力シート!G13 -> 0 | C9: =$B9*C$8 -> 0 | D9: =$B9*D$8 -> 0 | E9: =C9*E$8*365 -> 0 | F9: =D9*F$8*365 -> 0 | G9: =(E9+F9)/1000 -> 0

Sheet し尿処理施設一覧 (hidden)
A1: し尿処理施設・汚泥再生処理センター（R4）
A2: 都道府県名 | B2: 地方公共団体コード | C2: 施設コード | D2: 地方公共団体名 | E2: 施設名称 | F2: 年間処理量 | K2: 資源化物量 | R2: 脱水汚泥の直接埋立 | T2: 脱水汚泥の焼却 | V2: 処理方式 | Z2: メタン発酵の場合 | AB2: ごみ処理事業実施方式 | AC2: 処理能力 | AD2: 処理能力 （有機性廃棄物） | AE2: 資源化能力 | AF2: 計画メタンガス（バイオガス）量 | AG2: 使用開始年度 | AH2: 運転管理体制 | AI2: 施設の改廃
F4: し尿 | G4: 浄化槽汚泥 | H4: 有機性廃棄物 | I4: その他 | K4: メタン発酵 | L4: 堆肥化 | M4: リン回収 | N4: 助燃剤製造 | O4: 炭化 | P4: その他 | Q4: 資源化物量の区分 | R4: 直接埋立の有無 | S4: 埋立量 | T4: 焼却の有無 | U4: 焼却量 | V4: 汚水処理 | X4: 汚泥処理 | Z4: メタンガス発熱量 | AA4: メタンガス利用方法
J5: 合計 | W5: その他（具体的） | Y5: その他（具体的）
F6: (kl/年度) | G6: (kl/年度) | H6: (t/年度) | I6: (kl/年度) | J6: (kl/年度) | K6: (t/年) | L6: (t/年) | M6: (t/年) | N6: (t/年) | O6: (t/年) | P6: (t/年) | S6: （t/年度) | U6: （t/年度) | Z6: （kJ/㎥N） | AC6: (kL/日) | AD6: (t/日) | AE6: (t/日) | AF6: (㎥/日)
A7: 北海道 | B7: 01202 | C7: 0120002 | D7: 函館市 | E7: 函館市し尿処理場 | F7: 43977 | G7: 4336 | J7: =SUM(F7:I7) -> 48313 | R7: 直接埋立無し | T7: 焼却無し | V7: 下水投入, その他 | X7: その他 | AB7: ③DB（公設公営、運転委託） | AC7: 244 | AD7: 0 | AE7: 0 | AF7: 0 | AG7: 1983 | AH7: 委託 | AJ7: 01-1-202-08-001
A8: 北海道 | B8: 01206 | C8: 0120006 | D8: 釧路市 | E8: 大楽毛下水終末処理場 し尿・浄化槽汚泥等受入施設 | F8: 13780.6 | G8: 4799 | J8: =SUM(F8:I8) -> 18579.6 | Q8: 資源化物の生産量 | R8: 直接埋立無し | T8: 焼却無し | V8: 一次処理 | X8: 脱水 | AB8: ④DB+M（公設公営、維持管理のみ委託） | AC8: 80.4 | AD8: 0 | AE8: 0 | AF8: 0 | AG8: 2013 | AH8: 委託 | AJ8: 01-1-206-08-002
A9: 北海道 | B9: 01209 | C9: 0120198 | D9: 夕張市 | E9: 夕張市汚泥再生処理センター | F9: 4387 | G9: 2197 | H9: 3 | J9: 6587 | Q9: 資源化物の生産量 | R9: 直接埋立有り | S9: 210 | T9: 焼却無し | V9: 膜分離 | X9: 脱水 | AB9: ③DB（公設公営、運転委託） | AC9: 25 | AD9: 0.4 | AE9: 0 | AF9: 0 | AG9: 2015 | AH9: 委託 | AJ9: 01-1-209-08-002
A10: 北海道 | B10: 01211 | C10: 0120010 | D10: 網走市 | E10: 網走市二見ヶ岡クリーンセンター | F10: 817 | G10: 1391 | J10: 2208 | R10: 直接埋立有り | S10: 7 | T10: 焼却無し | V10: 下水投入, 一次処理 | X10: 脱水 | AB10: ①DB（公設公営、直営） | AC10: 20 | AD10: 0 | AE10: 0 | AF10: 0 | AG10: 1994 | AH10: 委託 | AJ10: 01-1-211-08-001
A11: 北海道 | B11: 01213 | C11: 0120011 | D11: 苫小牧市 | E11: 苫小牧市し尿処理施設(浄化槽汚泥・雑排水・し尿投入槽) | F11: 11172 | G11: 3639 | J11: 14811 | V11: 下水投入 | X11: 焼却 | AB11: ③DB（公設公営、運転委託） | AC11: 170 | AD11: 0 | AE11: 0 | AF11: 0 | AG11: 1984 | AH11: 委託 | AJ11: 01-1-213-08-001
A12: 北海道 | B12: 01214 | C12: 0120012 | D12: 稚内市 | E12: 汚泥投入共同処理施設 | F12: 767 | G12: 3108 | J12: 3875 | R12: 直接埋立無し | T12: 焼却無し | V12: 好希釈, 膜分離, 下水投入 | X12: 脱水, 焼却 | AB12: ⑥その他公設公営 | AC12: 20 | AD12: 0 | AE12: 0 | AF12: 0 | AG12: 2003 | AH12: 委託 | AJ12: 01-1-214-08-001
A13: 北海道 | B13: 01215 | C13: 0120013 | D13: 美唄市 | E13: 美唄市し尿処理場 | F13: 0 | G13: 0 | H13: 0 | I13: 0 | J13: 0 | R13: 直接埋立無し | T13: 焼却無し | V13: 好気 | X13: 脱水 | AB13: ①DB（公設公営、直営） | AC13: 55 | AD13: 0 | AE13: 0 | AF13: 0 | AG13: 1979 | AH13: 直営 | AI13: 休止 | AJ13: 01-1-215-08-001
A14: 北海道 | B14: 01220 | C14: 0120015 | D14: 士別市 | E14: 士別市下水処理場し尿処理施設 | F14: 1065.62 | G14: 2172.71 | J14: 3238.33 | R14: 直接埋立無し | T14: 焼却無し | V14: 一次処理 | X14: 脱水 | AB14: ①DB（公設公営、直営） | AC14: 25 | AD14: 0 | AE14: 3.4 | AF14: 0 | AG14: 1991 | AH14: 委託 | AJ14: 01-1-220-08-001
A15: 北海道 | B15: 01222 | C15: 0120016 | D15: 三笠市 | E15: 三笠市し尿処理場 | F15: 1704 | G15: 292 | J15: 1996 | R15: 直接埋立無し | T15: 焼却無し | V15: 下水投入 | X15: その他 | AB15: ③DB（公設公営、運転委託） | AC15: 30 | AD15: 0 | AE15: 0 | AF15: 0 | AG15: 1978 | AH15: 委託 | AJ15: 01-1-222-08-001
A16: 北海道 | B16: 01224 | C16: 0120018 | D16: 千歳市 | E16: 千歳市汚水投入施設 | F16: 1823 | G16: 1577 | I16: 318 | J16: 3718 | R16: 直接埋立無し | T16: 焼却無し | V16: 下水投入 | X16: その他 | AB16: ③DB（公設公営、運転委託） | AC16: 28 | AD16: 0 | AE16: 0 | AF16: 0 | AG16: 1993 | AH16: 委託 | AJ16: 01-1-224-08-001
A17: 北海道 | B17: 01227 | C17: 0120019 | D17: 歌志内市 | E17: 歌志内市衛生センター | F17: 0 | G17: 0 | H17: 0 | I17: 0 | J17: 0 | R17: 直接埋立有り | S17: 0 | T17: 焼却無し | V17: 高負荷 | X17: 脱水 | AC17: 15 | AD17: 0 | AE17: 0 | AF17: 0 | AG17: 1989 | AH17: 委託 | AI17: 休止 | AJ17: 01-1-227-08-001
A18: 北海道 | B18: 01231 | C18: 0120020 | D18: 恵庭市 | E18: 恵庭市生ごみ・し尿処理場 | F18: 2704.95 | G18: 1595.9 | H18: 2823.63 | I18: 0 | J18: 7124.48 | Q18: 資源化物の生産量 | R18: 直接埋立無し | T18: 焼却無し | V18: 下水投入, 一次処理 | X18: その他 | AA18: 外部搬出利用（発電利用） | AB18: ③DB（公設公営、運転委託） | AC18: 15 | AD18: 18 | AE18: 11 | AF18: 不明 | AG18: 1989 | AH18: 委託 | AJ18: 01-1-231-08-001
A19: 北海道 | B19: 01234 | C19: 0120200 | D19: 北広島市 | E19: アクアバイオマスセンター北広島 | F19: 6239 | G19: 3925 | H19: 2076 | J19: 12240 | K19: 76 | L19: 146 | Q19: 資源化物の生産量 | R19: 直接埋立無し | T19: 焼却無し | V19: 嫌気 | X19: 脱水, 乾燥 | AA19: 所内利用（熱利用） | AB19: ④DB+M（公設公営、維持管理のみ委託） | AC19: 56 | AD19: 17 | AE19: 1 | AF19: 540 | AG19: 2011 | AH19: 一部委託 | AJ19: 01-1-234-08-001
A20: 北海道 | B20: 01345 | C20: 0120022 | D20: 森町 | E20: 森町衛生センター | F20: 13405 | G20: 825 | J20: 14230 | L20: 272 | Q20: 資源化物の生産量 | R20: 直接埋立無し | T20: 焼却無し | V20: 嫌気 | X20: 脱水 | AB20: ①DB（公設公営、直営） | AC20: 70 | AD20: 0 | AE20: 0 | AF20: 0 | AG20: 1975 | AH20: 直営 | AJ20: 01-1-345-08-001
A21: 北海道 | B21: 01371 | C21: 0120024 | D21: せたな町 | E21: 北檜山下水処理場 | F21: 2967 | G21: 559 | J21: 3526 | R21: 直接埋立無し | T21: 焼却無し | V21: 好一段 | X21: 脱水 | AB21: ③DB（公設公営、運転委託） | AC21: 16.2 | AD21: 0 | AE21: 0 | AF21: 0 | AG21: 2012 | AH21: 委託 | AJ21: 01-1-371-08-001
A22: 北海道 | B22: 01459 | C22: 0120025 | D22: 美瑛町 | E22: 美瑛町浄化センター | F22: 217 | J22: 217 | R22: 直接埋立無し | T22: 焼却無し | V22: 嫌気, 下水投入 | X22: 脱水 | AB22: ①DB（公設公営、直営） | AC22: 25 | AD22: 0 | AE22: 0.5 | AF22: 325 | AG22: 1979 | AH22: 直営 | AJ22: 01-1-459-08-001
A23: 北海道 | B23: 01517 | C23: 0120066 | D23: 礼文町 | E23: 礼文町衛生センター し尿一次処理施設 | F23: 381 | G23: 496 | J23: 877 | R23: 直接埋立無し | T23: 施設外焼却 | U23: 7 | V23: 一次処理 | X23: その他 | AB23: ①DB（公設公営、直営） | AC23: 12 | AD23: 0 | AE23: 0 | AF23: 0 | AG23: 2000 | AH23: 直営 | AJ23: 01-1-517-08-001
A24: 北海道 | B24: 01518 | C24: 0120027 | D24: 利尻町 | E24: 利尻島し尿前処理施設 | F24: 95 | G24: 248 | H24: 0 | I24: 0 | J24: 343 | R24: 直接埋立無し | T24: 焼却無し | V24: 一次処理 | X24: その他 | AB24: ①DB（公設公営、直営） | AC24: 21 | AD24: 0 | AE24: 0 | AF24: 0 | AG24: 2012 | AH24: 委託 | AJ24: 01-1-518-08-001
A25: 北海道 | B25: 01647 | C25: 0120219 | D25: 足寄町 | E25: し尿処理場 | F25: 0 | G25: 0 | H25: 0 | I25: 0 | J25: 0 | R25: 直接埋立無し | T25: 焼却無し | V25: 高負荷 | X25: 脱水 | AC25: 50 | AD25: 0 | AE25: 1.53 | AF25: 0 | AG25: 1970 | AH25: 直営 | AI25: 休止 | AJ25: 01-1-647-08-001
A26: 北海道 | B26: 01663 | C26: 0120030 | D26: 浜中町 | E26: 浜中町衛生センター | F26: 1635.2 | G26: 773.2 | J26: 2408.4 | R26: 直接埋立無し | T26: 焼却無し | V26: 高負荷 | X26: 焼却 | AB26: ③DB（公設公営、運転委託） | AC26: 7.1 | AD26: 0 | AE26: 0 | AF26: 0 | AG26: 1989 | AH26: 委託 | AJ26: 01-1-663-08-001
A27: 北海道 | B27: 01691 | C27: 0120031 | D27: 別海町 | E27: 別海町し尿処理場 | F27: 2753 | G27: 2523 | J27: 5276 | R27: 直接埋立有り | S27: 57 | T27: 施設外焼却 | U27: 8 | V27: 嫌気 | X27: 脱水 | AB27: ④DB+M（公設公営、維持管理のみ委託） | AC27: 20 | AD27: 0 | AE27: 0 | AF27: 0 | AG27: 1980 | AH27: 委託 | AJ27: 01-1-691-08-001
A28: 北海道 | B28: 01810 | C28: 0120032 | D28: 北後志衛生施設組合 | E28: 北後志衛生施設組合北後志衛生センター | F28: 10828 | G28: 4658 | J28: 15486 | R28: 直接埋立無し | T28: 焼却無し | V28: 嫌気, 好希釈 | X28: 脱水 | AB28: ②DB（公設公営、一部運転委託） | AC28: 80 | AD28: 0 | AE28: 0 | AF28: 0 | AG28: 1969 | AH28: 一部委託 | AJ28: 01-2-039-08-001
A29: 北海道 | B29: 01819 | C29: 0120033 | D29: 名寄地区衛生施設事務組合 | E29: 衛生センター | F29: 1404 | G29: 2757 | H29: 0 | I29: 0 | J29: 4161 | R29: 直接埋立無し | T29: 施設内焼却 | U29: 162 | V29: 嫌気, 標脱 | X29: 脱水, 乾燥, 焼却 | AB29: ①DB（公設公営、直営） | AC29: 70 | AD29: 0 | AE29: 0 | AF29: 0 | AG29: 1979 | AH29: 直営 | AJ29: 01-2-042-08-001
A30: 北海道 | B30: 01823 | C30: 0120035 | D30: 富良野広域連合 | E30: 環境衛生センター | F30: 5052 | G30: 4408 | H30: 436 | J30: 9896 | Q30: 資源化物の生産量 | R30: 直接埋立無し | T30: 焼却無し | V30: 標脱 | X30: 脱水 | AB30: ①DB（公設公営、直営） | AC30: 60 | AD30: 0 | AE30: 3 | AF30: 0 | AG30: 2002 | AH30: 委託 | AJ30: 01-2-034-08-001
A31: 北海道 | B31: 01827 | C31: 0120036 | D31: 大雪浄化組合 | E31: 大雪浄化センター | F31: 1427 | G31: 3802 | J31: 5229 | R31: 直接埋立無し | T31: 施設内焼却 | U31: 164 | V31: 高負荷 | X31: 脱水, 乾燥, 焼却 | AB31: ①DB（公設公営、直営） | AC31: 20 | AD31: 0 | AE31: 0.192 | AF31: 0 | AG31: 1991 | AH31: 直営 | AJ31: 01-2-017-08-001
A32: 北海道 | B32: 01838 | C32: 0120039 | D32: 北空知衛生センター組合 | E32: 汚泥再生処理施設 | F32: 1621 | G32: 5023 | H32: 517 | J32: 7161 | Q32: 資源化物の排出量・売却量 | R32: 直接埋立無し | T32: 焼却無し | V32: 高負荷, 膜分離, 下水投入 | X32: 脱水, 乾燥, 焼却 | AB32: ②DB（公設公営、一部運転委託） | AC32: 36 | AD32: 2.5 | AE32: 1.3 | AF32: 0 | AG32: 2000 | AH32: 直営 | AJ32: 01-2-037-08-001
A33: 北海道 | B33: 01855 | C33: 0120041 | D33: 南部後志環境衛生組合 | E33: 南部後志環境衛生センター | F33: 2299 | G33: 2567 | J33: 4866 | Q33: 資源化物の生産量 | R33: 直接埋立無し | T33: 施設内焼却 | U33: 45 | V33: その他 | X33: 焼却 | AB33: ⑦DB+O（公設民営、長期包括運営委託） | AC33: 25 | AD33: 0 | AE33: 0 | AF33: 0 | AG33: 1996 | AH33: 委託 | AJ33: 01-2-030-08-001
A34: 北海道 | B34: 01865 | C34: 0120045 | D34: 羊蹄山麓環境衛生組合 | E34: 羊蹄衛生センター | F34: 4289 | G34: 6203 | J34: 10492 | L34: 200 | Q34: 資源化物の生産量 | R34: 直接埋立無し | T34: 焼却無し | V34: 嫌気, 好気 | X34: 脱水 | AA34: 所内利用（熱利用） | AB34: ①DB（公設公営、直営） | AC34: 75 | AD34: 0 | AE34: 23 | AF34: 600 | AG34: 1969 | AH34: 直営 | AJ34: 01-2-043-08-001
A35: 北海道 | B35: 01868 | C35: 0120046 | D35: 南渡島衛生施設組合 | E35: 南渡島衛生センター | F35: 17802 | G35: 2105 | J35: 19907 | R35: 直接埋立無し | T35: 焼却無し | V35: 下水投入 | X35: その他 | AB35: ①DB（公設公営、直営） | AC35: 105 | AD35: 0 | AE35: 0 | AF35: 0 | AG35: 1978 | AH35: 直営 | AJ35: 01-2-028-08-001
A36: 北海道 | B36: 01873 | C36: 0120048 | D36: 斜里郡3町終末処理事業組合 | E36: 斜里郡3町終末処理事業組合し尿処理場 | F36: 1199 | G36: 2016 | J36: 3215 | P36: 115 | Q36: 資源化物の排出量・売却量 | R36: 直接埋立無し | T36: 焼却無し | V36: 好気 | X36: 脱水 | AB36: ③DB（公設公営、運転委託） | AC36: 16 | AD36: 0 | AE36: 2.25 | AF36: 0 | AG36: 2015 | AH36: 委託 | AJ36: 01-2-011-08-001
A37: 北海道 | B37: 01875 | C37: 0120049 | D37: 西天北五町衛生施設組合 | E37: 西天北クリーンセンター | F37: 1581 | G37: 2012 | H37: 794 | I37: 715 | J37: 5102 | K37: 375 | L37: 62 | Q37: 資源化物の排出量・売却量 | R37: 直接埋立無し | T37: 焼却無し | V37: 高負荷, 膜分離 | X37: 脱水, 乾燥 | Z37: 2040 | AA37: 所内利用（熱利用） | AB37: ⑨その他公設民営 | AC37: 20 | AD37: 5 | AE37: 8 | AF37: 500 | AG37: 2002 | AH37: 委託 | AJ37: 01-2-014-08-001
A38: 北海道 | B38: 01885 | C38: 0120218 | D38: 十勝圏複合事務組合 | E38: 浄化槽汚泥等受入施設 | F38: 28281.7 | G38: 20832.6 | J38: 49114.3 | K38: 3679 | P38: 3530 | Q38: 資源化物の生産量 | R38: 直接埋立無し | T38: 焼却無し | V38: 下水投入 | X38: 乾燥 | Z38: 20762 | AA38: 所内利用（熱利用） | AB38: ③DB（公設公営、運転委託） | AC38: 170 | AD38: 0 | AE38: 68 | AF38: 9472 | AG38: 2018 | AH38: 委託 | AJ38: 01-2-051-08-001
A39: 北海道 | B39: 01889 | C39: 0120051 | D39: 南部桧山衛生処理組合 | E39: 南部桧山衛生処理場 | F39: 11468 | G39: 3362 | J39: 14830 | K39: 32903 | L39: 445 | Q39: 資源化物の生産量 | R39: 直接埋立有り | S39: 3 | T39: 施設外焼却 | U39: 442 | V39: 嫌気, 好気 | X39: 脱水, 焼却, その他 | AB39: ①DB（公設公営、直営） | AC39: 80 | AD39: 2 | AE39: 20 | AF39: 192 | AG39: 1972 | AH39: 直営 | AJ39: 01-2-031-08-001
A40: 北海道 | B40: 01892 | C40: 0120052 | D40: 南宗谷衛生施設組合 | E40: 南宗谷汚泥再生処理施設 | F40: 1093 | G40: 1911 | H40: 588 | I40: 1272 | J40: 4864 | K40: 964 | L40: 180 | Q40: 資源化物の生産量 | R40: 直接埋立無し | T40: 焼却無し | V40: 高負荷, 膜分離 | X40: 脱水, 乾燥 | AA40: 所内利用（発電利用）, 所内利用（熱利用） | AB40: ⑤DBM（公設公営） | AC40: 31 | AD40: 10 | AE40: 10.4 | AF40: 569.9 | AG40: 2003 | AH40: 委託 | AJ40: 01-2-026-08-002
A41: 北海道 | B41: 01895 | C41: 0120054 | D41: 根室北部衛生組合 | E41: 浄化センター | F41: 4252 | G41: 4212 | I41: 266 | J41: 8730 | K41: 65 | Q41: 資源化物の生産量 | R41: 直接埋立無し | T41: 施設内焼却 | U41: 168 | V41: 嫌気 | X41: 脱水, 焼却 | AA41: 所内利用（熱利用） | AB41: ①DB（公設公営、直営） | AC41: 47 | AD41: 0 | AE41: 0 | AF41: 0 | AG41: 1971 | AH41: 直営 | AJ41: 01-2-007-08-001
A42: 北海道 | B42: 01900 | C42: 0120055 | D42: 川上郡衛生処理組合 | E42: 川上郡衛生処理組合し尿処理施設 | F42: 4422 | G42: 1731 | J42: 6153 | K42: 21400 | L42: 90 | Q42: 資源化物の生産量 | R42: 直接埋立無し | T42: 焼却無し | V42: 嫌気, 好気 | X42: 脱水 | AA42: 所内利用（熱利用） | AB42: ①DB（公設公営、直営） | AC42: 40 | AD42: 0 | AE42: 140 | AF42: 100 | AG42: 1973 | AH42: 直営 | AJ42: 01-2-016-08-001
A43: 北海道 | B43: 01902 | C43: 0120056 | D43: 渡島西部広域事務組合 | E43: 渡島西部衛生センター汚泥再生処理センター | F43: 16407 | G43: 2120 | H43: 50 | J43: 18577 | L43: 44 | Q43: 資源化物の生産量 | R43: 直接埋立無し | T43: 焼却無し | V43: 高負荷, 焼却 | X43: 脱水, 乾燥 | AB43: ⑥その他公設公営 | AC43: 64 | AD43: 0 | AE43: 1 | AF43: 0 | AG43: 2014 | AH43: 一部委託 | AJ43: 01-2-023-08-001
A44: 北海道 | B44: 01916 | C44: 0120058 | D44: 日高中部衛生施設組合 | E44: 日高中部クリーンセンター | F44: 6456 | G44: 2234 | J44: 8690 | R44: 直接埋立無し | T44: 焼却無し | V44: 一次処理 | X44: その他 | AB44: ③DB（公設公営、運転委託） | AC44: 37 | AD44: 0 | AE44: 0 | AF44: 0 | AG44: 1997 | AH44: 委託 | AJ44: 01-2-032-08-001
A45: 北海道 | B45: 01919 | C45: 0120059 | D45: 遠軽地区広域組合 | E45: 遠軽地区広域組合南兵村処理場 | F45: 5776 | G45: 2862 | J45: 8638 | R45: 直接埋立無し | T45: 焼却無し | V45: 嫌気, 浄化槽専用 | X45: 脱水 | AB45: ②DB（公設公営、一部運転委託） | AC45: 65 | AD45: 0 | AE45: 0 | AF45: 0 | AG45: 1974 | AH45: 直営 | AJ45: 01-2-004-08-001
A46: 北海道 | B46: 01932 | C46: 0120060 | D46: 胆振東部日高西部衛生組合 | E46: 胆振東部日高西部衛生組合日胆衛生センター | F46: 7627 | G46: 6389 | J46: 14016 | R46: 直接埋立無し | T46: 焼却無し | V46: 好気 | X46: 脱水 | AB46: ④DB+M（公設公営、維持管理のみ委託） | AC46: 70 | AD46: 0 | AE46: 5 | AF46: 0 | AG46: 1974 | AH46: 委託 | AJ46: 01-2-019-08-001
A47: 北海道 | B47: 01957 | C47: 0120061 | D47: 留萌南部衛生組合 | E47: 留萌南部衛生組合衛生センター | F47: 3789 | G47: 4498 | J47: 8287 | L47: 64 | Q47: 資源化物の生産量 | R47: 直接埋立無し | T47: 焼却無し | V47: 嫌気 | X47: 脱水 | AB47: ⑨その他公設民営 | AC47: 80 | AD47: 0 | AE47: 0 | AF47: 0 | AG47: 1980 | AH47: 委託 | AJ47: 01-2-045-08-001
A48: 青森県 | B48: 02803 | C48: 0220001 | D48: 中部上北広域事業組合 | E48: 中部上北衛生センター | F48: 3096 | G48: 12840 | J48: 15936 | R48: 直接埋立無し | T48: 施設外焼却 | U48: 640 | V48: 高負荷 | X48: 脱水 | AB48: ①DB（公設公営、直営） | AC48: 60 | AD48: 0 | AE48: 0 | AF48: 0 | AG48: 1983 | AH48: 直営 | AJ48: 02-2-010-08-001
A49: 青森県 | B49: 02819 | C49: 0220004 | D49: 西北五環境整備事務組合 | E49: 中央クリーンセンター | F49: 11556 | G49: 36377 | J49: 47933 | R49: 直接埋立無し | T49: 焼却無し | V49: 高負荷, 膜分離 | X49: 脱水 | AB49: ②DB（公設公営、一部運転委託） | AC49: 162 | AD49: 0 | AE49: 0.1 | AF49: 0 | AG49: 2011 | AH49: 一部委託 | AJ49: 02-2-008-08-001
A50: 青森県 | B50: 02826 | C50: 0220007 | D50: 三戸地区環境整備事務組合 | E50: 三戸地区衛生センター | F50: 9000 | G50: 8447 | J50: 17447 | R50: 直接埋立無し | T50: 施設外焼却 | U50: 434 | V50: 高負荷 | X50: 脱水 | AB50: ③DB（公設公営、運転委託） | AC50: 60 | AD50: 0 | AE50: 0 | AF50: 0 | AG50: 1987 | AH50: 委託 | AJ50: 02-2-004-08-001
A51: 青森県 | B51: 02829 | C51: 0220008 | D51: 西海岸衛生処理組合 | E51: 鰺ヶ沢し尿処理場 | F51: 4441.66 | G51: 1876.49 | H51: 0 | I51: 0 | J51: 6318.15 | R51: 直接埋立無し | T51: 焼却無し | V51: 高負荷 | X51: 脱水, その他 | AB51: ⑥その他公設公営 | AC51: 50 | AD51: 0 | AE51: 0 | AF51: 0 | AG51: 1985 | AH51: 直営 | AJ51: 02-2-007-08-001
A52: 青森県 | B52: 02859 | C52: 0220009 | D52: 八戸地域広域市町村圏事務組合 | E52: 八戸環境クリーンセンター第2処理場 | F52: 28898 | G52: 23406 | J52: 52304 | L52: 2351 | Q52: 資源化物の排出量・売却量 | R52: 直接埋立無し | T52: 焼却無し | V52: 標脱 | X52: 脱水 | AB52: ②DB（公設公営、一部運転委託） | AC52: 130 | AD52: 0 | AE52: 0 | AF52: 0 | AG52: 1993 | AH52: 一部委託 | AJ52: 02-2-011-08-001
A53: 青森県 | B53: 02859 | C53: 0220010 | D53: 八戸地域広域市町村圏事務組合 | E53: 八戸環境クリーンセンター第1処理場 | G53: 35863 | J53: 35863 | L53: 1053 | Q53: 資源化物の排出量・売却量 | R53: 直接埋立無し | T53: 焼却無し | V53: 浄化槽専用 | X53: 脱水 | AB53: ②DB（公設公営、一部運転委託） | AC53: 180 | AD53: 0 | AE53: 0 | AF53: 0 | AG53: 1989 | AH53: 一部委託 | AJ53: 02-2-011-08-002
A54: 青森県 | B54: 02861 | C54: 0220011 | D54: 下北地域広域行政事務組合 | E54: むつ衛生センター | F54: 17548 | G54: 51878 | H54: 3586 | J54: 73012 | Q54: 資源化物の生産量 | R54: 直接埋立無し | T54: 焼却無し | V54: 高負荷, 膜分離 | X54: 脱水 | AB54: ⑦DB+O（公設民営、長期包括運営委託） | AC54: 220 | AD54: 0 | AE54: 4.2 | AF54: 0 | AG54: 2006 | AH54: 委託 | AJ54: 02-2-001-08-001
A55: 青森県 | B55: 02863 | C55: 0220043 | D55: 十和田地域広域事務組合 | E55: 十和田地域広域事務組合十和田下水一次処理センター | F55: 6303 | G55: 23555 | J55: 29858 | R55: 直接埋立無し | T55: 焼却無し | V55: 下水投入 | X55: その他 | AB55: ③DB（公設公営、運転委託） | AC55: 91 | AD55: 0 | AE55: 0 | AF55: 0 | AG55: 2021 | AH55: 委託 | AJ55: 02-2-005-08-001
A56: 青森県 | B56: 02874 | C56: 0220012 | D56: 青森地域広域事務組合 | E56: 青森地域広域事務組合上磯地区クリーンセンター | F56: 2031 | G56: 4656 | J56: 6687 | R56: 直接埋立無し | T56: 施設外焼却 | U56: 276 | V56: 高負荷 | X56: 脱水 | AB56: ①DB（公設公営、直営） | AC56: 30 | AD56: 0 | AE56: 0 | AF56: 0 | AG56: 1999 | AH56: 直営 | AJ56: 02-2-009-08-001
A57: 青森県 | B57: 02874 | C57: 0220013 | D57: 青森地域広域事務組合 | E57: 青森地域広域事務組合あおひらクリーンセンター | F57: 13032 | G57: 47448 | I57: 2724 | J57: 63204 | R57: 直接埋立無し | T57: 施設外焼却 | U57: 2124 | V57: 標脱 | X57: 脱水, 焼却 | AB57: ①DB（公設公営、直営） | AC57: 202 | AD57: 0 | AE57: 0 | AF57: 0 | AG57: 2000 | AH57: 直営 | AJ57: 02-2-009-08-002
A58: 青森県 | B58: 02878 | C58: 0220042 | D58: 津軽広域連合 | E58: 津軽広域クリーンセンター | F58: 8720 | G58: 34193 | J58: 42913 | R58: 直接埋立無し | T58: 焼却無し | V58: 下水投入 | X58: その他 | AB58: ②DB（公設公営、一部運転委託） | AC58: 144 | AD58: 0 | AE58: 0 | AF58: 0 | AG58: 2015 | AH58: 一部委託 | AJ58: 02-2-013-08-001
A59: 岩手県 | B59: 03208 | C59: 0320001 | D59: 遠野市 | E59: 遠野市清養園クリーンセンターし尿処理施設 | F59: 13141 | G59: 3828 | J59: 16969 | R59: 直接埋立無し | T59: 焼却無し | V59: 高負荷, 膜分離 | X59: 脱水 | AB59: ①DB（公設公営、直営） | AC59: 61 | AD59: 0 | AE59: 0 | AF59: 0 | AG59: 1991 | AH59: 一部委託 | AJ59: 03-1-208-08-001
A60: 岩手県 | B60: 03321 | C60: 0320101 | D60: 紫波町 | E60: 紫波町汚泥再生処理センター | F60: 5085 | G60: 4100 | H60: 5632 | I60: 0 | J60: 14817 | N60: 505 | Q60: 資源化物の排出量・売却量 | R60: 直接埋立無し | T60: 焼却無し | V60: 下水投入 | X60: 脱水 | AB60: ⑦DB+O（公設民営、長期包括運営委託） | AC60: 44 | AD60: 0 | AE60: 3 | AF60: 0 | AG60: 2018 | AH60: 委託 | AJ60: 03-1-321-08-001
A61: 岩手県 | B61: 03819 | C61: 0320002 | D61: 北上地区広域行政組合 | E61: 衛生処理場 | F61: 34810 | G61: 29947 | H61: 0 | I61: 0 | J61: 64757 | R61: 直接埋立無し | T61: 焼却無し | V61: 高負荷 | X61: 脱水 | AB61: ①DB（公設公営、直営） | AC61: 250 | AD61: 0 | AE61: 0 | AF61: 0 | AG61: 1992 | AH61: 直営 | AJ61: 03-2-017-08-001
A62: 岩手県 | B62: 03828 | C62: 0320003 | D62: 二戸地区広域行政事務組合 | E62: 二戸地区衛生センター | F62: 24177 | G62: 6014 | J62: 30191 | R62: 直接埋立無し | T62: 施設外焼却 | U62: 1297 | V62: 高負荷 | X62: 脱水 | AB62: ①DB（公設公営、直営） | AC62: 112 | AD62: 0 | AE62: 0 | AF62: 0 | AG62: 1997 | AH62: 直営 | AJ62: 03-2-016-08-001
A63: 岩手県 | B63: 03829 | C63: 0320100 | D63: 盛岡北部行政事務組合 | E63: 北岩手環境衛生センター | F63: 19688 | J63: 19688 | R63: 直接埋立無し | T63: 施設内焼却 | U63: 824 | V63: 標脱 | X63: 脱水, 焼却 | AB63: ①DB（公設公営、直営） | AC63: 100 | AD63: 0 | AE63: 0 | AF63: 0 | AG63: 1987 | AH63: 直営 | AJ63: 03-2-013-08-001
A64: 岩手県 | B64: 03829 | C64: 0320004 | D64: 盛岡北部行政事務組合 | E64: 北岩手環境衛生センター | G64: 10254 | J64: 10254 | R64: 直接埋立無し | T64: 施設内焼却 | U64: 594 | V64: 浄化槽専用 | X64: 脱水, 焼却 | AB64: ①DB（公設公営、直営） | AC64: 45 | AD64: 0 | AE64: 0 | AF64: 0 | AG64: 1997 | AH64: 直営 | AJ64: 03-2-013-08-002
A65: 岩手県 | B65: 03835 | C65: 0320102 | D65: 久慈広域連合 | E65: 久慈地区汚泥再生処理センター | F65: 26671 | G65: 11941 | J65: 38612 | L65: 142 | Q65: 資源化物の排出量・売却量 | R65: 直接埋立無し | T65: 施設外焼却 | U65: 108 | V65: 高負荷, 膜分離 | X65: 脱水, 乾燥 | AB65: ⑧DBO（公設民営） | AC65: 105 | AD65: 0 | AE65: 1 | AF65: 0 | AG65: 2021 | AH65: 委託 | AJ65: 03-2-008-08-002
A66: 岩手県 | B66: 03851 | C66: 0320007 | D66: 一関地区広域行政組合 | E66: 一関清掃センターし尿処理施設(第2し尿処理施設) | F66: 2321 | G66: 424 | J66: 2745 | L66: 28 | Q66: 資源化物の生産量 | R66: 直接埋立無し | T66: 焼却無し | V66: 高負荷 | X66: 脱水 | AB66: ①DB（公設公営、直営） | AC66: 80 | AD66: 0 | AE66: 0 | AF66: 0 | AG66: 1989 | AH66: 直営 | AJ66: 03-2-001-08-001
A67: 岩手県 | B67: 03851 | C67: 0320008 | D67: 一関地区広域行政組合 | E67: 川崎清掃センター | F67: 20201 | G67: 9073 | J67: 29274 | L67: 734 | P67: 495 | Q67: 資源化物の生産量 | R67: 直接埋立無し | T67: 焼却無し | V67: 高負荷 | X67: 脱水 | AB67: ①DB（公設公営、直営） | AC67: 100 | AD67: 0 | AE67: 0 | AF67: 0 | AG67: 1995 | AH67: 直営 | AJ67: 03-2-001-08-002
A68: 岩手県 | B68: 03851 | C68: 0320009 | D68: 一関地区広域行政組合 | E68: 一関清掃センターし尿処理施設(第1し尿処理施設) | F68: 34765 | G68: 6353 | J68: 41118 | L68: 1566 | Q68: 資源化物の生産量 | R68: 直接埋立無し | T68: 焼却無し | V68: 好一段 | X68: 脱水 | AB68: ①DB（公設公営、直営） | AC68: 80 | AD68: 0 | AE68: 0 | AF68: 0 | AG68: 1977 | AH68: 直営 | AJ68: 03-2-001-08-003
A69: 岩手県 | B69: 03854 | C69: 0320010 | D69: 盛岡地区衛生処理組合 | E69: 滝沢処理センター | F69: 27756 | G69: 13480 | J69: 41236 | L69: 364 | Q69: 資源化物の生産量 | R69: 直接埋立無し | T69: 焼却無し | V69: 標脱, 高負荷, 膜分離 | X69: 脱水 | AB69: ④DB+M（公設公営、維持管理のみ委託） | AC69: 170 | AD69: 0 | AE69: 3 | AF69: 0 | AG69: 2005 | AH69: 委託 | AJ69: 03-2-012-08-001
A70: 岩手県 | B70: 03862 | C70: 0320011 | D70: 釜石大槌地区行政事務組合 | E70: 釜石・大槌汚泥再生処理センター | F70: 12923 | G70: 6081 | J70: 19004 | L70: 77 | Q70: 資源化物の生産量 | R70: 直接埋立無し | T70: 焼却無し | V70: 高負荷, 膜分離 | X70: 脱水 | AB70: ⑦DB+O（公設民営、長期包括運営委託） | AC70: 85 | AD70: 0 | AE70: 4 | AF70: 0 | AG70: 2007 | AH70: 委託 | AJ70: 03-2-003-08-001
A71: 岩手県 | B71: 03867 | C71: 0320012 | D71: 宮古地区広域行政組合 | E71: 第2衛生処理場 | F71: 12454 | G71: 4993 | J71: 17447 | R71: 直接埋立無し | T71: 焼却無し | V71: 標脱 | X71: 脱水 | AB71: ③DB（公設公営、運転委託） | AC71: 63 | AD71: 0 | AE71: 0 | AF71: 0 | AG71: 1999 | AH71: 委託 | AJ71: 03-2-009-08-001
A72: 岩手県 | B72: 03867 | C72: 0320013 | D72: 宮古地区広域行政組合 | E72: 宮古衛生処理センター | F72: 15246 | G72: 6113 | J72: =SUM(F72:I72) -> 21359 | R72: 直接埋立無し | T72: 施設外焼却 | U72: 1192 | V72: 標脱 | X72: 脱水 | AB72: ③DB（公設公営、運転委託） | AC72: 74 | AD72: 0 | AE72: 0 | AF72: 0 | AG72: 1988 | AH72: 委託 | AJ72: 03-2-009-08-002
A73: 岩手県 | B73: 03873 | C73: 0320014 | D73: 奥州金ケ崎行政事務組合 | E73: 胆江地区衛生センター | F73: 40608 | G73: 27674 | J73: 68282 | L73: 87 | Q73: 資源化物の生産量 | R73: 直接埋立無し | T73: 施設内焼却 | U73: 930 | V73: 高負荷, 膜分離 | X73: 脱水, 焼却 | AB73: ⑥その他公設公営 | AC73: 276 | AD73: 0 | AE73: 6 | AF73: 0 | AG73: 1998 | AH73: 一部委託 | AJ73: 03-2-002-08-001
A74: 岩手県 | B74: 03878 | C74: 0320015 | D74: 気仙広域連合 | E74: 気仙広域連合衛生センター | F74: 21366 | G74: 18524 | H74: 0 | I74: 0 | J74: 39890 | R74: 直接埋立無し | T74: 施設外焼却 | U74: 1257 | V74: 高負荷 | X74: 脱水 | AB74: ⑦DB+O（公設民営、長期包括運営委託） | AC74: 130 | AD74: 0 | AE74: 0 | AF74: 0 | AG74: 1987 | AH74: 委託 | AJ74: 03-2-007-08-001
A75: 宮城県 | B75: 04100 | C75: 0420001 | D75: 仙台市 | E75: 南蒲生環境センター | F75: 10566 | G75: 12285 | J75: 22851 | L75: 327 | Q75: 資源化物の生産量 | R75: 直接埋立無し | T75: 施設外焼却 | U75: 30 | V75: 下水投入, 一次処理 | X75: 脱水 | AB75: ③DB（公設公営、運転委託） | AC75: 160 | AD75: 2.85 | AE75: 2.85 | AF75: 0 | AG75: 1990 | AH75: 委託 | AJ75: 04-1-100-08-001
A76: 宮城県 | B76: 04205 | C76: 0420002 | D76: 気仙沼市 | E76: 気仙沼市し尿処理場 | F76: 19984 | G76: 20065 | J76: 40049 | O76: 1880 | P76: 110.8 | Q76: 資源化物の排出量・売却量 | R76: 直接埋立無し | T76: 焼却無し | V76: その他 | X76: 脱水 | AB76: ②DB（公設公営、一部運転委託） | AC76: 130 | AD76: 0 | AE76: 0 | AF76: 0 | AG76: 2012 | AH76: 一部委託 | AJ76: 04-1-205-08-001
A77: 宮城県 | B77: 04212 | C77: 0420003 | D77: 登米市 | E77: 登米市環境事業所衛生センター | F77: 20735 | G77: 21760 | J77: 42495 | R77: 直接埋立無し | T77: 焼却無し | V77: 標脱 | X77: 脱水, 乾燥 | AB77: ③DB（公設公営、運転委託） | AC77: 128 | AD77: 0 | AE77: 1.5 | AF77: 0 | AG77: 2010 | AH77: 委託 | AJ77: 04-1-212-08-001
A78: 宮城県 | B78: 04213 | C78: 0420004 | D78: 栗原市 | E78: 栗原市衛生センター | F78: 21744 | G78: 12456 | J78: 34200 | L78: 826 | Q78: 資源化物の生産量 | R78: 直接埋立無し | T78: 施設内焼却 | U78: 325 | V78: 標脱 | X78: 脱水, 乾燥, 焼却 | AB78: ⑥その他公設公営 | AC78: 160 | AD78: 0 | AE78: 8 | AF78: 0 | AG78: 1987 | AH78: 一部委託 | AJ78: 04-1-213-08-001
A79: 宮城県 | B79: 04606 | C79: 0420005 | D79: 南三陸町 | E79: 南三陸町衛生センター | F79: 3047 | G79: 7153 | J79: 10200 | R79: 直接埋立無し | T79: 施設内焼却 | U79: 19 | V79: 標脱, 焼却 | X79: 脱水, 乾燥 | AB79: ③DB（公設公営、運転委託） | AC79: 30 | AD79: 3 | AE79: 1 | AF79: 0 | AG79: 1988 | AH79: 委託 | AJ79: 04-1-606-08-001
A80: 宮城県 | B80: 04867 | C80: 0420006 | D80: 黒川地域行政事務組合 | E80: 環境衛生センター | F80: 4683 | G80: 9818 | J80: 14501 | U80: 202 | V80: 標脱 | X80: 脱水, 乾燥, 焼却 | AB80: ③DB（公設公営、運転委託） | AC80: 60 | AD80: 36 | AE80: 24 | AF80: 0 | AG80: 1981 | AH80: 委託 | AJ80: 04-2-003-08-001
A81: 宮城県 | B81: 04869 | C81: 0420007 | D81: 亘理名取共立衛生処理組合 | E81: 浄化センター | F81: 4534 | G81: 13253 | J81: 17787 | R81: 直接埋立無し | T81: 施設内焼却 | U81: 120 | V81: 高負荷 | X81: 焼却 | AB81: ③DB（公設公営、運転委託） | AC81: 113 | AD81: 0 | AE81: 0 | AF81: 0 | AG81: 1994 | AH81: 委託 | AJ81: 04-2-007-08-001
A82: 宮城県 | B82: 04928 | C82: 0420008 | D82: 石巻地区広域行政事務組合 | E82: 石巻広域東部衛生センター | F82: 9356.4 | G82: 19058.4 | J82: 28414.8 | Q82: 資源化物の排出量・売却量 | R82: 直接埋立無し | T82: 施設内焼却 | U82: 408 | V82: 高負荷, 膜分離 | X82: 脱水, 焼却 | AB82: ①DB（公設公営、直営） | AC82: 150 | AD82: 0 | AE82: 0.98 | AF82: 0 | AG82: 1995 | AH82: 直営 | AJ82: 04-2-004-08-001
A83: 宮城県 | B83: 04928 | C83: 0420009 | D83: 石巻地区広域行政事務組合 | E83: 石巻広域西部衛生センター | F83: 5652 | G83: 16682.4 | J83: 22334.4 | Q83: 資源化物の排出量・売却量 | R83: 直接埋立無し | T83: 施設内焼却 | U83: 308 | V83: 高負荷, 膜分離 | X83: 脱水, 焼却 | AB83: ①DB（公設公営、直営） | AC83: 150 | AD83: 0 | AE83: 0 | AF83: 0 | AG83: 1995 | AH83: 直営 | AJ83: 04-2-004-08-002
A84: 宮城県 | B84: 04932 | C84: 0420010 | D84: 仙南地域広域行政事務組合 | E84: 仙南地域広域行政事務組合柴田衛生センター | F84: 15008 | G84: 15015 | H84: 0 | I84: 0 | J84: 30023 | R84: 直接埋立無し | T84: 施設外焼却 | U84: 905 | V84: 高負荷 | X84: 脱水 | AB84: ①DB（公設公営、直営） | AC84: 110 | AD84: 0 | AE84: 2 | AF84: 0 | AG84: 1985 | AH84: 直営 | AJ84: 04-2-005-08-001
A85: 宮城県 | B85: 04932 | C85: 0420011 | D85: 仙南地域広域行政事務組合 | E85: 仙南地域広域行政事務組合角田衛生センター | F85: 5820 | G85: 10363 | J85: 16183 | R85: 直接埋立無し | T85: 施設外焼却 | U85: 525 | V85: 高負荷 | X85: 脱水 | AB85: ①DB（公設公営、直営） | AC85: 68 | AD85: 0 | AE85: 0 | AF85: 0 | AG85: 1988 | AH85: 直営 | AJ85: 04-2-005-08-002
A86: 宮城県 | B86: 04936 | C86: 0420012 | D86: 大崎地域広域行政事務組合 | E86: 大崎広域中央桜ノ目衛生センター | F86: 27245 | G86: 21416 | H86: 0 | I86: 0 | J86: 48661 | R86: 直接埋立無し | T86: 施設内焼却 | U86: 1535.74 | V86: 高負荷 | X86: 脱水, 焼却 | AC86: 150 | AD86: 0 | AE86: 0 | AF86: 0 | AG86: 1991 | AH86: 直営 | AJ86: 04-2-006-08-001
A87: 宮城県 | B87: 04936 | C87: 0420013 | D87: 大崎地域広域行政事務組合 | E87: 大崎広域中央師山衛生センター | F87: 11582 | G87: 0 | H87: 0 | I87: 0 | J87: 11582 | R87: 直接埋立無し | T87: 施設外焼却 | U87: 152.85 | V87: 標脱 | X87: 脱水, 焼却 | AC87: 50 | AD87: 0 | AE87: 0 | AF87: 0 | AG87: 1997 | AH87: 委託 | AJ87: 04-2-006-08-002
A88: 宮城県 | B88: 04936 | C88: 0420015 | D88: 大崎地域広域行政事務組合 | E88: 大崎広域六の国汚泥再生処理センター | F88: 17500 | G88: 10779 | H88: 26.79 | I88: 0 | J88: 28305.79 | K88: 2.97 | L88: 8.73 | Q88: 資源化物の生産量 | R88: 直接埋立無し | T88: 施設内焼却 | U88: 542.84 | V88: 高負荷, 膜分離 | X88: 脱水, 乾燥, 焼却 | Z88: 35700 | AA88: 所内利用（熱利用）, 所内利用（その他） | AC88: 105 | AD88: 1 | AE88: 1 | AF88: 486 | AG88: 2003 | AH88: 委託 | AJ88: 04-2-006-08-003
A89: 宮城県 | B89: 04936 | C89: 0420016 | D89: 大崎地域広域行政事務組合 | E89: 大崎広域東部汚泥再生処理センター | F89: 19117 | G89: 17197 | H89: 0 | I89: 0 | J89: 36314 | N89: 889.19 | Q89: 資源化物の排出量・売却量 | R89: 直接埋立無し | T89: 焼却無し | V89: 標脱 | X89: 脱水 | AC89: 139 | AD89: 0 | AE89: 9 | AF89: 0 | AG89: 2011 | AH89: 委託 | AJ89: 04-2-006-08-004
A90: 宮城県 | B90: 04966 | C90: 0420017 | D90: 塩釜地区消防事務組合 | E90: 塩釜地区環境センター | F90: 5208 | G90: 2982 | J90: 8190 | L90: 140 | Q90: 資源化物の生産量 | R90: 直接埋立無し | T90: 焼却無し | V90: 高負荷 | X90: 脱水, 乾燥 | AB90: ③DB（公設公営、運転委託） | AC90: 95 | AD90: 0 | AE90: 1 | AF90: 0 | AG90: 1999 | AH90: 委託 | AJ90: 04-2-001-08-001
A91: 秋田県 | B91: 05201 | C91: 0520002 | D91: 秋田市 | E91: 秋田市汚泥再生処理センター | F91: 12562.3 | G91: 20586.5 | H91: 0 | I91: 0 | J91: 33148.8 | N91: 1051.54 | Q91: 資源化物の生産量 | R91: 直接埋立無し | T91: 施設外焼却 | U91: 1051.54 | V91: 下水投入, その他 | X91: 脱水, 焼却 | AB91: ③DB（公設公営、運転委託） | AC91: 175 | AD91: 0 | AE91: 0 | AF91: 0 | AG91: 2012 | AH91: 一部委託 | AJ91: 05-1-201-08-001
A92: 秋田県 | B92: 05203 | C92: 0520003 | D92: 横手市 | E92: 横手市横手衛生センター | F92: 15394 | G92: 16421 | I92: 1144 | J92: 32959 | R92: 直接埋立無し | T92: 施設内焼却 | U92: 1628 | V92: 高負荷, 膜分離 | X92: 脱水, 乾燥, 焼却 | AB92: ①DB（公設公営、直営） | AC92: 122 | AD92: 0 | AE92: 0 | AF92: 0 | AG92: 2005 | AH92: 直営 | AJ92: 05-1-203-08-001
A93: 秋田県 | B93: 05203 | C93: 0520004 | D93: 横手市 | E93: 横手市雄物川衛生センター | F93: 4568 | G93: 7432 | I93: 2265 | J93: 14265 | R93: 直接埋立無し | T93: 施設内焼却 | U93: 468 | V93: 高負荷 | X93: 脱水, 焼却 | AB93: ①DB（公設公営、直営） | AC93: 55 | AD93: 0 | AE93: 0 | AF93: 0 | AG93: 1985 | AH93: 直営 | AJ93: 05-1-203-08-002
A94: 秋田県 | B94: 05204 | C94: 0520005 | D94: 大館市 | E94: 大館市し尿処理場 | F94: 26925 | G94: 17558 | J94: 44483 | R94: 直接埋立無し | T94: 施設外焼却 | U94: 1093 | V94: 標脱 | X94: 脱水 | AB94: ②DB（公設公営、一部運転委託） | AC94: 160 | AD94: 0 | AE94: 0 | AF94: 0 | AG94: 1984 | AH94: 一部委託 | AJ94: 05-1-204-08-001
A95: 秋田県 | B95: 05213 | C95: 0520053 | D95: 北秋田市 | E95: 北秋田市し尿処理施設 | F95: 7644.16 | G95: 5943.1 | H95: 0 | I95: 1714.27 | J95: 15301.53 | R95: 直接埋立無し | T95: 焼却無し | V95: 下水投入 | X95: その他 | AB95: ⑦DB+O（公設民営、長期包括運営委託） | AC95: 46 | AD95: 0 | AE95: 0 | AF95: 0 | AG95: 2020 | AH95: 委託 | AJ95: 05-1-213-08-001
A96: 秋田県 | B96: 05850 | C96: 0520011 | D96: 湯沢雄勝広域市町村圏組合 | E96: 湯沢雄勝広域市町村圏組合清掃センター | F96: 18054 | G96: 22050 | H96: 0 | I96: 0 | J96: 40104 | R96: 直接埋立無し | T96: 施設外焼却 | U96: 1050.43 | V96: 標脱 | X96: 脱水, 乾燥, 焼却 | AB96: ①DB（公設公営、直営） | AC96: 160 | AD96: 0 | AE96: 4 | AF96: 0 | AG96: 1997 | AH96: 直営 | AJ96: 05-2-004-08-001
A97: 秋田県 | B97: 05854 | C97: 0520013 | D97: 本荘由利広域市町村圏組合 | E97: 広域清掃センター第1事業所(100KL) | F97: 3352 | G97: 20190 | J97: 23542 | R97: 直接埋立無し | T97: 施設内焼却 | U97: 430 | V97: 高負荷 | X97: 脱水, 乾燥, 焼却 | AB97: ①DB（公設公営、直営） | AC97: 100 | AD97: 0 | AE97: 0 | AF97: 0 | AG97: 1990 | AH97: 直営 | AJ97: 05-2-010-08-001
A98: 秋田県 | B98: 05854 | C98: 0520014 | D98: 本荘由利広域市町村圏組合 | E98: 広域清掃センター第1事業所(120KL) | F98: 4023 | G98: 24228 | J98: 28251 | R98: 直接埋立無し | T98: 施設内焼却 | U98: 2326 | V98: 好気 | X98: 脱水, 乾燥, 焼却 | AB98: ①DB（公設公営、直営） | AC98: 120 | AD98: 0 | AE98: 0 | AF98: 0 | AG98: 1973 | AH98: 直営 | AJ98: 05-2-010-08-002
A99: 秋田県 | B99: 05861 | C99: 0520015 | D99: 能代山本広域市町村圏組合 | E99: 能代山本広域市町村圏組合中央衛生処理場 | F99: 18885 | G99: 17636 | J99: 36521 | R99: 直接埋立無し | T99: 焼却無し | V99: 高負荷 | X99: 脱水, その他 | AB99: ⑥その他公設公営 | AC99: 120 | AD99: 0 | AE99: 0 | AF99: 0 | AG99: 1999 | AH99: 委託 | AJ99: 05-2-005-08-001
A100: 秋田県 | B100: 05862 | C100: 0520055 | D100: 大曲仙北広域市町村圏組合 | E100: 大曲仙北広域中央し尿処理センター | F100: 0 | G100: 0 | H100: 0 | I100: 0 | J100: 0 | R100: 直接埋立無し | T100: 焼却無し | V100: 標脱 | X100: 脱水, 乾燥 | AB100: ⑦DB+O（公設民営、長期包括運営委託） | AC100: 70 | AD100: 0 | AE100: 0 | AF100: 0 | AG100: 1990 | AH100: 委託 | AJ100: 05-2-011-08-001
A101: 秋田県 | B101: 05862 | C101: 0520056 | D101: 大曲仙北広域市町村圏組合 | E101: 大曲仙北広域中央し尿処理センター | F101: 13519 | G101: 36105 | J101: 49624 | R101: 直接埋立無し | T101: 施設外焼却 | U101: 1731 | V101: 標脱 | X101: 脱水 | AB101: ⑦DB+O（公設民営、長期包括運営委託） | AC101: 182 | AD101: 0 | AE101: 0 | AF101: 0 | AG101: 1986 | AH101: 委託 | AJ101: 05-2-011-08-002
A102: 秋田県 | B102: 05862 | C102: 0520054 | D102: 大曲仙北広域市町村圏組合 | E102: 大曲仙北広域北部し尿処理センター | F102: 7048 | G102: 7518 | J102: 14566 | Q102: 資源化物の生産量 | R102: 直接埋立無し | T102: 施設内焼却 | U102: 534 | V102: 高負荷, 膜分離, 焼却 | X102: 乾燥, 焼却 | AB102: ③DB（公設公営、運転委託） | AC102: 60 | AD102: 0 | AE102: 0.7 | AF102: 0 | AG102: 2009 | AH102: 委託 | AJ102: 05-2-011-08-003
A103: 秋田県 | B103: 05867 | C103: 0520016 | D103: 鹿角広域行政組合 | E103: 鹿角し尿処理場 | F103: 12591 | G103: 9014 | J103: 21605 | R103: 直接埋立無し | T103: 施設外焼却 | U103: 1044 | V103: 焼却, 下水投入 | X103: 脱水, 焼却 | AB103: ③DB（公設公営、運転委託） | AC103: 63 | AD103: 0 | AE103: 0 | AF103: 0 | AG103: 2021 | AH103: 委託 | AJ103: 05-2-001-08-001
A104: 秋田県 | B104: 05874 | C104: 0520017 | D104: 男鹿地区衛生処理一部事務組合 | E104: 男鹿地区衛生センター | F104: 9039 | G104: 5691 | J104: 14730 | R104: 直接埋立無し | T104: 施設内焼却 | U104: 581 | V104: 高負荷 | X104: 脱水, 乾燥, 焼却 | AC104: 100 | AD104: 0 | AE104: 0 | AF104: 0 | AG104: 1990 | AH104: 直営 | AJ104: 05-2-003-08-001
A105: 秋田県 | B105: 05882 | C105: 0520018 | D105: 八郎潟町・井川町衛生処理施設組合 | E105: 八郎潟町湖水苑 | F105: 1169 | G105: 998 | J105: 2167 | R105: 直接埋立無し | T105: 焼却無し | V105: 高負荷 | X105: 脱水 | AC105: 8 | AD105: 0 | AE105: 0 | AF105: 0 | AG105: 1996 | AH105: 直営 | AJ105: 05-2-006-08-001
A106: 山形県 | B106: 06203 | C106: 0620001 | D106: 鶴岡市 | E106: 鶴岡市し尿処理施設 | F106: 2197 | G106: 21340 | J106: 23537 | Q106: 資源化物の排出量・売却量 | R106: 直接埋立無し | T106: 施設外焼却 | U106: 992.01 | V106: 標脱 | X106: 脱水, 焼却 | AB106: ③DB（公設公営、運転委託） | AC106: 152 | AD106: 152 | AE106: 0 | AF106: 0 | AG106: 1995 | AH106: 委託 | AJ106: 06-1-203-08-001
A107: 山形県 | B107: 06821 | C107: 0620002 | D107: 東根市外二市一町共立衛生処理組合 | E107: 東根市外二市一町共立衛生処理組合し尿処理施設 | F107: 3362 | G107: 8986 | J107: 12348 | R107: 直接埋立無し | T107: 施設外焼却 | U107: 1020 | V107: 下水投入 | X107: 焼却 | AB107: ①DB（公設公営、直営） | AC107: 68 | AD107: 0 | AE107: 0 | AF107: 0 | AG107: 1990 | AH107: 直営 | AJ107: 06-2-006-08-001
A108: 山形県 | B108: 06831 | C108: 0620003 | D108: 山形広域環境事務組合 | E108: 山形広域クリーンセンター | F108: 4289 | G108: 14306 | H108: 2584 | I108: 0 | J108: 21179 | L108: 440 | Q108: 資源化物の排出量・売却量 | R108: 直接埋立無し | T108: 焼却無し | V108: 標脱 | X108: 脱水 | AB108: ⑥その他公設公営 | AC108: 220 | AD108: 0 | AE108: 0 | AF108: 0 | AG108: 1988 | AH108: 一部委託 | AJ108: 06-2-002-08-001
A109: 山形県 | B109: 06951 | C109: 0620004 | D109: 最上広域市町村圏事務組合 | E109: 最上広域市町村圏事務組合もがみクリーンセンター | F109: 6267.5 | G109: 19234.5 | J109: 25502 | L109: 503 | Q109: 資源化物の生産量 | R109: 直接埋立無し | T109: 施設外焼却 | U109: 632 | V109: 高負荷, 膜分離, その他 | X109: 脱水 | AB109: ⑦DB+O（公設民営、長期包括運営委託） | AC109: 79 | AD109: 0 | AE109: 0 | AF109: 0 | AG109: 1997 | AH109: 委託 | AJ109: 06-2-001-08-001
A110: 山形県 | B110: 06952 | C110: 0620006 | D110: 置賜広域行政事務組合 | E110: 置賜広域行政事務組合米沢クリーンセンターし尿処理施設 | F110: 9753 | G110: 10748 | J110: 20501 | R110: 直接埋立有り | S110: 690 | T110: 焼却無し | V110: 標脱 | X110: 脱水 | AB110: ③DB（公設公営、運転委託） | AC110: 140 | AD110: 0 | AE110: 0 | AF110: 0 | AG110: 1985 | AH110: 一部委託 | AJ110: 06-2-005-08-001
A111: 山形県 | B111: 06952 | C111: 0620008 | D111: 置賜広域行政事務組合 | E111: 置賜広域行政事務組合南陽クリーンセンターし尿処理施設 | F111: 4552 | G111: 13793 | J111: 18345 | R111: 直接埋立有り | S111: 827 | T111: 焼却無し | V111: 高負荷, 下水投入, 一次処理 | X111: 脱水 | AB111: ①DB（公設公営、直営） | AC111: 85 | AD111: 0 | AE111: 0 | AF111: 0 | AG111: 1991 | AH111: 直営 | AJ111: 06-2-005-08-002
A112: 山形県 | B112: 06952 | C112: 0620028 | D112: 置賜広域行政事務組合 | E112: 置賜広域行政事務組合長井クリーンセンター汚泥再生処理施設 | F112: 4749 | G112: 12387 | J112: 17136 | N112: 388 | Q112: 資源化物の生産量 | R112: 直接埋立無し | T112: 焼却無し | V112: 高負荷, 膜分離 | X112: 脱水 | AB112: ⑦DB+O（公設民営、長期包括運営委託） | AC112: 65 | AD112: 0 | AE112: 2.2 | AF112: 0 | AG112: 2014 | AH112: 一部委託 | AJ112: 06-2-005-08-003
A113: 山形県 | B113: 06953 | C113: 0620009 | D113: 西村山広域行政事務組合 | E113: 西村山広域行政事務組合寒河江地区クリーンセンターし尿処理施設 | F113: 3227 | G113: 14205 | H113: 0 | I113: 0 | J113: 17432 | R113: 直接埋立無し | T113: 施設外焼却 | U113: 557 | V113: 下水投入 | X113: 脱水 | AB113: ①DB（公設公営、直営） | AC113: 63 | AD113: 0 | AE113: 0 | AF113: 0 | AG113: 2016 | AH113: 直営 | AJ113: 06-2-004-08-001
A114: 山形県 | B114: 06963 | C114: 0620010 | D114: 酒田地区広域行政組合 | E114: 酒田地区広域行政組合し尿処理施設 | F114: 3619 | G114: 12918 | J114: 16537 | R114: 直接埋立無し | T114: 施設内焼却 | U114: 206 | V114: 高負荷 | X114: 脱水, 乾燥, 焼却 | AB114: ③DB（公設公営、運転委託） | AC114: 180 | AD114: 0 | AE114: 0 | AF114: 0 | AG114: 1989 | AH114: 委託 | AJ114: 06-2-003-08-001
A115: 山形県 | B115: 06965 | C115: 0620029 | D115: 尾花沢市大石田町環境衛生事業組合 | E115: 尾花沢市大石田町環境衛生事業組合汚泥再生処理センター | F115: 906 | G115: 8862 | J115: 9768 | L115: 368 | Q115: 資源化物の排出量・売却量 | R115: 直接埋立無し | T115: 焼却無し | V115: 高負荷 | X115: 脱水 | AB115: ②DB（公設公営、一部運転委託） | AC115: 35 | AD115: 0 | AE115: 0 | AF115: 0 | AG115: 2016 | AH115: 一部委託 | AJ115: 06-2-007-08-002
A116: 福島県 | B116: 07201 | C116: 0720001 | D116: 福島市 | E116: 福島市衛生処理場 | F116: 6024 | G116: 33736 | J116: 39760 | R116: 直接埋立無し | T116: 施設外焼却 | U116: 495 | V116: 嫌気, 好気 | X116: 脱水 | AB116: ③DB（公設公営、運転委託） | AC116: 200 | AD116: 1.3 | AE116: 0 | AF116: 0 | AG116: 1962 | AH116: 委託 | AJ116: 07-1-201-08-001
A117: 福島県 | B117: 07203 | C117: 0720002 | D117: 郡山市 | E117: 郡山市富久山クリーンセンター衛生処理センター第一処理施設 | G117: 53042.72 | J117: 53042.72 | R117: 直接埋立無し | T117: 施設外焼却 | U117: 1942 | V117: 標脱 | X117: 脱水 | AB117: ③DB（公設公営、運転委託） | AC117: 170 | AD117: 0 | AE117: 0 | AF117: 0 | AG117: 1980 | AH117: 委託 | AJ117: 07-1-203-08-001
A118: 福島県 | B118: 07203 | C118: 0720003 | D118: 郡山市 | E118: 郡山市富久山クリーンセンター衛生処理センター第二処理施設 | F118: 9940.7 | J118: 9940.7 | R118: 直接埋立無し | T118: 施設外焼却 | U118: 482.12 | V118: 高負荷 | X118: 脱水 | AB118: ③DB（公設公営、運転委託） | AC118: 70 | AD118: 0 | AE118: 0 | AF118: 0 | AG118: 1990 | AH118: 委託 | AJ118: 07-1-203-08-002
A119: 福島県 | B119: 07204 | C119: 0720004 | D119: いわき市 | E119: 中部衛生センター | F119: 8964.52 | G119: 7978.81 | J119: 16943.33 | R119: 直接埋立無し | T119: 施設外焼却 | U119: 590.45 | V119: 標脱 | X119: 脱水 | AB119: ②DB（公設公営、一部運転委託） | AC119: 60 | AD119: 0 | AE119: 0 | AF119: 0 | AG119: 1989 | AH119: 一部委託 | AJ119: 07-1-204-08-001
A120: 福島県 | B120: 07204 | C120: 0720005 | D120: いわき市 | E120: 南部衛生センター | F120: 9717.13 | G120: 23806.73 | J120: 33523.86 | R120: 直接埋立無し | T120: 施設外焼却 | U120: 1298.84 | V120: 嫌気 | X120: 脱水 | AB120: ①DB（公設公営、直営） | AC120: 150 | AD120: 0 | AE120: 0 | AF120: 0 | AG120: 1977 | AH120: 直営 | AJ120: 07-1-204-08-002
A121: 福島県 | B121: 07211 | C121: 0720015 | D121: 田村市 | E121: 田村地方衛生処理センター | F121: 5000 | G121: 17001 | J121: 22001 | R121: 直接埋立無し | T121: 焼却無し | V121: 標脱 | X121: 脱水, 乾燥 | AB121: ①DB（公設公営、直営） | AC121: 100 | AD121: 0 | AE121: 0 | AF121: 0 | AG121: 1992 | AH121: 一部委託 | AI121: 移管
A122: 福島県 | B122: 07212 | C122: 0720007 | D122: 南相馬市 | E122: 雫浄化センター | F122: 1079.51 | G122: 21819.06 | J122: 22898.57 | R122: 直接埋立無し | T122: 施設内焼却 | U122: 47.61 | V122: 高負荷 | X122: 脱水, 乾燥, 焼却 | AB122: ③DB（公設公営、運転委託） | AC122: 82 | AD122: 0 | AE122: 7 | AF122: 0 | AG122: 1994 | AH122: 委託 | AJ122: 07-1-212-08-001
A123: 福島県 | B123: 07364 | C123: 0720071 | D123: 檜枝岐村 | E123: 檜枝岐村浄化センター | F123: 13 | G123: 59 | J123: 72 | R123: 直接埋立無し | T123: 焼却無し | V123: その他 | X123: 脱水 | AB123: ⑥その他公設公営 | AC123: 460 | AD123: 0 | AE123: 0 | AF123: 0 | AG123: 2001 | AH123: 委託 | AJ123: 07-1-364-08-001
A124: 福島県 | B124: 07367 | C124: 0720072 | D124: 只見町 | E124: 只見町資源リサイクルセンター | G124: 2.229 | J124: 2.229 | L124: 35.22 | Q124: 資源化物の排出量・売却量 | R124: 直接埋立無し | T124: 焼却無し | V124: 浄化槽専用 | X124: 脱水, 乾燥, その他 | AB124: ④DB+M（公設公営、維持管理のみ委託） | AC124: 8.4 | AD124: 0 | AE124: 0.255 | AF124: 0 | AG124: 2007 | AH124: 一部委託
A125: 福島県 | B125: 07521 | C125: 0720073 | D125: 三春町 | E125: 三春水環境センター | F125: 1054 | G125: 3921 | J125: 4975 | R125: 直接埋立無し | T125: 焼却無し | V125: その他 | X125: 脱水 | AB125: ③DB（公設公営、運転委託） | AC125: 3400 | AD125: 0 | AE125: 0 | AF125: 0 | AG125: 2022 | AH125: 委託
A126: 福島県 | B126: 07806 | C126: 0720008 | D126: 川俣方部衛生処理組合 | E126: 川俣方部衛生処理組合川俣方部衛生処理場 | F126: 3613 | G126: 17157 | J126: 20770 | R126: 直接埋立無し | T126: 施設外焼却 | U126: 608 | V126: 標脱 | X126: 脱水 | AB126: ②DB（公設公営、一部運転委託） | AC126: 60 | AD126: 0 | AE126: 0 | AF126: 0 | AG126: 1985 | AH126: 直営 | AJ126: 07-2-007-08-001
A127: 福島県 | B127: 07811 | C127: 0720009 | D127: 伊達地方衛生処理組合 | E127: 伊達地方衛生処理組合汚泥再生処理センター | F127: 6615 | G127: 16470 | J127: 23085 | N127: 1476 | Q127: 資源化物の排出量・売却量 | R127: 直接埋立無し | T127: 焼却無し | V127: 高負荷, 膜分離 | X127: 脱水, 焼却 | AB127: ①DB（公設公営、直営） | AC127: 85 | AD127: 0 | AE127: 4.3 | AF127: 0 | AG127: 2009 | AH127: 直営 | AJ127: 07-2-002-08-001
A128: 福島県 | B128: 07820 | C128: 0720010 | D128: 須賀川地方保健環境組合 | E128: 須賀川地方衛生センターし尿処理施設 | F128: 2009 | G128: 19820 | J128: 21829 | R128: 直接埋立無し | T128: 施設外焼却 | U128: 1392 | V128: 標脱 | X128: 脱水 | AB128: ②DB（公設公営、一部運転委託） | AC128: 97 | AD128: 0 | AE128: 0 | AF128: 0 | AG128: 1995 | AH128: 一部委託 | AJ128: 07-2-005-08-001
A129: 福島県 | B129: 07827 | C129: 0720070 | D129: 会津若松地方広域市町村圏整備組合 | E129: 有機性廃棄物リサイクル推進施設 | F129: 24448 | G129: 42098 | H129: 0 | I129: 0 | J129: 66546 | N129: 2472 | Q129: 資源化物の生産量 | R129: 直接埋立無し | T129: 施設外焼却 | U129: 2472 | V129: 高負荷 | X129: 脱水 | AB129: ⑧DBO（公設民営） | AC129: 211 | AD129: 0 | AE129: 9284 | AF129: 0 | AG129: 2021 | AH129: 委託 | AJ129: 07-2-003-08-003
A130: 福島県 | B130: 07844 | C130: 0720013 | D130: 東白衛生組合 | E130: 東白クリーンセンターし尿処理施設 | F130: 1613 | G130: 14054 | J130: 15667 | N130: 580 | Q130: 資源化物の生産量 | R130: 直接埋立無し | T130: 焼却無し | V130: 標脱 | X130: 焼却 | AB130: ③DB（公設公営、運転委託） | AC130: 60 | AD130: 0 | AE130: 0 | AF130: 0 | AG130: 1992 | AH130: 委託 | AJ130: 07-2-011-08-001
A131: 福島県 | B131: 07846 | C131: 0720014 | D131: 石川地方生活環境施設組合 | E131: 石川地方生活環境施設組合し尿処理施設 | F131: 2584 | G131: 17548 | J131: 20132 | R131: 直接埋立無し | T131: 焼却無し | V131: 高負荷 | X131: 脱水, 乾燥 | AB131: ①DB（公設公営、直営） | AC131: 59 | AD131: 0 | AE131: 0.47 | AF131: 0 | AG131: 1996 | AH131: 直営 | AJ131: 07-2-006-08-001
A132: 福島県 | B132: 07862 | C132: 0720016 | D132: 相馬方部衛生組合 | E132: 相馬方部衛生組合衛生センター | F132: 2428 | G132: 11443 | H132: 65 | J132: 13936 | L132: 67 | Q132: 資源化物の生産量 | R132: 直接埋立無し | T132: 焼却無し | V132: 標脱 | X132: 脱水 | AB132: ③DB（公設公営、運転委託） | AC132: 48 | AD132: 1 | AE132: 1 | AF132: 0 | AG132: 2001 | AH132: 委託 | AJ132: 07-2-009-08-001
A133: 福島県 | B133: 07867 | C133: 0720017 | D133: 白河地方広域市町村圏整備組合 | E133: 白河地方清掃センター | F133: 3502 | G133: 26779 | J133: 30281 | Q133: 資源化物の排出量・売却量 | R133: 直接埋立無し | T133: 施設外焼却 | U133: 1776 | V133: 標脱 | X133: 脱水, 焼却 | AB133: ③DB（公設公営、運転委託） | AC133: 94 | AD133: 0 | AE133: 0 | AF133: 0 | AG133: 1962 | AH133: 委託 | AJ133: 07-2-013-08-001
A134: 福島県 | B134: 07868 | C134: 0720018 | D134: 喜多方地方広域市町村圏組合 | E134: 環境センター塩川工場 | F134: 8908 | G134: 19050 | J134: 27958 | Q134: 資源化物の排出量・売却量 | R134: 直接埋立無し | T134: 施設内焼却 | U134: 1069 | V134: 嫌気, 浄化槽専用 | X134: 脱水, 乾燥, 焼却 | AA134: 所内利用（熱利用） | AB134: ①DB（公設公営、直営） | AC134: 102 | AD134: 0 | AE134: 0 | AF134: 1020 | AG134: 1978 | AH134: 直営 | AJ134: 07-2-004-08-001
A135: 福島県 | B135: 07871 | C135: 0720019 | D135: 安達地方広域行政組合 | E135: あだたら環境共生センター | F135: 4571 | G135: 36273 | H135: 47 | I135: 165 | J135: 41056 | O135: 102 | Q135: 資源化物の生産量 | R135: 直接埋立無し | T135: 焼却無し | V135: 高負荷, 膜分離 | X135: 脱水, 乾燥 | AB135: ②DB（公設公営、一部運転委託） | AC135: 130 | AD135: 0.58 | AE135: 3.8 | AF135: 0 | AG135: 2005 | AH135: 一部委託 | AJ135: 07-2-001-08-001
A136: 福島県 | B136: 07873 | C136: 0720020 | D136: 双葉地方広域市町村圏組合 | E136: 双葉地方広域市町村圏組合双葉環境センター | F136: 2573 | G136: 8959 | J136: =SUM(F136:I136) -> 11532 | R136: 直接埋立無し | T136: 焼却無し | V136: 高負荷, 膜分離 | X136: 脱水 | AB136: ①DB（公設公営、直営） | AC136: 63 | AD136: 0 | AE136: 0.03 | AF136: 0 | AG136: 2015 | AH136: 一部委託 | AJ136: 07-2-008-08-001
A137: 福島県 | B137: 07877 | C137: 0720023 | D137: 南会津地方環境衛生組合 | E137: 東部衛生センター | F137: 3068 | G137: 9677 | H137: 0 | I137: 608 | J137: 13353 | R137: 直接埋立無し | T137: 施設内焼却 | U137: 5665 | V137: 標脱 | X137: 脱水, 乾燥, 焼却 | AB137: ①DB（公設公営、直営） | AC137: 40 | AD137: 0 | AE137: 0 | AF137: 0 | AG137: 1984 | AH137: 直営 | AJ137: 07-2-012-08-001
A138: 福島県 | B138: 07877 | C138: 0720022 | D138: 南会津地方環境衛生組合 | E138: 西部衛生センター | F138: 741 | G138: 2605 | H138: 0 | I138: 321 | J138: 3667 | R138: 直接埋立無し | T138: 施設内焼却 | U138: 1187 | V138: 高負荷, 膜分離 | X138: 脱水, 乾燥, 焼却 | AB138: ①DB（公設公営、直営） | AC138: 25 | AD138: 0 | AE138: 0 | AF138: 0 | AG138: 1991 | AH138: 直営 | AJ138: 07-2-012-08-002
A139: 茨城県 | B139: 08232 | C139: 0820013 | D139: 神栖市 | E139: 神栖市第一衛生プラント | F139: 6502 | G139: 27275 | J139: 33777 | U139: 1332 | V139: 下水投入 | X139: 脱水, その他 | AB139: ③DB（公設公営、運転委託） | AC139: 110 | AD139: 0 | AE139: 0 | AF139: 0 | AG139: 1993 | AH139: 委託 | AJ139: 08-1-232-08-001
A140: 茨城県 | B140: 08232 | C140: 0820014 | D140: 神栖市 | E140: 神栖市第二衛生プラント | J140: 0 | V140: その他 | X140: その他 | AB140: ③DB（公設公営、運転委託） | AC140: 0 | AD140: 0 | AE140: 0 | AF140: 0 | AG140: 1967 | AH140: 委託 | AI140: 休止 | AJ140: 08-1-232-08-002
A141: 茨城県 | B141: 08201 | C141: 0820001 | D141: 水戸市 | E141: 水戸市見川クリーンセンター | F141: 4359 | G141: 24079 | J141: 28438 | L141: 717 | Q141: 資源化物の排出量・売却量 | R141: 直接埋立無し | T141: 施設外焼却 | U141: 551 | V141: 標脱 | X141: 脱水 | AB141: ⑥その他公設公営 | AC141: 310 | AD141: 0 | AE141: 0 | AF141: 0 | AG141: 1983 | AH141: 委託 | AJ141: 08-1-201-08-001
A142: 茨城県 | B142: 08203 | C142: 0820124 | D142: 土浦市 | E142: 土浦市汚泥再生処理センター | F142: 1960 | G142: 6459 | H142: 0 | I142: 263 | J142: 8682 | N142: 359 | Q142: 資源化物の排出量・売却量 | R142: 直接埋立無し | T142: 施設外焼却 | U142: 359 | V142: 嫌気, 好気, 下水投入 | X142: 脱水 | AB142: ③DB（公設公営、運転委託） | AC142: 33.8 | AD142: 0 | AE142: 1.6 | AF142: 0 | AG142: 2021 | AH142: 委託 | AJ142: 08-1-203-08-002
A143: 茨城県 | B143: 08212 | C143: 0820004 | D143: 常陸太田市 | E143: 常陸太田市クリーンセンター | F143: 2315 | G143: 9260 | J143: 11575 | R143: 直接埋立無し | T143: 施設外焼却 | U143: 698 | V143: 高負荷 | X143: 脱水 | AB143: ③DB（公設公営、運転委託） | AC143: 55 | AD143: 0 | AE143: 0 | AF143: 0 | AG143: 1997 | AH143: 委託 | AJ143: 08-1-212-08-001
A144: 茨城県 | B144: 08212 | C144: 0820005 | D144: 常陸太田市 | E144: 常陸太田市里美クリーンセンター | F144: 341 | G144: 3070 | J144: 3411 | L144: 35 | Q144: 資源化物の排出量・売却量 | R144: 直接埋立無し | T144: 焼却無し | V144: 高負荷, 膜分離 | X144: 脱水, その他 | AB144: ③DB（公設公営、運転委託） | AC144: 15 | AD144: 0.06 | AE144: 0.083 | AF144: 0 | AG144: 2009 | AH144: 委託 | AJ144: 08-1-212-08-002
A145: 茨城県 | B145: 08215 | C145: 0820006 | D145: 北茨城市 | E145: 北茨城市環境センター | F145: 14855 | G145: 14870 | J145: 29725 | R145: 直接埋立無し | T145: 施設内焼却 | U145: 62 | V145: 標脱 | X145: 脱水, 乾燥, 焼却 | AB145: ③DB（公設公営、運転委託） | AC145: 100 | AD145: 0 | AE145: 0 | AF145: 0 | AG145: 1983 | AH145: 委託 | AJ145: 08-1-215-08-001
A146: 茨城県 | B146: 08220 | C146: 0820007 | D146: つくば市 | E146: サステナスクエア南分所 | F146: 1062 | G146: 7465 | J146: 8527 | R146: 直接埋立無し | T146: 施設外焼却 | U146: 336 | V146: 好気 | X146: 脱水, 焼却 | AB146: ①DB（公設公営、直営） | AC146: 70 | AD146: 0 | AE146: 0 | AF146: 0 | AG146: 1984 | AH146: 直営 | AJ146: 08-1-220-08-001
A147: 茨城県 | B147: 08220 | C147: 0820008 | D147: つくば市 | E147: サステナスクエアし尿処理施設 | F147: 552 | G147: 9804 | J147: 10356 | R147: 直接埋立無し | T147: 施設外焼却 | U147: 475 | V147: 好気 | X147: 脱水, 焼却 | AB147: ③DB（公設公営、運転委託） | AC147: 50 | AD147: 0 | AE147: 0 | AF147: 0 | AG147: 1980 | AH147: 委託 | AJ147: 08-1-220-08-002
A148: 茨城県 | B148: 08221 | C148: 0820009 | D148: ひたちなか市 | E148: ひたちなか市勝田衛生センター | F148: 0 | G148: 0 | J148: 0 | R148: 直接埋立無し | T148: 焼却無し | V148: 好気, 下水投入 | X148: 脱水, 乾燥, 焼却 | AB148: ③DB（公設公営、運転委託） | AC148: 50 | AD148: 0 | AE148: 0 | AF148: 0 | AG148: 1980 | AH148: 委託 | AI148: 休止 | AJ148: 08-1-221-08-001
A149: 茨城県 | B149: 08221 | C149: 0820116 | D149: ひたちなか市 | E149: ひたちなか市勝田衛生センター | F149: 5874 | G149: 18480 | J149: 24354 | R149: 直接埋立無し | T149: 施設内焼却 | U149: 971.568 | V149: 高負荷 | X149: 脱水, 乾燥, 焼却 | AB149: ③DB（公設公営、運転委託） | AC149: 100 | AD149: 0 | AE149: 0 | AF149: 0 | AG149: 1992 | AH149: 委託 | AJ149: 08-1-221-08-002
A150: 茨城県 | B150: 08221 | C150: 0820010 | D150: ひたちなか市 | E150: ひたちなか市那珂湊衛生センター | F150: 1821 | G150: 8773 | J150: 10594 | R150: 直接埋立無し | T150: 施設内焼却 | U150: 491.4 | V150: 高負荷, 膜分離 | X150: 脱水, 乾燥, 焼却 | AB150: ③DB（公設公営、運転委託） | AC150: 38 | AD150: 0 | AE150: 0 | AF150: 0 | AG150: 1996 | AH150: 委託 | AJ150: 08-1-221-08-003
A151: 茨城県 | B151: 08222 | C151: 0820011 | D151: 鹿嶋市 | E151: 鹿嶋市立衛生センター汚泥再生処理施設 | F151: 77 | G151: 22378 | J151: 22455 | R151: 直接埋立無し | T151: 施設外焼却 | U151: 304 | V151: 一次処理 | X151: 脱水 | AB151: ④DB+M（公設公営、維持管理のみ委託） | AC151: 89 | AD151: 0 | AE151: 2.6 | AF151: 0 | AG151: 2006 | AH151: 委託 | AJ151: 08-1-222-08-001
A152: 茨城県 | B152: 08223 | C152: 0820012 | D152: 潮来市 | E152: 潮来衛生センター | F152: 244 | G152: 3422 | J152: 3666 | R152: 直接埋立有り | S152: 5 | T152: 施設内焼却 | U152: 215 | V152: 高負荷 | X152: 焼却 | AB152: ③DB（公設公営、運転委託） | AC152: 24 | AD152: 0 | AE152: 0 | AF152: 0 | AG152: 1992 | AH152: 委託 | AJ152: 08-1-223-08-001
A153: 茨城県 | B153: 08233 | C153: 0820015 | D153: 行方市 | E153: 行方市麻生衛生センター | F153: 2388 | G153: 5481 | J153: 7869 | L153: 8 | Q153: 資源化物の排出量・売却量 | R153: 直接埋立無し | T153: 施設内焼却 | U153: 15 | V153: 高負荷 | X153: 脱水, 乾燥, 焼却 | AB153: ③DB（公設公営、運転委託） | AC153: 24 | AD153: 0 | AE153: 1.9 | AF153: 0 | AG153: 1995 | AH153: 委託 | AJ153: 08-1-233-08-001
A154: 茨城県 | B154: 08233 | C154: 0820016 | D154: 行方市 | E154: 行方市有機肥料供給センター | F154: 366 | G154: 3714 | J154: 4080 | L154: 44 | Q154: 資源化物の排出量・売却量 | R154: 直接埋立無し | T154: 焼却無し | V154: 好気 | X154: 脱水, 乾燥, 焼却 | AB154: ③DB（公設公営、運転委託） | AC154: 28 | AD154: 19 | AE154: 20 | AF154: 0 | AG154: 2000 | AH154: 委託 | AJ154: 08-1-233-08-002
A155: 茨城県 | B155: 08234 | C155: 0820017 | D155: 鉾田市 | E155: 汚泥再生処理センターエコパーク鉾田 | F155: 4 | G155: 12624 | I155: 355 | J155: 12983 | L155: 246 | Q155: 資源化物の排出量・売却量 | R155: 直接埋立無し | T155: 施設内焼却 | U155: 305 | V155: 高負荷, 膜分離 | X155: 焼却 | AB155: ③DB（公設公営、運転委託） | AC155: 39 | AD155: 0 | AE155: 0.24 | AF155: 0 | AG155: 2000 | AH155: 委託 | AJ155: 08-1-234-08-001
A156: 茨城県 | B156: 08234 | C156: 0820018 | D156: 鉾田市 | E156: 大洋サニタリーセンター | F156: 292 | G156: 5454 | I156: 195 | J156: 5941 | Q156: 資源化物の排出量・売却量 | R156: 直接埋立無し | T156: 施設内焼却 | U156: 212 | V156: 高負荷 | X156: 焼却 | AB156: ③DB（公設公営、運転委託） | AC156: 20 | AD156: 0 | AE156: 0 | AF156: 0 | AG156: 1994 | AH156: 委託 | AJ156: 08-1-234-08-002
A157: 茨城県 | B157: 08310 | C157: 0820019 | D157: 城里町 | E157: 城里町衛生センター | F157: 452 | G157: 3340 | J157: 3792 | N157: 222 | Q157: 資源化物の排出量・売却量 | R157: 直接埋立無し | T157: 焼却無し | V157: 膜分離 | X157: 脱水, その他 | AB157: ①DB（公設公営、直営） | AC157: 13 | AD157: 0 | AE157: 0.7 | AF157: 0 | AG157: 2021 | AH157: 直営 | AJ157: 08-1-310-08-001
A158: 茨城県 | B158: 08341 | C158: 0820020 | D158: 東海村 | E158: 東海村衛生センター | F158: 1221 | G158: 3697 | H158: 0 | I158: 0 | J158: 4918 | R158: 直接埋立無し | T158: 施設外焼却 | U158: 362 | V158: 標脱, その他 | X158: 脱水, 焼却 | AB158: ③DB（公設公営、運転委託） | AC158: 40 | AD158: 0 | AE158: 0 | AF158: 0 | AG158: 1992 | AH158: 委託 | AJ158: 08-1-341-08-001
A159: 茨城県 | B159: 08364 | C159: 0820021 | D159: 大子町 | E159: 大子町衛生センター | F159: 0 | G159: 0 | H159: 0 | I159: 0 | J159: 0 | R159: 直接埋立無し | T159: 焼却無し | V159: 高負荷, 膜分離 | X159: 脱水 | AB159: ①DB（公設公営、直営） | AC159: 38 | AD159: 0 | AE159: 0.46 | AF159: 0 | AG159: 1997 | AH159: 直営 | AI159: 休止 | AJ159: 08-1-364-08-001
A160: 茨城県 | B160: 08836 | C160: 0820022 | D160: 大宮地方環境整備組合 | E160: 大宮地方広域衛生センター | F160: 4939 | G160: 24935 | H160: 0 | I160: 0 | J160: 29874 | L160: 262 | Q160: 資源化物の排出量・売却量 | R160: 直接埋立無し | T160: 焼却無し | V160: 標脱 | X160: 脱水, その他 | AB160: ②DB（公設公営、一部運転委託） | AC160: 97 | AD160: 0 | AE160: 0 | AF160: 0 | AG160: 1981 | AH160: 一部委託 | AJ160: 08-2-014-08-001
A161: 茨城県 | B161: 08843 | C161: 0820119 | D161: 常総衛生組合 | E161: クリーンセンターきぬ | F161: 0 | G161: 0 | H161: 0 | I161: 0 | J161: 0 | R161: 直接埋立無し | T161: 焼却無し | V161: 標脱 | X161: 脱水 | AB161: ①DB（公設公営、直営） | AC161: 50 | AD161: 0 | AE161: 0 | AF161: 0 | AG161: 1987 | AH161: 直営 | AI161: 休止 | AJ161: 08-2-011-08-001
A162: 茨城県 | B162: 08843 | C162: 0820023 | D162: 常総衛生組合 | E162: クリーンセンターきぬ | F162: 3151 | G162: 29052 | H162: 0 | I162: 0 | J162: 32203 | R162: 直接埋立無し | T162: 施設内焼却 | U162: 1530 | V162: 標脱 | X162: 脱水, 乾燥, 焼却 | AB162: ①DB（公設公営、直営） | AC162: 100 | AD162: 0 | AE162: 2 | AF162: 0 | AG162: 1998 | AH162: 直営 | AJ162: 08-2-011-08-002
A163: 茨城県 | B163: 08850 | C163: 0820024 | D163: 龍ケ崎地方衛生組合 | E163: 龍の郷・クリーンセンター 218kL／日施設 | F163: 5750 | G163: 59385 | J163: 65135 | R163: 直接埋立無し | T163: 焼却無し | V163: 高負荷, その他 | X163: 脱水 | AB163: ①DB（公設公営、直営） | AC163: 218 | AD163: 0 | AE163: 0 | AF163: 0 | AG163: 2021 | AH163: 直営 | AJ163: 08-2-018-08-001
A164: 茨城県 | B164: 08851 | C164: 0820025 | D164: さしま環境管理事務組合 | E164: さしま環境センターし尿処理施設 | F164: 5200 | G164: 37526 | J164: 42726 | P164: 452 | Q164: 資源化物の生産量 | R164: 直接埋立無し | T164: 焼却無し | V164: 標脱 | X164: 脱水, 乾燥 | AB164: ①DB（公設公営、直営） | AC164: 130 | AD164: 0 | AE164: 2.7 | AF164: 0 | AG164: 1981 | AH164: 直営 | AJ164: 08-2-001-08-001
A165: 茨城県 | B165: 08853 | C165: 0820026 | D165: 筑北環境衛生組合 | E165: クリーンセンター | F165: 2107 | G165: 24331 | J165: 26438 | R165: 直接埋立無し | T165: 施設内焼却 | U165: 337 | V165: 好二段, 標脱 | X165: 脱水, 乾燥, 焼却 | AC165: 100 | AD165: 0 | AE165: 0 | AF165: 0 | AG165: 1986 | AH165: 直営 | AJ165: 08-2-017-08-001
A166: 茨城県 | B166: 08855 | C166: 0820027 | D166: 茨城地方広域環境事務組合 | E166: 茨城地方広域環境事務組合し尿処理施設 | F166: 4011 | G166: 28992 | J166: 33003 | R166: 直接埋立無し | T166: 焼却無し | V166: 標脱 | X166: 脱水 | AC166: 152 | AD166: 0 | AE166: 0 | AF166: 0 | AG166: 1981 | AH166: 直営 | AJ166: 08-2-003-08-001
A167: 茨城県 | B167: 08859 | C167: 0820028 | D167: 大洗、鉾田、水戸環境組合 | E167: 大洗、鉾田、水戸環境組合クリーンセンター | F167: 2800 | G167: 11921 | J167: 14721 | R167: 直接埋立無し | T167: 施設外焼却 | U167: 417 | V167: 標脱 | X167: 脱水 | AB167: ②DB（公設公営、一部運転委託） | AC167: 80 | AD167: 0 | AE167: 0 | AF167: 0 | AG167: 1983 | AH167: 一部委託 | AJ167: 08-2-015-08-001
A168: 茨城県 | B168: 08871 | C168: 0820029 | D168: 湖北環境衛生組合 | E168: 石岡クリーンセンター | F168: 3186 | G168: 28890 | H168: 64 | J168: 32140 | L168: 148 | Q168: 資源化物の生産量 | R168: 直接埋立無し | T168: 施設内焼却 | U168: 2436 | V168: 好気, 高負荷, 膜分離 | X168: 脱水, 乾燥, 焼却 | AB168: ③DB（公設公営、運転委託） | AC168: 141 | AD168: 0.4 | AE168: 0.6 | AF168: 0 | AG168: 2005 | AH168: 委託 | AJ168: 08-2-008-08-001
A169: 茨城県 | B169: 08886 | C169: 0820030 | D169: 筑西広域市町村圏事務組合 | E169: 筑西広域市町村圏事務組合環境センター | F169: 611.18 | G169: 34132.22 | J169: 34743.4 | R169: 直接埋立無し | T169: 施設外焼却 | U169: 709.19 | V169: 高負荷 | X169: 脱水 | AB169: ②DB（公設公営、一部運転委託） | AC169: 105 | AD169: 0 | AE169: 0 | AF169: 0 | AG169: 1995 | AH169: 委託 | AJ169: 08-2-016-08-001
A170: 茨城県 | B170: 08934 | C170: 0820031 | D170: 下妻地方広域事務組合 | E170: 城山公苑し尿処理施設 | F170: 1558 | G170: 27658 | J170: 29216 | R170: 直接埋立無し | T170: 施設外焼却 | U170: 1924 | V170: 高負荷 | X170: 脱水 | AB170: ③DB（公設公営、運転委託） | AC170: 130 | AD170: 0 | AE170: 0 | AF170: 0 | AG170: 1984 | AH170: 委託 | AJ170: 08-2-005-08-001
A171: 栃木県 | B171: 09201 | C171: 0920001 | D171: 宇都宮市 | E171: 宇都宮市東横田清掃工場 | J171: 0 | V171: 標脱 | X171: 脱水, 乾燥, 焼却 | AB171: ①DB（公設公営、直営） | AC171: 185 | AD171: 0 | AE171: 0 | AF171: 0 | AG171: 1985 | AI171: 廃止 | AJ171: 09-1-201-08-001
A172: 栃木県 | B172: 09202 | C172: 0920002 | D172: 足利市 | E172: 足利市東部クリーンセンター | F172: 3866 | G172: 22572 | J172: 26438 | R172: 直接埋立無し | T172: 施設内焼却 | U172: 1046 | V172: 標脱 | X172: 脱水, 乾燥, 焼却 | AB172: ①DB（公設公営、直営） | AC172: 175 | AD172: 0 | AE172: 0 | AF172: 0 | AG172: 1993 | AH172: 委託 | AJ172: 09-1-202-08-001
A173: 栃木県 | B173: 09203 | C173: 0920003 | D173: 栃木市 | E173: 栃木市衛生センター | F173: 2195 | G173: 20860 | J173: 23055 | P173: 1339.52 | Q173: 資源化物の排出量・売却量 | R173: 直接埋立無し | T173: 焼却無し | V173: 高負荷 | X173: 脱水, その他 | AB173: ⑥その他公設公営 | AC173: 75 | AD173: 0 | AE173: 0 | AF173: 0 | AG173: 1995 | AH173: 委託 | AJ173: 09-1-203-08-001
A174: 栃木県 | B174: 09205 | C174: 0920004 | D174: 鹿沼市 | E174: 環境クリーンセンター | F174: 2695 | G174: 15543 | J174: 18238 | R174: 直接埋立無し | T174: 施設外焼却 | U174: 616 | V174: 高負荷, 下水投入 | X174: 脱水, 焼却 | AB174: ①DB（公設公営、直営） | AC174: 89 | AD174: 0.035 | AE174: 0 | AF174: 0 | AG174: 1997 | AH174: 直営 | AJ174: 09-1-205-08-001
A175: 栃木県 | B175: 09206 | C175: 0920005 | D175: 日光市 | E175: 日光市し尿処理場環境センター | F175: 3008 | G175: 12413 | J175: 15421 | R175: 直接埋立無し | T175: 施設外焼却 | U175: 485 | V175: 高負荷 | X175: 脱水 | AB175: ③DB（公設公営、運転委託） | AC175: 82 | AD175: 0 | AE175: 0 | AF175: 0 | AG175: 1993 | AH175: 委託 | AJ175: 09-1-206-08-001
A176: 栃木県 | B176: 09361 | C176: 0920006 | D176: 壬生町 | E176: 壬生町クリーンセンター | F176: 520 | G176: 3848 | J176: 4368 | R176: 直接埋立無し | T176: 焼却無し | V176: 高負荷 | X176: 脱水 | AB176: ③DB（公設公営、運転委託） | AC176: 36 | AD176: 0 | AE176: 0 | AF176: 0 | AG176: 1990 | AH176: 委託 | AJ176: 09-1-361-08-001
A177: 栃木県 | B177: 09806 | C177: 0920007 | D177: 那須地区広域行政事務組合 | E177: 第1衛生センター | F177: 0 | G177: 0 | H177: 0 | I177: 0 | J177: 0 | R177: 直接埋立無し | T177: 焼却無し | V177: 高負荷 | X177: 脱水 | AB177: ③DB（公設公営、運転委託） | AC177: 60 | AD177: 0 | AE177: 0 | AF177: 0 | AG177: 1988 | AH177: 委託 | AI177: 休止 | AJ177: 09-2-004-08-001
A178: 栃木県 | B178: 09806 | C178: 0920008 | D178: 那須地区広域行政事務組合 | E178: 第2衛生センター | F178: 9395 | G178: 42197 | H178: 0 | I178: 0 | J178: 51592 | R178: 直接埋立無し | T178: 施設内焼却 | U178: 4127 | V178: 標脱 | X178: 脱水, 乾燥, 焼却 | AB178: ③DB（公設公営、運転委託） | AC178: 150 | AD178: 0 | AE178: 0 | AF178: 0 | AG178: 1981 | AH178: 委託 | AJ178: 09-2-004-08-002
A179: 栃木県 | B179: 09808 | C179: 0920009 | D179: 佐野地区衛生施設組合 | E179: 佐野地区衛生センター | F179: 6675 | G179: 28456 | J179: 35131 | R179: 直接埋立無し | T179: 施設内焼却 | U179: 534 | V179: 標脱 | X179: 脱水, 乾燥, 焼却 | AB179: ③DB（公設公営、運転委託） | AC179: 220 | AD179: 0 | AE179: 0 | AF179: 0 | AG179: 1985 | AH179: 委託 | AI179: 休止 | AJ179: 09-2-002-08-001
A180: 栃木県 | B180: 09833 | C180: 0920010 | D180: 芳賀地区広域行政事務組合 | E180: 第二環境クリーンセンター | F180: 1498 | G180: 10772 | J180: 12270 | R180: 直接埋立無し | T180: 施設外焼却 | U180: 506 | V180: 標脱 | X180: 脱水 | AB180: ①DB（公設公営、直営） | AC180: 90 | AD180: 0 | AE180: 1.8 | AF180: 0 | AG180: 1982 | AH180: 委託 | AJ180: 09-2-007-08-001
A181: 栃木県 | B181: 09833 | C181: 0920011 | D181: 芳賀地区広域行政事務組合 | E181: 第一環境クリーンセンター | F181: 2209 | G181: 16266 | J181: 18475 | R181: 直接埋立無し | T181: 施設外焼却 | U181: 761 | V181: 標脱 | X181: 脱水 | AB181: ①DB（公設公営、直営） | AC181: 90 | AD181: 0 | AE181: 1.58 | AF181: 0 | AG181: 1987 | AH181: 委託 | AJ181: 09-2-007-08-002
A182: 栃木県 | B182: 09841 | C182: 0920012 | D182: 南那須地区広域行政事務組合 | E182: 保健衛生センター | F182: 2118 | G182: 11956 | J182: 14074 | N182: 503 | Q182: 資源化物の排出量・売却量 | R182: 直接埋立無し | T182: 施設外焼却 | U182: 503 | V182: 標脱 | X182: 脱水, 焼却 | AB182: ②DB（公設公営、一部運転委託） | AC182: 70 | AD182: 0 | AE182: 2 | AF182: 0 | AG182: 1985 | AH182: 委託 | AJ182: 09-2-005-08-001
A183: 栃木県 | B183: 09850 | C183: 0920013 | D183: 塩谷広域行政組合 | E183: しおやクリーンセンター | F183: 3055 | G183: 23067 | I183: 1056 | J183: 27178 | R183: 直接埋立無し | T183: 施設外焼却 | U183: 1402 | V183: 高負荷 | X183: 脱水 | AB183: ③DB（公設公営、運転委託） | AC183: 110 | AD183: 0 | AE183: 0 | AF183: 0 | AG183: 1998 | AH183: 委託 | AJ183: 09-2-001-08-001
A184: 栃木県 | B184: 09852 | C184: 0920014 | D184: 小山広域保健衛生組合 | E184: 小山広域クリーンセンター | F184: 4664 | G184: 34064 | H184: 274 | J184: 39002 | L184: 341 | Q184: 資源化物の生産量 | R184: 直接埋立無し | T184: 焼却無し | V184: 膜分離 | X184: 脱水 | AB184: ⑦DB+O（公設民営、長期包括運営委託） | AC184: 191 | AD184: 1.4 | AE184: 2.7 | AF184: 0 | AG184: 2004 | AH184: 委託 | AJ184: 09-2-003-08-001
A185: 群馬県 | B185: 10201 | C185: 1020001 | D185: 前橋市 | E185: 前橋市し尿処理施設(浄化槽汚泥) | G185: 30138 | J185: 30138 | L185: 296 | O185: 335 | Q185: 資源化物の生産量 | R185: 直接埋立無し | T185: 焼却無し | V185: 好希釈 | X185: 脱水 | AB185: ③DB（公設公営、運転委託） | AC185: 87 | AD185: 0 | AE185: 1 | AF185: 0 | AG185: 1987 | AH185: 一部委託 | AJ185: 10-1-201-08-001
A186: 群馬県 | B186: 10201 | C186: 1020002 | D186: 前橋市 | E186: 前橋市し尿処理施設(し尿) | F186: 3427 | J186: 3427 | L186: 296 | O186: 335 | Q186: 資源化物の生産量 | R186: 直接埋立無し | T186: 焼却無し | V186: 高負荷, 膜分離 | X186: 脱水 | AB186: ③DB（公設公営、運転委託） | AC186: 33 | AD186: 0 | AE186: 0 | AF186: 0 | AG186: 1998 | AH186: 一部委託 | AJ186: 10-1-201-08-002
A187: 群馬県 | B187: 10202 | C187: 1020004 | D187: 高崎市 | E187: 城南クリーンセンター | F187: 2704 | G187: 46452 | J187: 49156 | R187: 直接埋立無し | T187: 施設内焼却 | U187: 1341 | V187: 高負荷 | X187: 脱水, 乾燥, 焼却 | AB187: ②DB（公設公営、一部運転委託） | AC187: 174 | AD187: 0 | AE187: 0 | AF187: 0 | AG187: 1993 | AH187: 一部委託 | AJ187: 10-1-202-08-001
A188: 群馬県 | B188: 10203 | C188: 1020005 | D188: 桐生市 | E188: 桐生市境野水処理センター | F188: 26166 | G188: 7390 | J188: 33556 | R188: 直接埋立無し | T188: 施設内焼却 | U188: 203 | V188: 嫌気, 好気, 高負荷, 膜分離 | X188: 脱水, 乾燥, 焼却 | AB188: ②DB（公設公営、一部運転委託） | AC188: 195 | AD188: 0.3 | AE188: 0.981 | AF188: 0 | AG188: 2002 | AH188: 委託 | AJ188: 10-1-203-08-001
A189: 群馬県 | B189: 10204 | C189: 1020006 | D189: 伊勢崎市 | E189: 伊勢崎市茂呂クリーンセンター | F189: 3959 | G189: 43639 | J189: 47598 | R189: 直接埋立無し | T189: 施設内焼却 | U189: 1276 | V189: 高負荷 | X189: 脱水, 乾燥, 焼却 | AB189: ③DB（公設公営、運転委託） | AC189: 112 | AD189: 0 | AE189: 0 | AF189: 0 | AG189: 1996 | AH189: 委託 | AJ189: 10-1-204-08-001
A190: 群馬県 | B190: 10204 | C190: 1020007 | D190: 伊勢崎市 | E190: 伊勢崎市境クリーンセンター | F190: 2242 | G190: 15524 | H190: 0 | I190: 0 | J190: 17766 | R190: 直接埋立無し | T190: 施設内焼却 | U190: 893 | V190: 高負荷 | X190: 脱水, 焼却 | AB190: ③DB（公設公営、運転委託） | AC190: 50 | AD190: 0 | AE190: 0 | AF190: 0 | AG190: 1985 | AH190: 委託 | AJ190: 10-1-204-08-002
A191: 群馬県 | B191: 10204 | C191: 1020008 | D191: 伊勢崎市 | E191: 伊勢崎市赤堀環境センター | F191: 0 | G191: 0 | H191: 0 | I191: 0 | J191: 0 | R191: 直接埋立無し | T191: 焼却無し | V191: 高負荷 | X191: 脱水, 焼却 | AC191: 20 | AD191: 0 | AE191: 0 | AF191: 0 | AG191: 1992 | AH191: 委託 | AI191: 休止 | AJ191: 10-1-204-08-003
A192: 群馬県 | B192: 10205 | C192: 1020009 | D192: 太田市 | E192: 太田市第一クリーンセンター | F192: 1858 | G192: 33364 | J192: 35222 | R192: 直接埋立無し | T192: 焼却無し | V192: その他 | X192: その他 | AB192: ③DB（公設公営、運転委託） | AC192: 100 | AD192: 0 | AE192: 0 | AF192: 0 | AG192: 1984 | AH192: 委託 | AJ192: 10-1-205-08-001
A193: 群馬県 | B193: 10205 | C193: 1020010 | D193: 太田市 | E193: 太田市第二クリーンセンター | F193: 1187 | G193: 21331 | J193: 22518 | R193: 直接埋立無し | T193: 施設内焼却 | U193: 104 | V193: 標脱, その他 | X193: 焼却 | AB193: ③DB（公設公営、運転委託） | AC193: 120 | AD193: 0 | AE193: 0 | AF193: 0 | AG193: 1995 | AH193: 委託 | AJ193: 10-1-205-08-002
A194: 群馬県 | B194: 10205 | C194: 1020011 | D194: 太田市 | E194: 太田市新田クリーンセンター | F194: 1139 | G194: 6984 | J194: 8123 | R194: 直接埋立無し | T194: 施設内焼却 | U194: 25 | V194: 膜分離 | X194: 焼却 | AB194: ③DB（公設公営、運転委託） | AC194: 46 | AD194: 0 | AE194: 0 | AF194: 0 | AG194: 1991 | AH194: 委託 | AI194: 能力変更 | AJ194: 10-1-205-08-003
A195: 群馬県 | B195: 10211 | C195: 1020012 | D195: 安中市 | E195: 碓氷川クリーンセンターし尿処理施設 | F195: 2596 | G195: 26531 | J195: 29127 | R195: 直接埋立無し | T195: 施設外焼却 | U195: 1414 | V195: 高負荷 | X195: 脱水 | AB195: ①DB（公設公営、直営） | AC195: 90 | AD195: 0 | AE195: 0 | AF195: 0 | AG195: 1992 | AH195: 直営 | AJ195: 10-1-211-08-001
A196: 群馬県 | B196: 10366 | C196: 1020013 | D196: 上野村 | E196: 上野村未利用資源活用施設 | F196: 60 | G196: 450 | H196: 0 | I196: 0 | J196: 510 | P196: 1159 | Q196: 資源化物の排出量・売却量 | R196: 直接埋立無し | T196: 焼却無し | V196: 好気, その他 | X196: その他 | AB196: ①DB（公設公営、直営） | AC196: 7.5 | AD196: 0 | AE196: 7.5 | AF196: 0 | AG196: 1999 | AH196: 委託 | AJ196: 10-1-366-08-001
A197: 群馬県 | B197: 10449 | C197: 1020014 | D197: みなかみ町 | E197: 奥利根アメニティパークし尿処理施設 | F197: 682 | G197: 5275 | J197: 5957 | Q197: 資源化物の生産量 | R197: 直接埋立無し | T197: 焼却無し | V197: 高負荷, 膜分離 | X197: 脱水 | AB197: ③DB（公設公営、運転委託） | AC197: 35 | AD197: 0 | AE197: 2 | AF197: 0 | AG197: 2000 | AH197: 委託 | AJ197: 10-1-449-08-001
A198: 群馬県 | B198: 10524 | C198: 1020015 | D198: 大泉町 | E198: 大泉町衛生センター | F198: 1774 | G198: 29059 | J198: 30833 | R198: 直接埋立有り | S198: 94 | T198: 焼却無し | V198: 標脱, 湿式酸化 | X198: 脱水 | AB198: ③DB（公設公営、運転委託） | AC198: 80 | AD198: 0 | AE198: 0 | AF198: 0 | AG198: 1980 | AH198: 委託 | AJ198: 10-1-524-08-001
A199: 群馬県 | B199: 10838 | C199: 1020017 | D199: 甘楽西部環境衛生施設組合 | E199: 甘楽西部環境衛生施設組合クリーンセンター | F199: 1197 | G199: 6942 | J199: 8139 | R199: 直接埋立無し | T199: 施設内焼却 | U199: 297 | V199: 高負荷 | X199: 焼却 | AB199: ①DB（公設公営、直営） | AC199: 29 | AD199: 0 | AE199: 0 | AF199: 0 | AG199: 1995 | AH199: 直営 | AJ199: 10-2-001-08-001
A200: 群馬県 | B200: 10839 | C200: 1020018 | D200: 館林衛生施設組合 | E200: 館林環境センター | F200: 1898 | G200: 24134 | J200: =SUM(F200:I200) -> 26032 | L200: 1031 | Q200: 資源化物の生産量 | R200: 直接埋立無し | T200: 施設内焼却 | U200: 345 | V200: 高負荷 | X200: 脱水, 乾燥, 焼却 | AB200: ③DB（公設公営、運転委託） | AC200: 100 | AD200: 0 | AE200: 0 | AF200: 0 | AG200: 1990 | AH200: 委託 | AJ200: 10-2-002-08-001
A201: 群馬県 | B201: 10840 | C201: 1020019 | D201: 吾妻東部衛生施設組合 | E201: 吾妻東部衛生センターし尿処理施設 | F201: 1743 | G201: 9635 | J201: 11378 | R201: 直接埋立無し | T201: 施設外焼却 | U201: 386 | V201: 高負荷 | X201: 脱水 | AB201: ③DB（公設公営、運転委託） | AC201: 62 | AD201: 0 | AE201: 0 | AF201: 0 | AG201: 1995 | AH201: 委託 | AJ201: 10-2-003-08-001
... 682 more rows

Sheet トラックバキューム車 (hidden)
A1: 出典：サプライチェーンを通じた組織の温室効果ガス排出等の算定のための排出原単位データベースVer 3.3
B3: 車種 | C3: 燃費（km/L） | D3: 距離当たりのCO2排出量（㎏-CO2/km） | E3: 積載量（㎥） | F3: 積載量の根拠 | G3: CH４原単位（kg-CH4/㎞) | H3: N2O原単位（kg-N2O/㎞) | K3: 一般的なバキューム車の情報
A4: ガソリン | B4: ガソリン車バキュームカー | C4: 4.96 | D4: =34.6*0.0183*44/12/C4 -> 0.4680766129 | E4: 3.7 | F4: 4tバキューム車の最大積載量の値を採用 | G4: =温対法排出原単位!C49 -> 3.5e-05 | H4: =温対法排出原単位!C125 -> 3.5e-05 | K4: https://www.shinmaywa.co.jp/toho/products/dl/environment42_01.pdf
A5: 軽油 | B5: 軽油車小型バキュームカー（2-3tトラック） | C5: =(6.19+4.58)/2 -> 5.385 | D5: =37.7*0.0187*44/12/C5 -> 0.4800303312 | E5: 2.5 | F5: 最大積載量2－3tの値を採用 | G5: =温対法排出原単位!C$55 -> 1.3e-05 | H5: =温対法排出原単位!C$130 -> 2.5e-05 | K5: https://www.morita-econos.com/hygiene/hygiene/index.html
A6: 軽油 | B6: 軽油車中型バキュームカー（4tトラック） | C6: 4.58 | D6: =37.7*0.0187*44/12/C6 -> 0.5644024745 | E6: 3.7 | F6: 4tバキューム車の最大積載量の値を採用 | G6: =温対法排出原単位!C$55 -> 1.3e-05 | H6: =温対法排出原単位!C$130 -> 2.5e-05
A7: 軽油 | B7: 軽油車大型バキュームカー（10tトラック以上） | C7: =(3.79+3.38+3.09+2.89)/4 -> 3.2875 | D7: =37.7*0.0187*44/12/C7 -> 0.7863006337 | E7: 9 | F7: 最大積載6－12tの中央値を採用 | G7: =温対法排出原単位!C$55 -> 1.3e-05 | H7: =温対法排出原単位!C$130 -> 2.5e-05
A8: ガソリン | B8: ガソリン車トラック | C8: 4.96 | D8: =34.6*0.0183*44/12/C8 -> 0.4680766129 | E8: 4 | F8: 4t車の最大積載量の値を採用 | G8: =温対法排出原単位!C46 -> 3.5e-05 | H8: =温対法排出原単位!C122 -> 3.9e-05
A9: 軽油 | B9: 軽油車小型トラック（2-3tトラック） | C9: =(6.19+4.58)/2 -> 5.385 | D9: =37.7*0.0187*44/12/C9 -> 0.4800303312 | E9: 2.5 | F9: 最大積載量2－3tの値を採用 | G9: =温対法排出原単位!C$53 -> 1.5e-05 | H9: =温対法排出原単位!C$128 -> 1.4e-05
A10: 軽油 | B10: 軽油車中型トラック（4tトラック） | C10: 4.58 | D10: =37.7*0.0187*44/12/C10 -> 0.5644024745 | E10: 4 | F10: 4t車の最大積載量の値を採用 | G10: =温対法排出原単位!C$53 -> 1.5e-05 | H10: =温対法排出原単位!C$128 -> 1.4e-05
A11: 軽油 | B11: 軽油車大型トラック（10tトラック以上） | C11: =(3.79+3.38+3.09+2.89)/4 -> 3.2875 | D11: =37.7*0.0187*44/12/C11 -> 0.7863006337 | E11: 9 | F11: 最大積載6－12tの中央値を採用 | G11: =温対法排出原単位!C$53 -> 1.5e-05 | H11: =温対法排出原単位!C$128 -> 1.4e-05

Sheet 焼却のCH4とN2O (hidden)
A2: 焼却（CH4）
B3: 温対法 | E3: 割合
B4: （１）連続燃焼式焼却施設 | C4: 0.00095 | D4: （ｋｇ－CH4／ｔ） | E4: =354/516 -> 0.6860465116 | F4: =E4*C4 -> 0.000651744186
B5: （２）准連続燃焼式焼却施設 | C5: 0.077 | D5: （ｋｇ－CH4／ｔ） | E5: =82/516 -> 0.1589147287 | F5: =E5*C5 -> 0.01223643411 | H5: 加重平均
B6: （３）バッチ燃焼式焼却施設 | C6: 0.076 | D6: （ｋｇ－CH4／ｔ） | E6: =80/516 -> 0.1550387597 | F6: 0.01178294574 | H6: =SUM(F4:F6) -> 0.02467112403
A8: 焼却（N２O）
B9: 温対法 | E9: 割合
B10: （１）連続燃焼式焼却施設 | C10: 0.0567 | D10: （ｋｇ－Ｎ2Ｏ／ｔ） | E10: =354/516 -> 0.6860465116 | F10: =E10*C10 -> 0.03889883721
B11: （２）准連続燃焼式焼却施設 | C11: 0.0539 | D11: （ｋｇ－Ｎ2Ｏ／ｔ） | E11: =82/516 -> 0.1589147287 | F11: =E11*C11 -> 0.008565503876 | H11: 加重平均
B12: （３）バッチ燃焼式焼却施設 | C12: 0.0724 | D12: （ｋｇ－Ｎ2Ｏ／ｔ） | E12: =80/516 -> 0.1550387597 | F12: 0.0112248062 | H12: =SUM(F10:F12) -> 0.05868914729

Sheet 化学肥料 (hidden)
E1: 窒素 | I1: リン酸 | M1: カリ | Q1: 合計
E2: 出典：水野・吉羽 汚泥肥料の種類と成分含有量の実態ーFAMICの肥料検査成績からー | F2: 中村委員より受領した「環境にやさしい農業を始めよう」（後藤 2019）より引用 | G2: 出典（計算式）：農業集落排水ハンドブック | H2: 農林水産省「農業資材の供給の状況に関する調査結果（R3）」 | I2: 出典：水野・吉羽 汚泥肥料の種類と成分含有量の実態ーFAMICの肥料検査成績からー | J2: 出典：農業集落排水ハンドブック、「環境にやさしい農業を始めよう」（後藤 2019）より引用 | K2: 出典（計算式）：農業集落排水ハンドブック | L2: 農林水産省「農業資材の供給の状況に関する調査結果（R3）」 | M2: 出典：水野・吉羽 汚泥肥料の種類と成分含有量の実態ーFAMICの肥料検査成績からー | N2: 出典：北海道施肥ガイド（道総研 2020） | O2: 出典（計算式）：農業集落排水ハンドブック | P2: 農林水産省「農業資材の供給の状況に関する調査結果（R3）」 | S2: 出典：汚泥肥料の活用推進プロジェクト取組成果について
E3: https://agriknowledge.affrc.go.jp/RN/2010853145.pdf | H3: https://www.maff.go.jp/j/seisan/sien/sizai/s_hiryo/210528.html | I3: https://agriknowledge.affrc.go.jp/RN/2010853145.pdf | L3: https://www.maff.go.jp/j/seisan/sien/sizai/s_hiryo/210528.html | M3: https://agriknowledge.affrc.go.jp/RN/2010853145.pdf | P3: https://www.maff.go.jp/j/seisan/sien/sizai/s_hiryo/210528.html | S3: https://www.maff.go.jp/kanto/kikaku/midori_syokuryou/attach/pdf/setsumeikai_shiryou_5-2-2.pdf
C4: 含水率 | D4: 汚泥肥料の種類 | E4: 全窒素（現物％） | F4: 窒素肥効率（＝有機質資材の養分利用率/化学肥料の養分利用率） | G4: 汚泥肥料1kgあたりの汚泥肥料の化学肥料養分相当量(N-kg/kg) | H4: 汚泥肥料の化学肥料養分相当量（尿素換算）(円/kg） | I4: 全リン酸（現物％） | J4: リン酸肥効率（＝有機質資材の養分利用率/化学肥料の養分利用率） | K4: 汚泥肥料1kgあたりの汚泥肥料の化学肥料養分相当量(kg) | L4: 汚泥肥料の化学肥料養分相当量(円)（過リン酸石灰換算） | M4: カリ（現物％） | N4: カリ肥効率（＝有機質資材の養分利用率/化学肥料の養分利用率） | O4: 汚泥肥料1kgあたりの汚泥肥料の化学肥料養分相当量(kg) | P4: 汚泥肥料の化学肥料養分相当量(円)（塩化カリウム換算） | Q4: 汚泥肥料1kgあたりの化学肥料相当量の合計（円/kg） | R4: 汚泥肥料1kgあたりの化学肥料相当量のCO2排出量（kg-Co2/kg） | S4: 以上に基づき汚泥肥料は水田よりも畑地に施肥する場合が多く、葉菜類、根菜類、果菜類等の幅広い品目で利用されている。
B5: 脱水汚泥の農地還元 | C5: 85 | D5: し尿汚泥肥料 | E5: =-0.0548*C5+5.5328 -> 0.8748 | F5: 0.54 | G5: =1*化学肥料!E5/100*化学肥料!F5 -> 0.00472392 | H5: =G5*1743/20/46*100 -> 0.8949774522 | I5: =E5*0.8697+1.1282 -> 1.88901356 | J5: 1 | K5: =1*化学肥料!I5/100*化学肥料!J5 -> 0.0188901356 | L5: =K5*1739/20/17.5*100 -> 9.385698802 | M5: 0.3 | N5: 1 | O5: =1*化学肥料!M5/100*化学肥料!N5 -> 0.003 | P5: =O5*1952/20/60*100 -> 0.488 | Q5: =SUM(P5,L5,H5) -> 10.76867625 | R5: =$D$15*Q5 -> 0.1210183837
B6: 機械乾燥汚泥の農地還元 | C6: 40 | D6: し尿汚泥肥料 | E6: =-0.0548*C6+5.5328 -> 3.3408 | F6: 0.54 | G6: =1*化学肥料!E6/100*化学肥料!F6 -> 0.01804032 | H6: =G6*1743/20/46*100 -> 3.417856278 | I6: =E6*0.8697+1.1282 -> 4.03369376 | J6: 1 | K6: =1*化学肥料!I6/100*化学肥料!J6 -> 0.0403369376 | L6: =K6*1739/20/17.5*100 -> 20.04169557 | M6: 0.3 | N6: 1 | O6: =1*化学肥料!M6/100*化学肥料!N6 -> 0.003 | P6: =O6*1952/20/60*100 -> 0.488 | Q6: =SUM(P6,L6,H6) -> 23.94755185 | R6: =$D$15*Q6 -> 0.2691225876
B7: コンポスト化汚泥の農地還元 | C7: 40 | D7: 汚泥発酵肥料 | E7: =-0.0545*C7+4.4397 -> 2.2597 | F7: 0.41 | G7: =1*化学肥料!E7/100*化学肥料!F7 -> 0.00926477 | H7: =G7*1743/20/46*100 -> 1.755271099 | I7: =E7*1.1012+0.6859 -> 3.17428164 | J7: 1 | K7: =1*化学肥料!I7/100*化学肥料!J7 -> 0.0317428164 | L7: =K7*1739/20/17.5*100 -> 15.77164506 | M7: 0.7 | N7: 1 | O7: =1*化学肥料!M7/100*化学肥料!N7 -> 0.007 | P7: =O7*1952/20/60*100 -> 1.138666667 | Q7: =SUM(P7,L7,H7) -> 18.66558283 | R7: =$D$15*Q7 -> 0.2097638198
B13: ３EID排出原単位 | F13: 農林水産省「農業資材の供給の状況に関する調査結果（R3）」
C14: 購入者価格ベース（t-CO2/百万円） | D14: 購入者価格ベース（kg-CO2/円）
B15: 化学肥料 | C15: 11.238 | D15: =11.238/1000 -> 0.011238
B23: 農研機構 土壌のCO２吸収見える化サイト
B24: 肥料由来の化石燃料の消費によるCO2排出係数 | D24: https://soilco2.rad.naro.go.jp/q13
B25: N | C25: 3.27 | D25: kgCO2/kgN
B26: P2O5 | C26: 2.44 | D26: kgCO2/kgPsO5
B27: K2O | C27: 0.44 | D27: kgC2/kgK2O

Sheet マクロ用 (hidden)
C1: 神栖市 | D1: 汚泥再生処理センターエコパーク鉾田
C2: 水戸市 | D2: 大洋サニタリーセンター
C3: 土浦市
C4: 常陸太田市
C5: 常陸太田市
C6: 北茨城市
C7: つくば市
C8: つくば市
C9: ひたちなか市
C10: ひたちなか市
C11: 鹿嶋市
C12: 潮来市
C13: 行方市
C14: 行方市
C15: 鉾田市
C16: 鉾田市
C17: 城里町
C18: 東海村
C19: 大宮地方環境整備組合
C20: 常総衛生組合
C21: 龍ケ崎地方衛生組合
C22: さしま環境管理事務組合
C23: 筑北環境衛生組合
C24: 茨城地方広域環境事務組合
C25: 大洗、鉾田、水戸環境組合
C26: 湖北環境衛生組合
C27: 筑西広域市町村圏事務組合
C28: 下妻地方広域事務組合

Sheet 選択肢 (hidden)
B2: 有無 | G2: 処理プロセス | J2: 処理する場所 | L2: 処理する場所 | N2: 処理する場所 | P2: 都道府県 | R2: 脱水又は乾燥が農業集落排水施設で行われなかった場合 | S2: 入力情報（現況の最終処理形態） | T2: 比較対象１ | U2: 比較対象２ | W2: 脱水又は乾燥が農業集落排水施設で行われた場合 | X2: 入力情報（現況の最終処理形態） | Y2: 比較対象１ | Z2: 比較対象２
B3: 有 | G3: 農地還元（脱水汚泥） | J3: 農業集落排水施設 | L3: 農業集落排水施設 | N3: し尿処理施設 | P3: 北海道 | S3: 農地還元（脱水汚泥） | T3: 埋立（焼却あり） | U3: 建設資材化 | X3: 農地還元（脱水汚泥） | Y3: 埋立（焼却あり） | Z3: 建設資材化
B4: 無 | G4: 農地還元（機械乾燥汚泥） | J4: し尿処理施設 | L4: し尿処理施設 | N4: 焼却施設 | P4: 青森県 | S4: 農地還元（機械乾燥汚泥） | T4: 埋立（焼却あり） | U4: 建設資材化 | X4: 農地還元（機械乾燥汚泥） | Y4: 埋立（焼却あり） | Z4: 建設資材化
G5: 農地還元（炭化汚泥） | J5: その他 | L5: 焼却施設 | N5: その他 | P5: 岩手県 | S5: 農地還元（炭化汚泥） | T5: 埋立（焼却あり） | U5: 建設資材化 | X5: 農地還元（炭化汚泥） | Y5: 埋立（焼却あり） | Z5: 建設資材化
G6: 農地還元（コンポスト化汚泥）（農業集落排水施設でコンポスト化） | L6: その他 | P6: 宮城県 | S6: 農地還元（コンポスト化汚泥）（農業集落排水施設でコンポスト化） | T6: 埋立（焼却あり） | U6: 建設資材化 | X6: 農地還元（コンポスト化汚泥）（農業集落排水施設でコンポスト化） | Y6: 埋立（焼却あり） | Z6: 建設資材化
G7: 農地還元（コンポスト化汚泥）（農業集落排水施設以外でコンポスト化） | P7: 秋田県 | S7: 農地還元（コンポスト化汚泥）（農業集落排水施設以外でコンポスト化） | T7: 埋立（焼却あり） | U7: 建設資材化 | X7: 農地還元（コンポスト化汚泥）（農業集落排水施設以外でコンポスト化） | Y7: 埋立（焼却あり） | Z7: 建設資材化
G8: 埋立（焼却あり） | P8: 山形県 | S8: 埋立（焼却あり） | T8: 農地還元（コンポスト化汚泥）（農業集落排水施設以外でコンポスト化） | U8: 建設資材化 | X8: 埋立（焼却あり） | Y8: 農地還元（コンポスト化汚泥）（農業集落排水施設でコンポスト化） | Z8: 建設資材化
G9: 埋立（直接埋立：焼却なし） | P9: 福島県 | S9: 埋立（直接埋立：焼却なし） | T9: 農地還元（コンポスト化汚泥）（農業集落排水施設以外でコンポスト化） | U9: 建設資材化 | X9: 埋立（直接埋立：焼却なし） | Y9: 農地還元（コンポスト化汚泥）（農業集落排水施設でコンポスト化） | Z9: 建設資材化
G10: 建設資材化 | P10: 茨城県 | S10: 建設資材化 | T10: 農地還元（コンポスト化汚泥）（農業集落排水施設以外でコンポスト化） | U10: 埋立（焼却あり） | X10: 建設資材化 | Y10: 農地還元（コンポスト化汚泥）（農業集落排水施設でコンポスト化） | Z10: 埋立（焼却あり）
P11: 栃木県
P12: 群馬県
P13: 埼玉県
P14: 千葉県
P15: 東京都
P16: 神奈川県
P17: 新潟県
P18: 富山県
P19: 石川県
P20: 福井県
P21: 山梨県
P22: 長野県
P23: 岐阜県
P24: 静岡県
P25: 愛知県
P26: 三重県
P27: 滋賀県
P28: 京都府
P29: 大阪府
P30: 兵庫県
P31: 奈良県
P32: 和歌山県
P33: 鳥取県
P34: 島根県
P35: 岡山県
P36: 広島県
P37: 山口県
P38: 徳島県
P39: 香川県
P40: 愛媛県
P41: 高知県
P42: 福岡県
P43: 佐賀県
P44: 長崎県
P45: 熊本県
P46: 大分県
P47: 宮崎県
P48: 鹿児島県
P49: 沖縄県
